{"text_format":"3","workbook":"xlsx","n_sheets":7,"sheets":["Current Courses","Multli List Prior to 202010","Original","Courses No Longer Offered","Course Title Changed","Grey","No Color"],"not_rendered":{"defined_names":1},"read":"whole","date_system":"1900"}

{"sheet":"Current Courses","index":0,"n_rows":576,"n_cols":10,"rows_kept":576,"merged":[[0,1,0,8]]}
[]
["CREDITS","COURSE","COM/ENGL","HUM/SOC","UCC HUM","SOC","UCC STS","(and)","INTL","MULTI"]
[null,"AAS | Any African American Studies (AAS) course may be a humanities selection",null,"Y"]
[{"$f":"HYPERLINK( CONCATENATE(\"https://selfservice.mypurdue.purdue.edu/prod/bzwsrch.p_catalog_detail?subject=\",LEFT(B4, SEARCH(\" \",B4,1)-1),\"&cnbr=\",MID(B4, 1+SEARCH(\" \",B4,SEARCH(\" \",B4,1)),5)), 3 )","v":3},"AAS 27100 - Introduction to African American Studies",null,"Y","Y"]
[3,"AAS 27700 - African American Pop Culture",null,"Y"]
[3,"AAS 37000 - Black Women Rising",null,"Y"]
[3,"AAS 37100 - The African American Experience",null,"Y"]
[3,"AAS 37300 - Issues in African American Studies",null,"Y"]
[3,"AAS 37500 - The Black Family",null,"Y"]
[3,"AAS 37600 - The Black Male",null,"Y"]
[3,"AAS 37700 - African American Sexuality and Society",null,"Y"]
[{"$f":"HYPERLINK( CONCATENATE(\"https://selfservice.mypurdue.purdue.edu/prod/bzwsrch.p_catalog_detail?subject=\",LEFT(B12, SEARCH(\" \",B12,1)-1),\"&cnbr=\",MID(B12, 1+SEARCH(\" \",B12,SEARCH(\" \",B12,1)),5)), 1 )","v":1},"ABE 29000 - Sophomore Seminar",{"$nulls":4},"Y"]
[null,"AD | Any Art and Design (AD) course may be used as a humanities selection",null,"Y"]
[{"$f":"HYPERLINK( CONCATENATE(\"https://selfservice.mypurdue.purdue.edu/prod/bzwsrch.p_catalog_detail?subject=\",LEFT(B14, SEARCH(\" \",B14,1)-1),\"&cnbr=\",MID(B14, 1+SEARCH(\" \",B14,SEARCH(\" \",B14,1)),5)), 3 )","v":3},"AD 11300 - Basic Drawings",null,"Y","Y"]
[3,"AD 11700 - Black and White Photography",null,"Y","Y"]
[3,"AD 12500 - Intro to Interior Design",null,"Y","Y"]
[3,"AD 22600 - History of Art to 1400",null,"Y","Y"]
[3,"AD 22700 - History of Art since 1400",null,"Y","Y"]
[3,"AD 24200 - Ceramics I",null,"Y","Y"]
[3,"AD 25100 - History of Photography",null,"Y","Y"]
[3,"AD 25500 - Art Appreciation",null,"Y","Y"]
[3,"AD 26500 - Relief Printmaking",null,"Y","Y"]
[3,"AD 26600 - Silkscreen Printmaking",null,"Y","Y"]
[3,"AD 27500 - Beginning Sculpture ",null,"Y","Y"]
[3,"AD 38300 - Modern Art",null,"Y","Y"]
[3,"AD 38400 - Contemporary Art",null,"Y","Y"]
[{"$f":"HYPERLINK( CONCATENATE(\"https://selfservice.mypurdue.purdue.edu/prod/bzwsrch.p_catalog_detail?subject=\",LEFT(B27, SEARCH(\" \",B27,1)-1),\"&cnbr=\",MID(B27, 1+SEARCH(\" \",B27,SEARCH(\" \",B27,1)),5)), 3 )","v":3},"AD 39500 - History of Design",{"$nulls":4},"Y"]
[3,"AGEC 20300 - Introductory Microeconomics for Food and Agribusiness",null,"Y",null,"Y"]
[3,"AGEC 20400 - Introduction to Resource Economics and Environmental Policy",null,"Y",null,"Y"]
[3,"AGEC 21700 - Economics",null,"Y",null,"Y"]
[3,"AGEC 25000 - Economic Geography of World Food and Resources",null,"Y",null,"Y",null,null,"Y"]
[3,"AGEC 30500 - Agricultural Prices",null,"Y",null,"Y"]
[3,"AGEC 33300 - Food Distribution - A Retailing Perspective",null,"Y",null,"Y"]
[3,"AGEC 34000 - International Economic Development",null,"Y",null,"Y",null,null,"Y"]
[3,"AGEC 40600- Natural Resource And Environmental Economics",null,"Y",null,"Y"]
[3,"AGEC 41000 - Agricultural Policy  ",null,"Y",null,"Y"]
[3,"AGEC 41500 - Community And Resource Development",null,"Y",null,"Y"]
[3,"AGEC 45000 - International Agricultural Trade",null,"Y",null,"Y",null,null,"Y"]
[3,"AGEC 49800 - Afghanistan Development Challenges",null,"Y",null,"Y",null,null,"Y"]
[3,"AGR 20100 - Communicating Across Culture","Y","Y",null,"Y",{"$nulls":3},"Y"]
[3,"AGR 49300 - Special Topics in International Agriculture",{"$nulls":6},"Y"]
[{"$f":"HYPERLINK( CONCATENATE(\"https://selfservice.mypurdue.purdue.edu/prod/bzwsrch.p_catalog_detail?subject=\",LEFT(B42, SEARCH(\" \",B42,1)-1),\"&cnbr=\",MID(B42, 1+SEARCH(\" \",B42,SEARCH(\" \",B42,1)),5)), 0 )","v":0},"AGR 49500 - Intl. Prof. Experience in Agr., Food, and Nat. Resources",{"$nulls":6},"Y"]
[3,"AGRY 12300 - Genetics and Society",null,"Y",null,"Y"]
[{"$f":"HYPERLINK( CONCATENATE(\"https://selfservice.mypurdue.purdue.edu/prod/bzwsrch.p_catalog_detail?subject=\",LEFT(B44, SEARCH(\" \",B44,1)-1),\"&cnbr=\",MID(B44, 1+SEARCH(\" \",B44,SEARCH(\" \",B44,1)),5)), 3 )","v":3},"AGRY 12500 - Environmental Science and Conservation",{"$nulls":4},"Y"]
[3,"AGRY 28500 - World Crop Adaptation and Distribution",{"$nulls":4},"Y",null,"Y"]
[3,"AGRY 35000 - Global Awareness",{"$nulls":6},"Y"]
[3,"AGRY 39900 - Afghanistan Development Challenges",null,"Y",null,"Y",null,null,"Y"]
[3,"AGRY 39900 - Exploring International Agriculture",{"$nulls":6},"Y"]
[3,"AGRY 59800 - African Development Challenges",{"$nulls":6},"Y"]
[null,"AMST | Any American Studies (AMST) course may be a humanities selection",null,"Y"]
[{"$f":"HYPERLINK( CONCATENATE(\"https://selfservice.mypurdue.purdue.edu/prod/bzwsrch.p_catalog_detail?subject=\",LEFT(B51, SEARCH(\" \",B51,1)-1),\"&cnbr=\",MID(B51, 1+SEARCH(\" \",B51,SEARCH(\" \",B51,1)),5)), 3 )","v":3},"AMST 20100 - Interpreting America",null,"Y","Y"]
[{"$f":"HYPERLINK( CONCATENATE(\"https://selfservice.mypurdue.purdue.edu/prod/bzwsrch.p_catalog_detail?subject=\",LEFT(B52, SEARCH(\" \",B52,1)-1),\"&cnbr=\",MID(B52, 1+SEARCH(\" \",B52,SEARCH(\" \",B52,1)),5)), 3 )","v":3},"ANSC 10200 - Intro to Animal Agriculture",{"$nulls":4},"Y"]
[{"$f":"HYPERLINK( CONCATENATE(\"https://selfservice.mypurdue.purdue.edu/prod/bzwsrch.p_catalog_detail?subject=\",LEFT(B53, SEARCH(\" \",B53,1)-1),\"&cnbr=\",MID(B53, 1+SEARCH(\" \",B53,SEARCH(\" \",B53,1)),5)), 3 )","v":3},"ANSC 29400 - Exploring International Animal Agriculture",{"$nulls":6},"Y"]
[{"$f":"HYPERLINK( CONCATENATE(\"https://selfservice.mypurdue.purdue.edu/prod/bzwsrch.p_catalog_detail?subject=\",LEFT(B54, SEARCH(\" \",B54,1)-1),\"&cnbr=\",MID(B54, 1+SEARCH(\" \",B54,SEARCH(\" \",B54,1)),5)), 3 )","v":3},"ANSC 29500 - Exploring International Agriculture",{"$nulls":6},"Y"]
[{"$f":"HYPERLINK( CONCATENATE(\"https://selfservice.mypurdue.purdue.edu/prod/bzwsrch.p_catalog_detail?subject=\",LEFT(B55, SEARCH(\" \",B55,1)-1),\"&cnbr=\",MID(B55, 1+SEARCH(\" \",B55,SEARCH(\" \",B55,1)),5)), 3 )","v":3},"ANSC 33100 - Horses in Human History",null,"Y",{"$nulls":4},"Y"]
[null,"ANTH | Anthropology (ANTH) course may be a social science selection",null,"Y",null,"Y"]
[{"$f":"HYPERLINK( CONCATENATE(\"https://selfservice.mypurdue.purdue.edu/prod/bzwsrch.p_catalog_detail?subject=\",LEFT(B57, SEARCH(\" \",B57,1)-1),\"&cnbr=\",MID(B57, 1+SEARCH(\" \",B57,SEARCH(\" \",B57,1)),5)), 3 )","v":3},"ANTH 10000 - Introduction to Anthropology",null,"Y",null,"Y",null,null,"Y"]
[3,"ANTH 20500 - Human Cultural Diversity",null,"Y",null,"Y",null,null,"Y","Y"]
[{"$f":"HYPERLINK( CONCATENATE(\"https://selfservice.mypurdue.purdue.edu/prod/bzwsrch.p_catalog_detail?subject=\",LEFT(B59, SEARCH(\" \",B59,1)-1),\"&cnbr=\",MID(B59, 1+SEARCH(\" \",B59,SEARCH(\" \",B59,1)),5)), 3 )","v":3},"ANTH 2300 - Gender Across Cultures",{"$nulls":7},"Y"]
[3,"ANTH 21000 - Technology and Culture",null,"Y",null,"Y","Y"]
[{"$f":"HYPERLINK( CONCATENATE(\"https://selfservice.mypurdue.purdue.edu/prod/bzwsrch.p_catalog_detail?subject=\",LEFT(B61, SEARCH(\" \",B61,1)-1),\"&cnbr=\",MID(B61, 1+SEARCH(\" \",B61,SEARCH(\" \",B61,1)),5)), 3 )","v":3},"ANTH 37900 - Native American Cultures",{"$nulls":7},"Y"]
[3,"ANTH 39200 - Globalization and Culture",null,"Y",null,"Y",null,null,"Y"]
[null,"ARAB | Any Arabic (ARAB) course (language or culture and literature) may be a humanities selection.  Any ARAB course may be an international understanding selection. ",null,"Y",{"$nulls":4},"Y-FL"]
[3,"ARAB 10100 - Standard Arabic Level I",null,"Y","Y",{"$nulls":3},"Y-FL"]
[3,"ARAB 10200 - Standard Arabic Level II",null,"Y","Y",{"$nulls":3},"Y-FL"]
[3,"ARAB 20100 - Standard Arabic Level IV",null,"Y","Y",{"$nulls":3},"Y-FL"]
[3,"ARAB 20200 - Standard Arabic Level V",null,"Y","Y",{"$nulls":3},"Y-FL"]
[3,"ARAB 23000 - Arabic Literature in Translation",null,"Y",{"$nulls":4},"Y-FL"]
[3,"ARAB 23900 - Arab Women Writers",null,"Y",{"$nulls":4},"Y-FL"]
[3,"ARAB 28000 - Arabic Culture",null,"Y","Y",{"$nulls":3},"Y-FL"]
[3,"ARAB 28100 - Introduction to Islamic Civilization and Culture",null,"Y",{"$nulls":4},"Y-FL"]
[3,"ARAB 30100 - Standard Arabic Level V",null,"Y","Y",{"$nulls":3},"Y-FL"]
[3,"ARAB 30200 - Standard Arabic Level VI",null,"Y","Y",{"$nulls":3},"Y-FL"]
[3,"ARAB 33400 - North African Literature and Culture (Maghrebi Literature and Culture is now a section of ENGL 396)",null,"Y",{"$nulls":4},"Y-FL"]
[3,"ARAB 58700 - Modern Arab Thought",null,"Y",{"$nulls":4},"Y-FL"]
[null,"ASAM | Any Asian American Studies (ASAM) course may be a humanities selection",null,"Y"]
[{"$f":"HYPERLINK( CONCATENATE(\"https://selfservice.mypurdue.purdue.edu/prod/bzwsrch.p_catalog_detail?subject=\",LEFT(B77, SEARCH(\" \",B77,1)-1),\"&cnbr=\",MID(B77, 1+SEARCH(\" \",B77,SEARCH(\" \",B77,1)),5)), 3 )","v":3},"ASAM 24000 - Introduction to Asian American Studies",null,"Y","Y"]
[3,"ASEC 28500 - Introduction To Publication Design","Y"]
[{"$f":"HYPERLINK( CONCATENATE(\"https://selfservice.mypurdue.purdue.edu/prod/bzwsrch.p_catalog_detail?subject=\",LEFT(B79, SEARCH(\" \",B79,1)-1),\"&cnbr=\",MID(B79, 1+SEARCH(\" \",B79,SEARCH(\" \",B79,1)),5)), 3 )","v":3},"ASEC 30100 - Building Intercultural Partnerships",null,"Y",{"$nulls":4},"Y"]
[3,"ASEC 33100 - The Role of Horses In Human History, Culture And Society",null,"Y","Y",{"$nulls":3},"Y"]
[3,"ASEC 35500 - Controversial Science And Media In The Public Sphere",null,"Y",null,null,"Y"]
[3,"ASEC 43100 - Planning For International Engagement Methods",{"$nulls":6},"Y"]
[{"$f":"HYPERLINK( CONCATENATE(\"https://selfservice.mypurdue.purdue.edu/prod/bzwsrch.p_catalog_detail?subject=\",LEFT(B83, SEARCH(\" \",B83,1)-1),\"&cnbr=\",MID(B83, 1+SEARCH(\" \",B83,SEARCH(\" \",B83,1)),5)), 3 )","v":3},"ASEC 43110 - International Engagment Methods",{"$nulls":6},"Y"]
[3,"ASEC 43120 - Evaluating International Engagement Methods",{"$nulls":6},"Y"]
[{"$f":"HYPERLINK( CONCATENATE(\"https://selfservice.mypurdue.purdue.edu/prod/bzwsrch.p_catalog_detail?subject=\",LEFT(B85, SEARCH(\" \",B85,1)-1),\"&cnbr=\",MID(B85, 1+SEARCH(\" \",B85,SEARCH(\" \",B85,1)),5)), 3 )","v":3},"ASEC 44000 - Methods of Teaching Agricultural Education","Y"]
[{"$f":"HYPERLINK( CONCATENATE(\"https://selfservice.mypurdue.purdue.edu/prod/bzwsrch.p_catalog_detail?subject=\",LEFT(B86, SEARCH(\" \",B86,1)-1),\"&cnbr=\",MID(B86, 1+SEARCH(\" \",B86,SEARCH(\" \",B86,1)),5)), 3 )","v":3},"ASEC 48500 - Environmental Communication","Y"]
[{"$f":"HYPERLINK( CONCATENATE(\"https://selfservice.mypurdue.purdue.edu/prod/bzwsrch.p_catalog_detail?subject=\",LEFT(B87, SEARCH(\" \",B87,1)-1),\"&cnbr=\",MID(B87, 1+SEARCH(\" \",B87,SEARCH(\" \",B87,1)),5)), 3 )","v":3},"ASEC 53100 - Global Learning for Agriculture, Food and Natural Resources",{"$nulls":6},"Y"]
[{"$f":"HYPERLINK( CONCATENATE(\"https://selfservice.mypurdue.purdue.edu/prod/bzwsrch.p_catalog_detail?subject=\",LEFT(B88, SEARCH(\" \",B88,1)-1),\"&cnbr=\",MID(B88, 1+SEARCH(\" \",B88,SEARCH(\" \",B88,1)),5)), 3 )","v":3},"ASEC 55100 - International Engagment and Development Strategies",{"$nulls":6},"Y"]
[null,"ASL | Any American Sign Language (ASL) course may be a communications OR Humanites/Social Science selection","Y","Y",null,"Y"]
[3,"ASL 10100 - American Sign Language I","Y",null,"Y"]
[3,"ASL 10200 - American Sign Language II","Y",null,"Y"]
[3,"ASL 20100 - American Sign Language III","Y",null,"Y"]
[3,"ASL 20200 - American Sign Language IV","Y",null,"Y"]
[null,"BAND | Up to 3 credits of BAND may be used to fulfill humanities requirements",null,"Y"]
[{"$f":"HYPERLINK( CONCATENATE(\"https://selfservice.mypurdue.purdue.edu/prod/bzwsrch.p_catalog_detail?subject=\",LEFT(B95, SEARCH(\" \",B95,1)-1),\"&cnbr=\",MID(B95, 1+SEARCH(\" \",B95,SEARCH(\" \",B95,1)),5)), 2 )","v":2},"BCHM 10000 - Intro to Biochemistry",{"$nulls":4},"Y"]
[{"$f":"HYPERLINK( CONCATENATE(\"https://selfservice.mypurdue.purdue.edu/prod/bzwsrch.p_catalog_detail?subject=\",LEFT(B96, SEARCH(\" \",B96,1)-1),\"&cnbr=\",MID(B96, 1+SEARCH(\" \",B96,SEARCH(\" \",B96,1)),5)), 3 )","v":3},"BCM 10001 - Introduction to Contruction Management",{"$nulls":4},"Y"]
[{"$f":"HYPERLINK( CONCATENATE(\"https://selfservice.mypurdue.purdue.edu/prod/bzwsrch.p_catalog_detail?subject=\",LEFT(B97, SEARCH(\" \",B97,1)-1),\"&cnbr=\",MID(B97, 1+SEARCH(\" \",B97,SEARCH(\" \",B97,1)),5)), 2 )","v":2},"BIOL 12100 - Biology I: Diversity, Ecology, & Behavior",{"$nulls":4},"Y"]
[3,"BIOL 31200 - Great Issues: Genomics and Society ( Applicable for STS Fall 2015 and earlier)",{"$nulls":4},"Y"]
[3,"BTNY 21100 - Plants and the Environment",{"$nulls":4},"Y"]
[{"$f":"HYPERLINK( CONCATENATE(\"https://selfservice.mypurdue.purdue.edu/prod/bzwsrch.p_catalog_detail?subject=\",LEFT(B100, SEARCH(\" \",B100,1)-1),\"&cnbr=\",MID(B100, 1+SEARCH(\" \",B100,SEARCH(\" \",B100,1)),5)), 3 )","v":3},"BTNY 28500 - Plants and Civilization",{"$nulls":4},"Y",null,"Y"]
[{"$f":"HYPERLINK( CONCATENATE(\"https://selfservice.mypurdue.purdue.edu/prod/bzwsrch.p_catalog_detail?subject=\",LEFT(B101, SEARCH(\" \",B101,1)-1),\"&cnbr=\",MID(B101, 1+SEARCH(\" \",B101,SEARCH(\" \",B101,1)),5)), 3 )","v":3},"BTNY 43100 - Planning for International Engagment",{"$nulls":6},"Y"]
[{"$f":"HYPERLINK( CONCATENATE(\"https://selfservice.mypurdue.purdue.edu/prod/bzwsrch.p_catalog_detail?subject=\",LEFT(B102, SEARCH(\" \",B102,1)-1),\"&cnbr=\",MID(B102, 1+SEARCH(\" \",B102,SEARCH(\" \",B102,1)),5)), 3 )","v":3},"BTNY 43110 - International Engagement Methods",{"$nulls":6},"Y"]
[{"$f":"HYPERLINK( CONCATENATE(\"https://selfservice.mypurdue.purdue.edu/prod/bzwsrch.p_catalog_detail?subject=\",LEFT(B103, SEARCH(\" \",B103,1)-1),\"&cnbr=\",MID(B103, 1+SEARCH(\" \",B103,SEARCH(\" \",B103,1)),5)), 3 )","v":3},"BTNY 43120 - Evaluating International Engagement Methods",{"$nulls":6},"Y"]
[null,"CHNS | Any Chinese (CHNS) course (language or culture and literature) may be a humanities selection.  Any CHNS course may be an international understanding selection. ",null,"Y",{"$nulls":4},"Y-FL"]
[{"$f":"HYPERLINK( CONCATENATE(\"https://selfservice.mypurdue.purdue.edu/prod/bzwsrch.p_catalog_detail?subject=\",LEFT(B105, SEARCH(\" \",B105,1)-1),\"&cnbr=\",MID(B105, 1+SEARCH(\" \",B105,SEARCH(\" \",B105,1)),5)), 4 )","v":4},"CHNS 10100 - Chinese Level I",null,"Y","Y",{"$nulls":3},"Y-FL"]
[{"$f":"HYPERLINK( CONCATENATE(\"https://selfservice.mypurdue.purdue.edu/prod/bzwsrch.p_catalog_detail?subject=\",LEFT(B106, SEARCH(\" \",B106,1)-1),\"&cnbr=\",MID(B106, 1+SEARCH(\" \",B106,SEARCH(\" \",B106,1)),5)), 4 )","v":4},"CHNS 10200 - Chinese Level II",null,"Y","Y",{"$nulls":3},"Y-FL"]
[{"$f":"HYPERLINK( CONCATENATE(\"https://selfservice.mypurdue.purdue.edu/prod/bzwsrch.p_catalog_detail?subject=\",LEFT(B107, SEARCH(\" \",B107,1)-1),\"&cnbr=\",MID(B107, 1+SEARCH(\" \",B107,SEARCH(\" \",B107,1)),5)), 4 )","v":4},"CHNS 20100 - Chinese Level III",null,"Y","Y",{"$nulls":3},"Y-FL"]
[{"$f":"HYPERLINK( CONCATENATE(\"https://selfservice.mypurdue.purdue.edu/prod/bzwsrch.p_catalog_detail?subject=\",LEFT(B108, SEARCH(\" \",B108,1)-1),\"&cnbr=\",MID(B108, 1+SEARCH(\" \",B108,SEARCH(\" \",B108,1)),5)), 4 )","v":4},"CHNS 20200- Chinese Level IV",null,"Y","Y",{"$nulls":3},"Y-FL"]
[3,"CHNS 23000 - Chinese Literature in Translation",null,"Y",{"$nulls":4},"Y-FL"]
[3,"CHNS 24100 - Introduction to the Study of Chinese Literature",null,"Y","Y",{"$nulls":3},"Y-FL"]
[3,"CHNS 28000 - Topics in Chinese Civilization and Culture",null,"Y","Y",{"$nulls":3},"Y-FL"]
[{"$f":"HYPERLINK( CONCATENATE(\"https://selfservice.mypurdue.purdue.edu/prod/bzwsrch.p_catalog_detail?subject=\",LEFT(B112, SEARCH(\" \",B112,1)-1),\"&cnbr=\",MID(B112, 1+SEARCH(\" \",B112,SEARCH(\" \",B112,1)),5)), 1 )","v":1},"CHNS 28500 - Chinese Calligraphy",null,"Y",{"$nulls":4},"Y-FL"]
[3,"CHNS 30100 - Chinese Level V",null,"Y","Y",{"$nulls":3},"Y-FL"]
[3,"CHNS 30200 - Chinese Level VI",null,"Y","Y",{"$nulls":3},"Y-FL"]
[3,"CHNS 33000 - Introduction to Chinese Cinema",null,"Y","Y",{"$nulls":3},"Y-FL"]
[3,"CHNS 40100 - Chinese Level VII",null,"Y","Y",{"$nulls":3},"Y-FL"]
[3,"CHNS 40200 - Chinese Level VIII",null,"Y","Y",{"$nulls":3},"Y-FL"]
[null,"CLCS | Any Classics (CLCS) course may be a humanities selection.  Any CLCS course may be an international understanding selection.",null,"Y",{"$nulls":4},"Y"]
[3,"CLCS 23010 - Survey of Greet Literature in Translation",null,"Y","Y",{"$nulls":3},"Y"]
[3,"CLCS 23100 - Survey of Latin Literature",null,"Y","Y",{"$nulls":3},"Y"]
[3,"CLCS 23200 - Classical Roots of English Words",null,"Y","Y",{"$nulls":3},"Y"]
[3,"CLCS 23300 - Comparative Mythology",null,"Y","Y",{"$nulls":3},"Y"]
[3,"CLCS 23500 - Intro to Classical Mythology",null,"Y","Y",{"$nulls":3},"Y"]
[3,"CLCS 23700 - Gender & Sexuality in Greek and Roman Antiquity",null,"Y","Y",{"$nulls":3},"Y"]
[3,"CLCS 23800 - The Tragic Vision",null,"Y","Y",{"$nulls":3},"Y"]
[3,"CLCS 23900 - The Comic Vision",null,"Y","Y",{"$nulls":3},"Y"]
[3,"CLCS 33900 - Literature and the Law",null,"Y","Y",{"$nulls":3},"Y"]
[3,"CLCS 38000 - Alexander the Great & Hellenistic World",null,null,"Y",{"$nulls":3},"Y"]
[null,"CMPL | Any Comparative Literature (CMPL) course may be a humanities selection",null,"Y"]
[3,"CMPL 26600 - Intro to World Lit Beg - 1600",null,"Y","Y"]
[3,"CMPL 26700 - World Literature: From 1700 AD to the Present",null,"Y","Y"]
[null,"COM | Any Communications (COM) course above 200000 may be a communication selection","Y"]
[3,"COM 22400 - Communicating in the Global Workplace","Y",{"$nulls":5},"Y"]
[3,"COM 25100 - Communication, Information and Society","Y",{"$nulls":3},"Y"]
[3,"COM 30300 - Intercultural Communication","Y"]
[3,"COM 32800 - Diversity at Work: A Rhetorical Approach","Y"]
[3,"COM 36800 - Sociolinguistic Study of African American English","Y"]
[3,"COM 37600 - Communication and Gender","Y"]
[3,"COM 38100 - Gender and Feminist Studies in Communication","Y"]
[{"$f":"HYPERLINK( CONCATENATE(\"https://selfservice.mypurdue.purdue.edu/prod/bzwsrch.p_catalog_detail?subject=\",LEFT(B140, SEARCH(\" \",B140,1)-1),\"&cnbr=\",MID(B140, 1+SEARCH(\" \",B140,SEARCH(\" \",B140,1)),5)), 3 )","v":3},"CS 10100 - Digital Literacy",{"$nulls":4},"Y"]
[null,"DANC | Any Dance (DANC) course may be a humanities selection",null,"Y"]
[3,"DANC 25000 - Dance Appreciation",null,"Y","Y"]
[{"$f":"HYPERLINK( CONCATENATE(\"https://selfservice.mypurdue.purdue.edu/prod/bzwsrch.p_catalog_detail?subject=\",LEFT(B143, SEARCH(\" \",B143,1)-1),\"&cnbr=\",MID(B143, 1+SEARCH(\" \",B143,SEARCH(\" \",B143,1)),5)), 3 )","v":3},"DANC 37800 - Survey of Concert Dance History",null,null,"Y"]
[3,"EAPS 10000 - Planet Earth",{"$nulls":4},"Y"]
[3,"EAPS 10400 - Oceanography",{"$nulls":4},"Y"]
[3,"EAPS 10600 - Geosciences in the Cinema",{"$nulls":4},"Y"]
[3,"EAPS 12000 - Introduction to Geography",{"$nulls":4},"Y"]
[{"$f":"HYPERLINK( CONCATENATE(\"https://selfservice.mypurdue.purdue.edu/prod/bzwsrch.p_catalog_detail?subject=\",LEFT(B148, SEARCH(\" \",B148,1)-1),\"&cnbr=\",MID(B148, 1+SEARCH(\" \",B148,SEARCH(\" \",B148,1)),5)), 3 )","v":3},"EAPS 12500 - Environmental Science and Conservation",{"$nulls":4},"Y"]
[{"$f":"HYPERLINK( CONCATENATE(\"https://selfservice.mypurdue.purdue.edu/prod/bzwsrch.p_catalog_detail?subject=\",LEFT(B149, SEARCH(\" \",B149,1)-1),\"&cnbr=\",MID(B149, 1+SEARCH(\" \",B149,SEARCH(\" \",B149,1)),5)), 3 )","v":3},"EAPS 12900 - Earth System Dynamics",{"$nulls":4},"Y"]
[{"$f":"HYPERLINK( CONCATENATE(\"https://selfservice.mypurdue.purdue.edu/prod/bzwsrch.p_catalog_detail?subject=\",LEFT(B150, SEARCH(\" \",B150,1)-1),\"&cnbr=\",MID(B150, 1+SEARCH(\" \",B150,SEARCH(\" \",B150,1)),5)), 3 )","v":3},"EAPS 20000 - Water World: Processes and Challenges in Global Hydrology"]
[null,"ECON | Any Economics (ECON) course may be a social science selection",null,"Y",null,"Y"]
[3,"ECON 21000 - Principles of Economics",null,"Y",null,"Y"]
[3,"ECON 25100 - Microeconomics",null,"Y",null,"Y"]
[3,"ECON 25200 - Macroeconomics",null,"Y",null,"Y"]
[3,"ECON 37000 - International Trade",null,"Y",null,"Y",null,null,"Y"]
[3,"ECON 46600 - International Economics",null,"Y",null,"Y",null,null,"Y"]
[3,"EDCI 28500 - Multiculturalism and Education",{"$nulls":7},"Y"]
[3,"EDPS 23500 - Learning And Motivation ",null,"Y",null,"Y"]
[3,"EDPS 26500 - The Inclusive Classroom",null,"Y",null,"Y"]
[{"$f":"HYPERLINK( CONCATENATE(\"https://selfservice.mypurdue.purdue.edu/prod/bzwsrch.p_catalog_detail?subject=\",LEFT(B160, SEARCH(\" \",B160,1)-1),\"&cnbr=\",MID(B160, 1+SEARCH(\" \",B160,SEARCH(\" \",B160,1)),5)), 3 )","v":3},"EDPS 31500 - Collaborative Leadership: Interpersonal Skills","Y"]
[{"$f":"HYPERLINK( CONCATENATE(\"https://selfservice.mypurdue.purdue.edu/prod/bzwsrch.p_catalog_detail?subject=\",LEFT(B161, SEARCH(\" \",B161,1)-1),\"&cnbr=\",MID(B161, 1+SEARCH(\" \",B161,SEARCH(\" \",B161,1)),5)), 3 )","v":3},"EDPS 31600 - Collaborative Leadership: Cross-Cultural Settings","Y",{"$nulls":6},"Y"]
[3,"EDST 20000 - History And Philosophy Of Education",null,"Y","Y"]
[{"$f":"HYPERLINK( CONCATENATE(\"https://selfservice.mypurdue.purdue.edu/prod/bzwsrch.p_catalog_detail?subject=\",LEFT(B163, SEARCH(\" \",B163,1)-1),\"&cnbr=\",MID(B163, 1+SEARCH(\" \",B163,SEARCH(\" \",B163,1)),5)), 3 )","v":3},"EEE 35500 - Engineering Environmental Sustainability",{"$nulls":4},"Y"]
[null,"ENGL | Any English (ENGL) course above 20000 may be a communication selection","Y"]
[{"$f":"HYPERLINK( CONCATENATE(\"https://selfservice.mypurdue.purdue.edu/prod/bzwsrch.p_catalog_detail?subject=\",LEFT(B165, SEARCH(\" \",B165,1)-1),\"&cnbr=\",MID(B165, 1+SEARCH(\" \",B165,SEARCH(\" \",B165,1)),5)), 3 )","v":3},"ENGL 11000 - American Language and Culture for International Students I",null,"Y","Y"]
[3,"ENGL 20200 - Engaging English","Y",null,"Y"]
[3,"ENGL 21700 - Figures of Myth and Legend I: Monsters",null,null,"Y"]
[3,"ENGL 21800 - Figures of Myth and Legend II: Heros and Villains",null,null,"Y"]
[3,"ENGL 21900 - Figures of Myth and Legend III: Magic and Marvels",null,null,"Y"]
[3,"ENGL 22300 - Literature and Technology","Y",null,"Y",null,"Y"]
[3,"ENGL 22500 - Literature, Inequality, and Injustice","Y",null,"Y"]
[3,"ENGL 22600 - Narrative Medicine","Y",{"$nulls":3},"Y"]
[3,"ENGL 22700 -Elements Of Linguistics","Y","Y"]
[3,"ENGL 23000 - Great Narrative Works","Y","Y","Y"]
[3,"ENGL 23100 - Introduction To Literature","Y","Y"]
[3,"ENGL 23200 - Thematic Studies In Literature","Y","Y"]
[3,"ENGL 23400 - Ecological Literature","Y",{"$nulls":3},"Y"]
[3,"ENGL 23500 - Introduction To Drama","Y","Y"]
[3,"ENGL 23700 - Introduction To Poetry","Y","Y","Y"]
[3,"ENGL 23800 - Introduction To Fiction","Y","Y","Y"]
[3,"ENGL 23900 - Introduction To Biography","Y","Y"]
[3,"ENGL 24000 - Survey of the British Literature: From the Beginnings Through the Neoclassical Period","Y","Y","Y"]
[3,"ENGL 24100 - Survey Of The British Literature: From The Rise Of Romanticism To The Modern Period ","Y","Y","Y"]
[3,"ENGL 25000 - Great American Books","Y","Y","Y"]
[3,"ENGL 25700 - Literature of Black America","Y","Y"]
[3,"ENGL 26200 - Greek And Roman Classics In Translation","Y","Y"]
[3,"ENGL 26400 - The Bible As Literature","Y","Y","Y"]
[3,"ENGL 26600 - World Literature: From the Beginnings to 1700 A.D.","Y","Y",{"$nulls":4},"Y"]
[3,"ENGL 26700 - World Literature: From 1700 A.D. to the Present","Y","Y","Y",{"$nulls":3},"Y"]
[3,"ENGL 27600 - Shakespeare On Film","Y","Y","Y"]
[3,"ENGL 27900 - The American Short Story In Print And Film","Y","Y"]
[3,"ENGL 28600 - The Movies ","Y",null,"Y"]
[3,"ENGL 32200 - Word, Image, Media","Y",null,"Y"]
[3,"ENGL 33100 - Medieval English Literature","Y","Y"]
[3,"ENGL 33300 - Renaissance English Literature","Y","Y"]
[3,"ENGL 33500 - Restoration And Eighteenth-Century English Literature","Y","Y"]
[3,"ENGL 33700 - Nineteenth-Century English Literature","Y","Y"]
[3,"ENGL 35000 - Survey Of American Literature From Its Beginnings To 1865","Y","Y","Y"]
[3,"ENGL 35100 - Survey Of American Literature From 1865 To The Post-World War II Period","Y","Y","Y"]
[3,"ENGL 35400 - Asian American Literature","Y"]
[3,"ENGL 35600 - American Humor","Y","Y"]
[3,"ENGL 35800 - Black Drama","Y","Y"]
[3,"ENGL 36000 - Gender and Literature","Y","Y","Y"]
[3,"ENGL 36500 - Literature and Imperialism","Y",null,"Y"]
[3,"ENGL 36700 - Mystery and Detective Fiction","Y",null,"Y"]
[3,"ENGL 37200 - American Folklore","Y","Y"]
[3,"ENGL 37300 - Science Fiction And Fantasy","Y","Y","Y"]
[3,"ENGL 37500 - British Drama To 1800, Exclusive Of Shakespeare","Y","Y"]
[3,"ENGL 37700 - Major Modern Poetry","Y","Y"]
[3,"ENGL 37900 - The Short Story","Y","Y"]
[3,"ENGL 38100 - The British Novel","Y","Y","Y"]
[3,"ENGL 38200 - The American Novel","Y","Y","Y"]
[3,"ENGL 38300 - Modern Drama: Ibsen To The Absurdists","Y","Y"]
[3,"ENGL 38600 - History Of The Film To 1938","Y","Y"]
[3,"ENGL 38700 - History Of The Film From 1938 To The Present","Y","Y"]
[3,"ENGL 38900 - Literature for Children","Y",null,"Y"]
[3,"ENGL 39600 - Studies In Literature And Language","Y","Y"]
[3,"ENGL 41100 - Studies In Major Authors","Y","Y"]
[3,"ENGL 41200 - Studies In Genre","Y","Y"]
[3,"ENGL 41300 - Studies In Literature And History","Y","Y"]
[3,"ENGL 41400 - Studies In Literature And Culture","Y","Y"]
[3,"ENGL 44100 - Chaucer's Canterbury Tales","Y","Y"]
[3,"ENGL 44200 - Shakespeare","Y","Y"]
[3,"ENGL 44400 - Milton","Y","Y"]
[3,"ENGL 46200 - The Bible As Literature: The Old Testament","Y","Y"]
[3,"ENGL 46300 - The Bible As Literature: The New Testament","Y","Y"]
[3,"ENGL 46800 - Problems In The History Of Criticism","Y","Y"]
[{"$f":"HYPERLINK( CONCATENATE(\"https://selfservice.mypurdue.purdue.edu/prod/bzwsrch.p_catalog_detail?subject=\",LEFT(B228, SEARCH(\" \",B228,1)-1),\"&cnbr=\",MID(B228, 1+SEARCH(\" \",B228,SEARCH(\" \",B228,1)),5)), 3 )","v":3},"ENGL 46900 - Issues In Contemporary Criticism And Theory","Y","Y"]
[3,"ENGL 49200 - Literature In The Secondary Schools","Y","Y"]
[{"$f":"HYPERLINK( CONCATENATE(\"https://selfservice.mypurdue.purdue.edu/prod/bzwsrch.p_catalog_detail?subject=\",LEFT(B230, SEARCH(\" \",B230,1)-1),\"&cnbr=\",MID(B230, 1+SEARCH(\" \",B230,SEARCH(\" \",B230,1)),5)), 3 )","v":3},"ENGR 31000 - Engineering in the Global Context",{"$nulls":4},"Y"]
[3,"ENTM 10500 - Insects: Friends and Foe",{"$nulls":4},"Y"]
[3,"ENTM 12800 - Investigating Forensic Science",{"$nulls":4},"Y"]
[3,"ENTM 20100 - Scientific and Technical Communication","Y"]
[{"$f":"HYPERLINK( CONCATENATE(\"https://selfservice.mypurdue.purdue.edu/prod/bzwsrch.p_catalog_detail?subject=\",LEFT(B234, SEARCH(\" \",B234,1)-1),\"&cnbr=\",MID(B234, 1+SEARCH(\" \",B234,SEARCH(\" \",B234,1)),5)), 1 )","v":1},"EPCS 10100 - First Year Participation in EPICS",{"$nulls":4},"Y"]
[{"$f":"HYPERLINK( CONCATENATE(\"https://selfservice.mypurdue.purdue.edu/prod/bzwsrch.p_catalog_detail?subject=\",LEFT(B235, SEARCH(\" \",B235,1)-1),\"&cnbr=\",MID(B235, 1+SEARCH(\" \",B235,SEARCH(\" \",B235,1)),5)), 2 )","v":2},"EPCS 10200 - First Year Participation in EPICS",{"$nulls":4},"Y"]
[{"$f":"HYPERLINK( CONCATENATE(\"https://selfservice.mypurdue.purdue.edu/prod/bzwsrch.p_catalog_detail?subject=\",LEFT(B236, SEARCH(\" \",B236,1)-1),\"&cnbr=\",MID(B236, 1+SEARCH(\" \",B236,SEARCH(\" \",B236,1)),5)), 1 )","v":1},"EPCS 11100 - First Year Participation in EPICS I",{"$nulls":4},"Y"]
[{"$f":"HYPERLINK( CONCATENATE(\"https://selfservice.mypurdue.purdue.edu/prod/bzwsrch.p_catalog_detail?subject=\",LEFT(B237, SEARCH(\" \",B237,1)-1),\"&cnbr=\",MID(B237, 1+SEARCH(\" \",B237,SEARCH(\" \",B237,1)),5)), 1 )","v":1},"EPCS 12100 - First Year Participation in EPICS II",{"$nulls":4},"Y"]
[{"$f":"HYPERLINK( CONCATENATE(\"https://selfservice.mypurdue.purdue.edu/prod/bzwsrch.p_catalog_detail?subject=\",LEFT(B238, SEARCH(\" \",B238,1)-1),\"&cnbr=\",MID(B238, 1+SEARCH(\" \",B238,SEARCH(\" \",B238,1)),5)), 1 )","v":1},"EPCS 20100 - Sophomore Participation in EPICS",{"$nulls":4},"Y"]
[{"$f":"HYPERLINK( CONCATENATE(\"https://selfservice.mypurdue.purdue.edu/prod/bzwsrch.p_catalog_detail?subject=\",LEFT(B239, SEARCH(\" \",B239,1)-1),\"&cnbr=\",MID(B239, 1+SEARCH(\" \",B239,SEARCH(\" \",B239,1)),5)), 2 )","v":2},"EPCS 20200 - Sophomore Participation in EPICS",{"$nulls":4},"Y"]
[{"$f":"HYPERLINK( CONCATENATE(\"https://selfservice.mypurdue.purdue.edu/prod/bzwsrch.p_catalog_detail?subject=\",LEFT(B240, SEARCH(\" \",B240,1)-1),\"&cnbr=\",MID(B240, 1+SEARCH(\" \",B240,SEARCH(\" \",B240,1)),5)), 1 )","v":1},"EPCS 30100 - Junior Participation in EPICS",{"$nulls":4},"Y"]
[{"$f":"HYPERLINK( CONCATENATE(\"https://selfservice.mypurdue.purdue.edu/prod/bzwsrch.p_catalog_detail?subject=\",LEFT(B241, SEARCH(\" \",B241,1)-1),\"&cnbr=\",MID(B241, 1+SEARCH(\" \",B241,SEARCH(\" \",B241,1)),5)), 2 )","v":2},"EPCS 30200 - Junior Participation in EPICS",{"$nulls":4},"Y"]
[{"$f":"HYPERLINK( CONCATENATE(\"https://selfservice.mypurdue.purdue.edu/prod/bzwsrch.p_catalog_detail?subject=\",LEFT(B242, SEARCH(\" \",B242,1)-1),\"&cnbr=\",MID(B242, 1+SEARCH(\" \",B242,SEARCH(\" \",B242,1)),5)), 1 )","v":1},"EPCS 40100 - Senior Participation in EPICS",{"$nulls":4},"Y"]
[{"$f":"HYPERLINK( CONCATENATE(\"https://selfservice.mypurdue.purdue.edu/prod/bzwsrch.p_catalog_detail?subject=\",LEFT(B243, SEARCH(\" \",B243,1)-1),\"&cnbr=\",MID(B243, 1+SEARCH(\" \",B243,SEARCH(\" \",B243,1)),5)), 2 )","v":2},"EPCS 40200 - Senior Participation in EPICS",{"$nulls":4},"Y"]
[{"$f":"HYPERLINK( CONCATENATE(\"https://selfservice.mypurdue.purdue.edu/prod/bzwsrch.p_catalog_detail?subject=\",LEFT(B244, SEARCH(\" \",B244,1)-1),\"&cnbr=\",MID(B244, 1+SEARCH(\" \",B244,SEARCH(\" \",B244,1)),5)), 3 )","v":3},"FNR 12500 - Environmental Science and Conservation",{"$nulls":4},"Y"]
[3,"FNR 22310 - Introduction to Environmental Policy",{"$nulls":4},"Y"]
[3,"FNR 23000 - The World's Forests and Society",{"$nulls":4},"Y",null,"Y"]
[3,"FNR 24000 - Wildlife in America ",{"$nulls":4},"Y"]
[{"$f":"HYPERLINK( CONCATENATE(\"https://selfservice.mypurdue.purdue.edu/prod/bzwsrch.p_catalog_detail?subject=\",LEFT(B248, SEARCH(\" \",B248,1)-1),\"&cnbr=\",MID(B248, 1+SEARCH(\" \",B248,SEARCH(\" \",B248,1)),5)), 2 )","v":2},"FNR 30200 - Global Sustainability Issues",{"$nulls":6},"Y"]
[{"$f":"HYPERLINK( CONCATENATE(\"https://selfservice.mypurdue.purdue.edu/prod/bzwsrch.p_catalog_detail?subject=\",LEFT(B249, SEARCH(\" \",B249,1)-1),\"&cnbr=\",MID(B249, 1+SEARCH(\" \",B249,SEARCH(\" \",B249,1)),5)), 3 )","v":3},"FNR 37500- Human Dimensions of Natural Resource Management",null,"Y",null,"Y"]
[3,"FNR 46000 - International Natural Resources Summer Program",{"$nulls":6},"Y"]
[3,"FNR 48800 - Global Environmental Issues",{"$nulls":6},"Y"]
[null,"FR | Any French (FR) course (language or culture and literature) may be a humanities selection.  Any FR course may be an international understanding selection.",null,"Y",{"$nulls":4},"Y-FL"]
[3,"FR 10100 - French Level I",null,"Y","Y",{"$nulls":3},"Y-FL"]
[3,"FR 10200 - French Level II",null,"Y","Y",{"$nulls":3},"Y-FL"]
[4,"FR 10500 - Accelerated Basic French",null,"Y","Y",{"$nulls":3},"Y-FL"]
[3,"FR 20100 - French Level III",null,"Y","Y",{"$nulls":3},"Y-FL"]
[3,"FR 20200 - French Level IV",null,"Y","Y",{"$nulls":3},"Y-FL"]
[4,"FR 20500 - Accelerated Intermediate French",null,"Y","Y",{"$nulls":3},"Y-FL"]
[3,"FR 23000 - French Literature in Translation",null,"Y",{"$nulls":4},"Y-FL"]
[3,"FR 30100 - French Level V",null,"Y","Y",{"$nulls":3},"Y-FL"]
[3,"FR 30200 - French Level VI",null,"Y","Y",{"$nulls":3},"Y-FL"]
[3,"FR 33000 - French Cinema",null,"Y","Y",{"$nulls":3},"Y-FL"]
[3,"FR 40100 - French Level VII",null,"Y","Y",{"$nulls":3},"Y-FL"]
[3,"FR 40200 - French Level VIII",null,"Y","Y",{"$nulls":3},"Y-FL"]
[3,"FS 16100 - Science of Food (This course is no longer in the catalog)",{"$nulls":4},"Y"]
[null,"FVS | Any Film and Video Studies (FVS) course may be a humanities selection",null,"Y"]
[null,"GER | Any German (GER) course (language or culture and literature) may be a humanities selection.  Any GER course may be an international understanding selection. ",null,"Y",{"$nulls":4},"Y-FL"]
[3,"GER 10100 - German Level I",null,"Y","Y",{"$nulls":3},"Y-FL"]
[3,"GER 10200 - German Level II",null,"Y","Y",{"$nulls":3},"Y-FL"]
[4,"GER 10500 - Accelerated Basic German",null,"Y","Y",{"$nulls":3},"Y-FL"]
[3,"GER 20100 - German Level III",null,"Y","Y",{"$nulls":3},"Y-FL"]
[3,"GER 20200 - German Level IV",null,"Y","Y",{"$nulls":3},"Y-FL"]
[4,"GER 20500 - Accelerated Intermediate German",null,"Y","Y",{"$nulls":3},"Y-FL"]
[3,"GER 23000 - German Literature in Translation",null,"Y","Y",{"$nulls":3},"Y-FL"]
[3,"GER 28000 - German Special Topics",null,"Y",{"$nulls":4},"Y-FL"]
[3,"GER 30100 - German Level V",null,"Y","Y",{"$nulls":3},"Y-FL"]
[3,"GER 30200 - German Level VI",null,"Y","Y",{"$nulls":3},"Y-FL"]
[3,"GER 33000 - German Cinema ",null,"Y","Y",{"$nulls":3},"Y-FL"]
[3,"GER 40100 - German Level VII",null,"Y","Y",{"$nulls":3},"Y-FL"]
[3,"GER 40200 - German Level VIII",null,"Y","Y",{"$nulls":3},"Y-FL"]
[null,"GREK | Any Greek (GREK) course (language or culture and literature) may be a humanities selection.  Any GREK course may be an international understanding selection. ",null,"Y",{"$nulls":4},"Y-FL"]
[3,"GREK 10100 - Ancient Greek Level I",null,"Y","Y",{"$nulls":3},"Y-FL"]
[3,"GREK 10200 - Ancient Greek Level II",null,"Y","Y",{"$nulls":3},"Y-FL"]
[3,"GREK 20100 - Ancient Greek Level III",null,"Y","Y",{"$nulls":3},"Y-FL"]
[3,"GREK 20200 - Ancient Greek Level IV",null,"Y","Y",{"$nulls":3},"Y-FL"]
[3,"GSLA 30100 - Theories of Global Studies",null,null,"Y"]
[{"$f":"HYPERLINK( CONCATENATE(\"https://selfservice.mypurdue.purdue.edu/prod/bzwsrch.p_catalog_detail?subject=\",LEFT(B287, SEARCH(\" \",B287,1)-1),\"&cnbr=\",MID(B287, 1+SEARCH(\" \",B287,SEARCH(\" \",B287,1)),5)), 3 )","v":3},"HDFS 28000 - Diversity in Individual and Family Life",null,"Y"]
[null,"HEBR | Any Hebrew (HEBR) course (language or culture and literature) may be a humanities selection.  Any HEBR course may be an international understanding selection. ",null,"Y",{"$nulls":4},"Y-FL"]
[3,"HEBR 10100 - Modern Hebrew I",null,"Y","Y",{"$nulls":3},"Y-FL"]
[3,"HEBR 10200 - Modern Hebrew II",null,"Y","Y",{"$nulls":3},"Y-FL"]
[3,"HEBR 12100 - Biblical Hebrew Level I",null,"Y","Y",{"$nulls":3},"Y-FL"]
[3,"HEBR 12200 - Biblical Hebrew Level II",null,"Y","Y",{"$nulls":3},"Y-FL"]
[3,"HEBR 20100 - Modern Hebrew III",null,"Y","Y",{"$nulls":3},"Y-FL"]
[3,"HEBR 20200 - Modern Hebrew IV",null,"Y","Y",{"$nulls":3},"Y-FL"]
[3,"HEBR 22100 - Biblical Hebrew Level III",null,"Y","Y",{"$nulls":3},"Y-FL"]
[3,"HEBR 22200 - Biblical Hebrew Level IV",null,"Y","Y",{"$nulls":3},"Y-FL"]
[{"$f":"HYPERLINK( CONCATENATE(\"https://selfservice.mypurdue.purdue.edu/prod/bzwsrch.p_catalog_detail?subject=\",LEFT(B297, SEARCH(\" \",B297,1)-1),\"&cnbr=\",MID(B297, 1+SEARCH(\" \",B297,SEARCH(\" \",B297,1)),5)), 3 )","v":3},"HEBR 38000 - Israel and the Modern World",null,null,"Y",{"$nulls":3},"Y"]
[3,"HEBR 38500 - The Holocaust in Modern Hebrew Literature",null,"Y",{"$nulls":4},"Y"]
[null,"HIST | Any History (HIST) course may be a humanities selection",null,"Y"]
[3,"HIST 10300 - Intro to the Medieval World",null,"Y","Y"]
[3,"HIST 10400 - Intro to the Modern World",null,"Y","Y",{"$nulls":3},"Y"]
[3,"HIST 10500 - Survey of Global World ",null,"Y","Y",{"$nulls":3},"Y"]
[3,"HIST 15100 - American History to 1877",null,"Y","Y"]
[3,"HIST 15200 - United States since 1877",null,"Y","Y"]
[3,"HIST 21000 - The Making of Modern Africa",null,"Y","Y"]
[3,"HIST 21100 - The Global Field: World Soccer and Global History",null,"Y","Y"]
[{"$f":"HYPERLINK( CONCATENATE(\"https://selfservice.mypurdue.purdue.edu/prod/bzwsrch.p_catalog_detail?subject=\",LEFT(B307, SEARCH(\" \",B307,1)-1),\"&cnbr=\",MID(B307, 1+SEARCH(\" \",B307,SEARCH(\" \",B307,1)),5)), 3 )","v":3},"HIST 23005 - Hitler's Europe",{"$nulls":6},"Y"]
[3,"HIST 23800 - History of Russia from Medieval times to 1861",null,"Y","Y",{"$nulls":3},"Y"]
[3,"HIST 23900 - History of Russia from 1861 to the present",null,"Y","Y",{"$nulls":3},"Y"]
[3,"HIST 24000 - East Asia and Its Historic Transition",null,"Y","Y",{"$nulls":3},"Y"]
[3,"HIST 24100 - East Asia and the Modern World",null,"Y","Y",{"$nulls":3},"Y"]
[3,"HIST 24300 - South Asian History and Civilizations",null,"Y","Y",{"$nulls":3},"Y"]
[3,"HIST 24500 - Intro to Middle East History and Culture",null,"Y","Y",{"$nulls":3},"Y"]
[3,"HIST 24600 - Modern Middle East and North Africa",null,"Y","Y",{"$nulls":3},"Y"]
[3,"HIST 25000 - U.S. Relations with the Middle East & No. Africa",null,"Y","Y"]
[3,"HIST 27100 - Introduction To Colonial Latin American History (1492-1810)",null,"Y","Y",{"$nulls":3},"Y"]
[{"$f":"HYPERLINK( CONCATENATE(\"https://selfservice.mypurdue.purdue.edu/prod/bzwsrch.p_catalog_detail?subject=\",LEFT(B317, SEARCH(\" \",B317,1)-1),\"&cnbr=\",MID(B317, 1+SEARCH(\" \",B317,SEARCH(\" \",B317,1)),5)), 3 )","v":3},"HIST 27200 - Introduction To Modern Latin American History (1810 To The Present)",null,"Y","Y",{"$nulls":3},"Y"]
[3,"HIST 29000 - Russia: Yesterday, Today, and Tomorrow",null,"Y",{"$nulls":4},"Y"]
[3,"HIST 30000 - Eve of Destruction: Global Crisis and World Organization in the 20th Century",null,"Y","Y",{"$nulls":3},"Y"]
[3,"HIST 30200 - History of Horticulture",null,"Y",{"$nulls":4},"Y"]
[3,"HIST 30305 - Food in Modern America",null,"Y","Y",null,"Y"]
[3,"HIST 30400 - America in the 1960s",null,"Y","Y"]
[3,"HIST 30505 - The U.S. in the World 1898-present",null,"Y","Y"]
[3,"HIST 31005 - The Civil War and Reconstruction, 1850-1877",null,"Y","Y"]
[3,"HIST 31405 - Science, Technology, Engineering and Mathematics (STEM) and Gender",null,"Y","Y",null,"Y"]
[3,"HIST 31505 - American Beauty",null,"Y","Y"]
[{"$f":"HYPERLINK( CONCATENATE(\"https://selfservice.mypurdue.purdue.edu/prod/bzwsrch.p_catalog_detail?subject=\",LEFT(B327, SEARCH(\" \",B327,1)-1),\"&cnbr=\",MID(B327, 1+SEARCH(\" \",B327,SEARCH(\" \",B327,1)),5)), 3 )","v":3},"HIST 31905 - Christianity in the Global Age",{"$nulls":6},"Y"]
[3,"HIST 32300 - German History",null,"Y","Y",{"$nulls":3},"Y"]
[3,"HIST 32400 - Modern France",null,"Y","Y",{"$nulls":3},"Y"]
[3,"HIST 32900 - History of Women in Modern Europe",null,"Y","Y"]
[{"$f":"HYPERLINK( CONCATENATE(\"https://selfservice.mypurdue.purdue.edu/prod/bzwsrch.p_catalog_detail?subject=\",LEFT(B331, SEARCH(\" \",B331,1)-1),\"&cnbr=\",MID(B331, 1+SEARCH(\" \",B331,SEARCH(\" \",B331,1)),5)), 3 )","v":3},"HIST 33300 - Science and Society in Western Civilization I",null,null,"Y",null,"Y"]
[{"$f":"HYPERLINK( CONCATENATE(\"https://selfservice.mypurdue.purdue.edu/prod/bzwsrch.p_catalog_detail?subject=\",LEFT(B332, SEARCH(\" \",B332,1)-1),\"&cnbr=\",MID(B332, 1+SEARCH(\" \",B332,SEARCH(\" \",B332,1)),5)), 3 )","v":3},"HIST 33400 - Science and Society in Western Civilization II",null,null,"Y",null,"Y"]
[{"$f":"HYPERLINK( CONCATENATE(\"https://selfservice.mypurdue.purdue.edu/prod/bzwsrch.p_catalog_detail?subject=\",LEFT(B333, SEARCH(\" \",B333,1)-1),\"&cnbr=\",MID(B333, 1+SEARCH(\" \",B333,SEARCH(\" \",B333,1)),5)), 3 )","v":3},"HIST 33700 - Europe Since 1945: Cold War, Fractious Unity",{"$nulls":6},"Y"]
[3,"HIST 33805 - History of Human Rights",null,"Y","Y"]
[3,"HIST 34000 - Modern China",null,"Y","Y",{"$nulls":3},"Y"]
[3,"HIST 34100 - History of Africa South of the Sahara",null,"Y","Y",{"$nulls":3},"Y"]
[3,"HIST 34200 - Africa and the West",null,"Y",{"$nulls":4},"Y"]
[3,"HIST 34300 - Traditional Japan",null,"Y","Y",{"$nulls":3},"Y"]
[3,"HIST 34400 - History of Modern Japan",null,"Y","Y",{"$nulls":3},"Y"]
[3,"HIST 34901 - The First World War",null,"Y","Y"]
[{"$f":"HYPERLINK( CONCATENATE(\"https://selfservice.mypurdue.purdue.edu/prod/bzwsrch.p_catalog_detail?subject=\",LEFT(B341, SEARCH(\" \",B341,1)-1),\"&cnbr=\",MID(B341, 1+SEARCH(\" \",B341,SEARCH(\" \",B341,1)),5)), 3 )","v":3},"HIST 35000 - Science & Society in the Twentieth Century World",null,null,"Y",null,"Y"]
[3,"HIST 35100 - The Second World War",null,"Y","Y",{"$nulls":3},"Y"]
[{"$f":"HYPERLINK( CONCATENATE(\"https://selfservice.mypurdue.purdue.edu/prod/bzwsrch.p_catalog_detail?subject=\",LEFT(B343, SEARCH(\" \",B343,1)-1),\"&cnbr=\",MID(B343, 1+SEARCH(\" \",B343,SEARCH(\" \",B343,1)),5)), 3 )","v":3},"HIST 35205 - Death, Disease And Medicine In Twentieth Century American History",null,null,"Y",null,"Y"]
[{"$f":"HYPERLINK( CONCATENATE(\"https://selfservice.mypurdue.purdue.edu/prod/bzwsrch.p_catalog_detail?subject=\",LEFT(B344, SEARCH(\" \",B344,1)-1),\"&cnbr=\",MID(B344, 1+SEARCH(\" \",B344,SEARCH(\" \",B344,1)),5)), 3 )","v":3},"HIST 35400 - Women in America to 1870",null,"Y","Y"]
[3,"HIST 35500 - History Of American Military Affairs",null,null,"Y"]
[3,"HIST 35900 - Gender in East Asian History",null,"Y","Y"]
[3,"HIST 36305 - The History of Medicine and Public Health",null,"Y","Y",null,"Y"]
[{"$f":"HYPERLINK( CONCATENATE(\"https://selfservice.mypurdue.purdue.edu/prod/bzwsrch.p_catalog_detail?subject=\",LEFT(B348, SEARCH(\" \",B348,1)-1),\"&cnbr=\",MID(B348, 1+SEARCH(\" \",B348,SEARCH(\" \",B348,1)),5)), 3 )","v":3},"HIST 36500 - Women in America",null,"Y"]
[{"$f":"HYPERLINK( CONCATENATE(\"https://selfservice.mypurdue.purdue.edu/prod/bzwsrch.p_catalog_detail?subject=\",LEFT(B349, SEARCH(\" \",B349,1)-1),\"&cnbr=\",MID(B349, 1+SEARCH(\" \",B349,SEARCH(\" \",B349,1)),5)), 3 )","v":3},"HIST 36600 - Hispanic Heritage of the United States",null,"Y"]
[{"$f":"HYPERLINK( CONCATENATE(\"https://selfservice.mypurdue.purdue.edu/prod/bzwsrch.p_catalog_detail?subject=\",LEFT(B350, SEARCH(\" \",B350,1)-1),\"&cnbr=\",MID(B350, 1+SEARCH(\" \",B350,SEARCH(\" \",B350,1)),5)), 3 )","v":3},"HIST 37005 - Queens and Empressions in Early Modern Europe",{"$nulls":6},"Y"]
[3,"HIST 37100 - Society, Culture, and Rock and Roll",null,"Y","Y"]
[{"$f":"HYPERLINK( CONCATENATE(\"https://selfservice.mypurdue.purdue.edu/prod/bzwsrch.p_catalog_detail?subject=\",LEFT(B352, SEARCH(\" \",B352,1)-1),\"&cnbr=\",MID(B352, 1+SEARCH(\" \",B352,SEARCH(\" \",B352,1)),5)), 3 )","v":3},"HIST 37500 - Womein in America Since 1870",null,"Y","Y"]
[{"$f":"HYPERLINK( CONCATENATE(\"https://selfservice.mypurdue.purdue.edu/prod/bzwsrch.p_catalog_detail?subject=\",LEFT(B353, SEARCH(\" \",B353,1)-1),\"&cnbr=\",MID(B353, 1+SEARCH(\" \",B353,SEARCH(\" \",B353,1)),5)), 3 )","v":3},"HIST 37700 - History and Culture of Native America",null,"Y","Y",{"$nulls":4},"Y"]
[3,"HIST 38001 - History of U.S. Agriculture",null,"Y","Y",null,"Y"]
[3,"HIST 38200 - American Constitutional History",null,"Y","Y"]
[3,"HIST 38300 - Recent American Constitutional History",null,"Y","Y"]
[3,"HIST 38400 - History of Aviation",null,"Y","Y",null,"Y"]
[{"$f":"HYPERLINK( CONCATENATE(\"https://selfservice.mypurdue.purdue.edu/prod/bzwsrch.p_catalog_detail?subject=\",LEFT(B358, SEARCH(\" \",B358,1)-1),\"&cnbr=\",MID(B358, 1+SEARCH(\" \",B358,SEARCH(\" \",B358,1)),5)), 3 )","v":3},"HIST 38505 - Media, Politics and Popular Culture",null,null,"Y"]
[3,"HIST 38700 - History of Space Age",null,"Y","Y",null,"Y"]
[3,"HIST 39400 - Environmental History of the United States",null,"Y","Y"]
[{"$f":"HYPERLINK( CONCATENATE(\"https://selfservice.mypurdue.purdue.edu/prod/bzwsrch.p_catalog_detail?subject=\",LEFT(B361, SEARCH(\" \",B361,1)-1),\"&cnbr=\",MID(B361, 1+SEARCH(\" \",B361,SEARCH(\" \",B361,1)),5)), 3 )","v":3},"HIST 39600 - The Afro-American to 1865",null,"Y","Y"]
[{"$f":"HYPERLINK( CONCATENATE(\"https://selfservice.mypurdue.purdue.edu/prod/bzwsrch.p_catalog_detail?subject=\",LEFT(B362, SEARCH(\" \",B362,1)-1),\"&cnbr=\",MID(B362, 1+SEARCH(\" \",B362,SEARCH(\" \",B362,1)),5)), 3 )","v":3},"HIST 39800 - The Afro-American since 1865",null,"Y","Y"]
[3,"HIST 40800 - Dictatorship and Democracy: Europoe 1919-1945",null,"Y",{"$nulls":4},"Y"]
[{"$f":"HYPERLINK( CONCATENATE(\"https://selfservice.mypurdue.purdue.edu/prod/bzwsrch.p_catalog_detail?subject=\",LEFT(B364, SEARCH(\" \",B364,1)-1),\"&cnbr=\",MID(B364, 1+SEARCH(\" \",B364,SEARCH(\" \",B364,1)),5)), 3 )","v":3},"HIST 41005 - History of the American Presidency",null,null,"Y"]
[3,"HIST 43900 - Communist China",null,"Y",{"$nulls":4},"Y"]
[3,"HIST 44100 - Africa in the Twentieth Century",null,"Y",{"$nulls":4},"Y"]
[{"$f":"HYPERLINK( CONCATENATE(\"https://selfservice.mypurdue.purdue.edu/prod/bzwsrch.p_catalog_detail?subject=\",LEFT(B367, SEARCH(\" \",B367,1)-1),\"&cnbr=\",MID(B367, 1+SEARCH(\" \",B367,SEARCH(\" \",B367,1)),5)), 3 )","v":3},"HIST 47005 - Women and Health in America",null,null,"Y"]
[3,"HIST 47200 - History of Mexico",null,"Y",{"$nulls":4},"Y"]
[3,"HIST 59500 - The Holocaust and Genocide",null,"Y",{"$nulls":4},"Y"]
[3,"HONR 19900 - Malaria: First World Science v Third World Disease",{"$nulls":6},"Y"]
[3,"HONR 19900 - The Role of Animals in Societies of the World",{"$nulls":6},"Y"]
[3,"HONR 19900 - Science and Pseudoscience",null,"Y"]
[{"$f":"HYPERLINK( CONCATENATE(\"https://selfservice.mypurdue.purdue.edu/prod/bzwsrch.p_catalog_detail?subject=\",LEFT(B373, SEARCH(\" \",B373,1)-1),\"&cnbr=\",MID(B373, 1+SEARCH(\" \",B373,SEARCH(\" \",B373,1)),5)), 1 )","v":1},"HONR 19901 - The Evolution of Ideas (Previously named: First Year Honors in Science, Technology, and Society)",{"$nulls":4},"Y"]
[3,"HONR 29900 - Afghanistan Development Challenges",{"$nulls":6},"Y"]
[3,"HONR 29900 - Insects in Literature and Art",null,"Y"]
[{"$f":"HYPERLINK( CONCATENATE(\"https://selfservice.mypurdue.purdue.edu/prod/bzwsrch.p_catalog_detail?subject=\",LEFT(B376, SEARCH(\" \",B376,1)-1),\"&cnbr=\",MID(B376, 1+SEARCH(\" \",B376,SEARCH(\" \",B376,1)),5)), 1 )","v":1},"HORT 12100 - Medicine in the Garden",{"$nulls":4},"Y"]
[3,"HORT 30600 - History of Horticulture",null,"Y",null,null,"Y",null,"Y"]
[3,"HORT 40300 - Tropical Horticulture",{"$nulls":6},"Y"]
[3,"HORT 45000 - The English Landscape: Integrating HIST, HORT and LA",null,"Y",{"$nulls":4},"Y"]
[3,"HSCI 20100 - Principles of Public Health Science",{"$nulls":4},"Y"]
[3,"HSCI 20200 - Essentials of Environmental, Occupational, & Radiological Health Sciences.",{"$nulls":4},"Y"]
[3,"HTM 39800 - Cuisine and Culture Abroad",{"$nulls":6},"Y"]
[null,"IDIS | Any Interdisciplinary Studies (IDIS) course may be a humanities selection",null,"Y"]
[3,"IDIS 28000 - Women's Studies:  An Introduction",null,"Y"]
[{"$f":"HYPERLINK( CONCATENATE(\"https://selfservice.mypurdue.purdue.edu/prod/bzwsrch.p_catalog_detail?subject=\",LEFT(B385, SEARCH(\" \",B385,1)-1),\"&cnbr=\",MID(B385, 1+SEARCH(\" \",B385,SEARCH(\" \",B385,1)),5)), 3 )","v":3},"IDIS 33000 - Introduction to Jewish Studies",null,"Y"]
[3,"IDIS 38000 - Gender and Multiculturalism",null,"Y"]
[{"$f":"HYPERLINK( CONCATENATE(\"https://selfservice.mypurdue.purdue.edu/prod/bzwsrch.p_catalog_detail?subject=\",LEFT(B387, SEARCH(\" \",B387,1)-1),\"&cnbr=\",MID(B387, 1+SEARCH(\" \",B387,SEARCH(\" \",B387,1)),5)), 2 )","v":2},"IT 22600 - Biotechnical Lab I",{"$nulls":4},"Y"]
[null,"ITAL | Any Italian (ITAL) course (language or culture and literature) may be a humanities selection.  Any ITAL course may be an international understanding selection. ",null,"Y",{"$nulls":4},"Y-FL"]
[{"$f":"HYPERLINK( CONCATENATE(\"https://selfservice.mypurdue.purdue.edu/prod/bzwsrch.p_catalog_detail?subject=\",LEFT(B389, SEARCH(\" \",B389,1)-1),\"&cnbr=\",MID(B389, 1+SEARCH(\" \",B389,SEARCH(\" \",B389,1)),5)), 3 )","v":3},"ITAL 10100 - Italian Level I",null,"Y","Y",{"$nulls":3},"Y-FL"]
[3,"ITAL 10200 - Italian Level II",null,"Y","Y",{"$nulls":3},"Y-FL"]
[3,"ITAL 10500 - Accelerated Basic Italian",null,"Y","Y",{"$nulls":3},"Y-FL"]
[3,"ITAL 20100 - Italian Level III",null,"Y","Y",{"$nulls":3},"Y-FL"]
[3,"ITAL 20200 - Italian Level IV",null,"Y","Y",{"$nulls":3},"Y-FL"]
[3,"ITAL 20500 - Accelerated Intermediate Italian",null,"Y","Y",{"$nulls":3},"Y-FL"]
[3,"ITAL 23100 - Dante's Divine Comedy",null,"Y",{"$nulls":4},"Y"]
[3,"ITAL 28000 - Italian Culture & Civilization",null,"Y","Y",{"$nulls":3},"Y"]
[3,"ITAL 28100 - The Italian Renaissance and its Scientific and Cultural Impact on Western Civilization",null,"Y","Y",{"$nulls":3},"Y-FL"]
[3,"ITAL 30100 - Italian Level V",null,"Y","Y",{"$nulls":3},"Y-FL"]
[3,"ITAL 30200 - Italian Level VI",null,"Y","Y",{"$nulls":3},"Y-FL"]
[3,"ITAL 33000 - Italian Cinema",null,"Y","Y",{"$nulls":3},"Y"]
[3,"ITAL 33300 - The Spirit of Italian Comedy",null,"Y","Y",{"$nulls":3},"Y"]
[3,"ITAL 33500 - Italian-American Cinema",null,"Y",{"$nulls":4},"Y"]
[3,"ITAL 39300 - Special Topics in Italian Literature or Cinema",null,"Y",{"$nulls":4},"Y"]
[3,"ITAL 49300 - Advanced Topics in Italian Literature or Cinema",null,"Y",{"$nulls":4},"Y"]
[null,"JPNS | Any Japanese (JPNS) course (language or culture and literature) may be a humanities selection.  Any JPNS course may be an international understanding selection. ",null,"Y",{"$nulls":4},"Y-FL"]
[{"$f":"HYPERLINK( CONCATENATE(\"https://selfservice.mypurdue.purdue.edu/prod/bzwsrch.p_catalog_detail?subject=\",LEFT(B406, SEARCH(\" \",B406,1)-1),\"&cnbr=\",MID(B406, 1+SEARCH(\" \",B406,SEARCH(\" \",B406,1)),5)), 4 )","v":4},"JPNS 10100 - Japanese Level I",null,"Y","Y",{"$nulls":3},"Y-FL"]
[{"$f":"HYPERLINK( CONCATENATE(\"https://selfservice.mypurdue.purdue.edu/prod/bzwsrch.p_catalog_detail?subject=\",LEFT(B407, SEARCH(\" \",B407,1)-1),\"&cnbr=\",MID(B407, 1+SEARCH(\" \",B407,SEARCH(\" \",B407,1)),5)), 4 )","v":4},"JPNS 10200 - Japanese Level II",null,"Y","Y",{"$nulls":3},"Y-FL"]
[{"$f":"HYPERLINK( CONCATENATE(\"https://selfservice.mypurdue.purdue.edu/prod/bzwsrch.p_catalog_detail?subject=\",LEFT(B408, SEARCH(\" \",B408,1)-1),\"&cnbr=\",MID(B408, 1+SEARCH(\" \",B408,SEARCH(\" \",B408,1)),5)), 4 )","v":4},"JPNS 20100 - Japanese Level III",null,"Y","Y",{"$nulls":3},"Y-FL"]
[{"$f":"HYPERLINK( CONCATENATE(\"https://selfservice.mypurdue.purdue.edu/prod/bzwsrch.p_catalog_detail?subject=\",LEFT(B409, SEARCH(\" \",B409,1)-1),\"&cnbr=\",MID(B409, 1+SEARCH(\" \",B409,SEARCH(\" \",B409,1)),5)), 4 )","v":4},"JPNS 20200 - Japanese Level IV",null,"Y","Y",{"$nulls":3},"Y-FL"]
[3,"JPNS 23000 - Japanese Literature in Translation",null,"Y",{"$nulls":4},"Y-FL"]
[3,"JPNS 28000 - Introduction to Modern Japanese Civilization",null,"Y",{"$nulls":4},"Y-FL"]
[3,"JPNS 30100 - Japanese Level V",null,"Y","Y",{"$nulls":3},"Y-FL"]
[3,"JPNS 30200 - Japanese Level VI",null,"Y","Y",{"$nulls":3},"Y-FL"]
[3,"JPNS 33000 - Japanese Cinema",null,"Y",{"$nulls":4},"Y-FL"]
[3,"JPNS 40100 - Japanese Level VII",null,"Y","Y",{"$nulls":3},"Y-FL"]
[{"$f":"HYPERLINK( CONCATENATE(\"https://selfservice.mypurdue.purdue.edu/prod/bzwsrch.p_catalog_detail?subject=\",LEFT(B416, SEARCH(\" \",B416,1)-1),\"&cnbr=\",MID(B416, 1+SEARCH(\" \",B416,SEARCH(\" \",B416,1)),5)), 2 )","v":2},"JPNS 40200 - Japanese Level VIII",null,"Y","Y",{"$nulls":3},"Y-FL"]
[null,"JWST | Any Jewish Studies (JWST) course may be a humanities selection",null,"Y"]
[3,"JWST 33000 - Introduction to Jewish Studies",null,"Y","Y"]
[{"$f":"HYPERLINK( CONCATENATE(\"https://selfservice.mypurdue.purdue.edu/prod/bzwsrch.p_catalog_detail?subject=\",LEFT(B419, SEARCH(\" \",B419,1)-1),\"&cnbr=\",MID(B419, 1+SEARCH(\" \",B419,SEARCH(\" \",B419,1)),5)), 1 )","v":1},"LA 16100 - Land and Society",{"$nulls":4},"Y"]
[3,"LA 16600 - History and Theory of Landscape Architecture",null,"Y",{"$nulls":4},"Y"]
[3,"LA 45000 - The English Landscape: Integrating HIST, HORT and LA",null,"Y",{"$nulls":4},"Y"]
[null,"LALS | Any Latin America and Latino Studies (LALS) course may be a humanities selection",null,"Y"]
[null,"LATN | Any Latin (LATN) course (language or culture and literature) may be a humanities selection.  Any LATN course may be an international understanding selection. ",null,"Y",{"$nulls":4},"Y-FL"]
[3,"LATN 10100 - Latin Level I",null,"Y","Y"]
[3,"LATN 10200 - Latin Level II",null,null,"Y"]
[3,"LATN 20100 - Latin Level III",null,null,"Y"]
[3,"LATN 20200 - Latin Level IV",null,null,"Y"]
[3,"LATN 34300 - Roman Oratory",null,null,"Y"]
[3,"LATN 34400 - Roman Epic",null,null,"Y"]
[3,"LATN 34500 - Roman Elegy",null,null,"Y"]
[3,"LATN 34600 - Roman Rhetoric",null,null,"Y"]
[3,"LATN 34700 - Roman Comedy",null,null,"Y"]
[3,"LATN 44200 - Roman Lyric Poetry",null,null,"Y"]
[3,"LATN 44300 - Roman Satire",null,null,"Y"]
[3,"LATN 44400 - Roman Philosophers",null,null,"Y"]
[3,"LATN 44500 - Roman Encyclopedists",null,null,"Y"]
[3,"LATN 44600 - Roman Historians",null,null,"Y"]
[null,"LC | Any Languages and Cultures course may be a humanities selection and is also international understanding.  ",null,"Y",{"$nulls":4},"Y"]
[3,"LC 23900 - Women Writers In Translation",null,"Y","Y",{"$nulls":3},"Y"]
[{"$f":"HYPERLINK( CONCATENATE(\"https://selfservice.mypurdue.purdue.edu/prod/bzwsrch.p_catalog_detail?subject=\",LEFT(B440, SEARCH(\" \",B440,1)-1),\"&cnbr=\",MID(B440, 1+SEARCH(\" \",B440,SEARCH(\" \",B440,1)),5)), 3 )","v":3},"LC 26100 - Introduction to the Linguistic Study of Foreign Languages",null,"Y",null,"Y"]
[3,"LC 33300 - The Middle Ages on Film",null,"Y","Y",{"$nulls":3},"Y"]
[null,"LING | Any Linguistics (LING) course may be a humanities selection",null,"Y"]
[{"$f":"HYPERLINK( CONCATENATE(\"https://selfservice.mypurdue.purdue.edu/prod/bzwsrch.p_catalog_detail?subject=\",LEFT(B443, SEARCH(\" \",B443,1)-1),\"&cnbr=\",MID(B443, 1+SEARCH(\" \",B443,SEARCH(\" \",B443,1)),5)), 3 )","v":3},"LING 20100 - Intro to Linguistics",null,"Y",null,"Y"]
[null,"MARS | Any Medieval and Renaissance Studies (MARS) course may be a humanities selection",null,"Y"]
[{"$f":"HYPERLINK( CONCATENATE(\"https://selfservice.mypurdue.purdue.edu/prod/bzwsrch.p_catalog_detail?subject=\",LEFT(B445, SEARCH(\" \",B445,1)-1),\"&cnbr=\",MID(B445, 1+SEARCH(\" \",B445,SEARCH(\" \",B445,1)),5)), 1 )","v":1},"ME 29000 - Global Engineering Professional Seminar",{"$nulls":4},"Y"]
[null,"MUS | Any Music (MUS) course may be a humanities selection",null,"Y"]
[{"$f":"HYPERLINK( CONCATENATE(\"https://selfservice.mypurdue.purdue.edu/prod/bzwsrch.p_catalog_detail?subject=\",LEFT(B447, SEARCH(\" \",B447,1)-1),\"&cnbr=\",MID(B447, 1+SEARCH(\" \",B447,SEARCH(\" \",B447,1)),5)), 3 )","v":3},"MUS 25000 - Music Appreciation",null,"Y","Y"]
[3,"MUS 26100 - Fundamentals of Music",null,"Y","Y"]
[3,"MUS 36100 - Music Theory I",null,"Y","Y"]
[{"$f":"HYPERLINK( CONCATENATE(\"https://selfservice.mypurdue.purdue.edu/prod/bzwsrch.p_catalog_detail?subject=\",LEFT(B450, SEARCH(\" \",B450,1)-1),\"&cnbr=\",MID(B450, 1+SEARCH(\" \",B450,SEARCH(\" \",B450,1)),5)), 3 )","v":3},"MUS 37600 - World Music",null,"Y","Y"]
[3,"MUS 37800 - Jazz History",null,"Y","Y"]
[{"$f":"HYPERLINK( CONCATENATE(\"https://selfservice.mypurdue.purdue.edu/prod/bzwsrch.p_catalog_detail?subject=\",LEFT(B452, SEARCH(\" \",B452,1)-1),\"&cnbr=\",MID(B452, 1+SEARCH(\" \",B452,SEARCH(\" \",B452,1)),5)), 3 )","v":3},"NRES 12500 - Environmental Science and Conservation",{"$nulls":4},"Y"]
[{"$f":"HYPERLINK( CONCATENATE(\"https://selfservice.mypurdue.purdue.edu/prod/bzwsrch.p_catalog_detail?subject=\",LEFT(B453, SEARCH(\" \",B453,1)-1),\"&cnbr=\",MID(B453, 1+SEARCH(\" \",B453,SEARCH(\" \",B453,1)),5)), 3 )","v":3},"NRES 48500 - Environmental Communication","Y"]
[3,"NUTR 39800 - Culture & Food of France",{"$nulls":4},"Y"]
[null,"PHIL | Any Philosophy (PHIL) course may be a humanities selection",null,"Y"]
[3,"PHIL 11000 - Introduction to Philosophy",null,"Y","Y",{"$nulls":3},"Y"]
[3,"PHIL 11100 - Ethics",null,"Y","Y"]
[3,"PHIL 11400 - Global Moral Issues",null,"Y","Y"]
[3,"PHIL 20600 - Philosophy of Religion",null,"Y","Y"]
[{"$f":"HYPERLINK( CONCATENATE(\"https://selfservice.mypurdue.purdue.edu/prod/bzwsrch.p_catalog_detail?subject=\",LEFT(B460, SEARCH(\" \",B460,1)-1),\"&cnbr=\",MID(B460, 1+SEARCH(\" \",B460,SEARCH(\" \",B460,1)),5)), 3 )","v":3},"PHIL 20700 - Ethics for Technology, Engineering, and Design",{"$nulls":4},"Y"]
[3,"PHIL 21900 - Introduction to Existentialism",null,"Y","Y"]
[3,"PHIL 22100 - Introduction to Philosophy of Science",null,"Y",null,null,"Y"]
[{"$f":"HYPERLINK( CONCATENATE(\"https://selfservice.mypurdue.purdue.edu/prod/bzwsrch.p_catalog_detail?subject=\",LEFT(B463, SEARCH(\" \",B463,1)-1),\"&cnbr=\",MID(B463, 1+SEARCH(\" \",B463,SEARCH(\" \",B463,1)),5)), 3 )","v":3},"PHIL 22300 - Fate and Free Will",null,null,"Y"]
[3,"PHIL 22500 - Philosophy and Gender",null,"Y","Y"]
[3,"PHIL 23000 - Religions of the East",null,"Y","Y",{"$nulls":3},"Y"]
[3,"PHIL 23100 - Religions of the West",null,"Y","Y",{"$nulls":3},"Y"]
[3,"PHIL 24000 - Social and Political Philosophy",null,"Y","Y"]
[3,"PHIL 24200 - Philosophy, Culture and the African American Experience",null,"Y","Y"]
[3,"PHIL 27000 - Biomedical Ethics",null,"Y",null,null,"Y"]
[3,"PHIL 27500 - Philosophy of Art",null,"Y","Y"]
[3,"PHIL 28000 - Ethics and Animals",null,"Y","Y"]
[3,"PHIL 29000 - Environmental Ethics ",null,"Y","Y"]
[3,"PHIL 30100 - History of Ancient Philosophy",null,"Y","Y"]
[3,"PHIL 30200 - History of Medieval Philosophy",null,"Y","Y"]
[3,"PHIL 30300 - History of Modern Philosophy",null,"Y","Y"]
[3,"PHIL 30400 - 19th Centruy Philosophy",null,"Y","Y"]
[null,"POL | Any Political Science (POL) course may be a social science selection",null,"Y",null,"Y"]
[{"$f":"HYPERLINK( CONCATENATE(\"https://selfservice.mypurdue.purdue.edu/prod/bzwsrch.p_catalog_detail?subject=\",LEFT(B478, SEARCH(\" \",B478,1)-1),\"&cnbr=\",MID(B478, 1+SEARCH(\" \",B478,SEARCH(\" \",B478,1)),5)), 3 )","v":3},"POL 10100 - American Government and Politics",null,"Y",null,"Y"]
[{"$f":"HYPERLINK( CONCATENATE(\"https://selfservice.mypurdue.purdue.edu/prod/bzwsrch.p_catalog_detail?subject=\",LEFT(B479, SEARCH(\" \",B479,1)-1),\"&cnbr=\",MID(B479, 1+SEARCH(\" \",B479,SEARCH(\" \",B479,1)),5)), 3 )","v":3},"POL 12000 - Introduction to Public Policy and Public Administration",null,"Y",null,"Y"]
[3,"POL 13000 - Introduction to International Relations",null,"Y",null,"Y",null,null,"Y"]
[3,"POL 14100 - Governments of the World",null,"Y",null,"Y",null,null,"Y"]
[3,"POL 22200 - Women, Politics, and Public Policy",{"$nulls":3},"Y"]
[3,"POL 22300 - Introduction to Environmental Policy",null,"Y",null,"Y","Y"]
[{"$f":"HYPERLINK( CONCATENATE(\"https://selfservice.mypurdue.purdue.edu/prod/bzwsrch.p_catalog_detail?subject=\",LEFT(B484, SEARCH(\" \",B484,1)-1),\"&cnbr=\",MID(B484, 1+SEARCH(\" \",B484,SEARCH(\" \",B484,1)),5)), 3 )","v":3},"POL 23000 - Introduction to the Study of Peace",null,"Y",null,"Y"]
[3,"POL 23100 - Introductions to United States Foreign Policy",null,"Y",null,"Y",null,null,"Y"]
[3,"POL 23200 - Contemporary Crises in International Relations",null,"Y",null,"Y",null,null,"Y"]
[3,"POL 23500 - International Relations Among Rich and Poor Nations",null,"Y",null,"Y",null,null,"Y"]
[3,"POL 23700 - Modern Weapons and International Relations",null,"Y",null,"Y","Y",null,"Y"]
[3,"POL 32700 - Global Green Politics",null,"Y",null,"Y",null,null,"Y"]
[{"$f":"HYPERLINK( CONCATENATE(\"https://selfservice.mypurdue.purdue.edu/prod/bzwsrch.p_catalog_detail?subject=\",LEFT(B490, SEARCH(\" \",B490,1)-1),\"&cnbr=\",MID(B490, 1+SEARCH(\" \",B490,SEARCH(\" \",B490,1)),5)), 3 )","v":3},"POL 33500 - China and the Challenges of Globalization",null,"Y",null,"Y",null,null,"Y"]
[3,"POL 34400 - Introduction to Politics of the Third World",null,"Y",null,"Y",null,null,"Y"]
[3,"POL 34500 - West European Democracies in the Post-Industrial Era",null,"Y",null,"Y",null,null,"Y"]
[3,"POL 34800 - East Asian Politics",null,"Y",null,"Y",null,null,"Y"]
[{"$f":"HYPERLINK( CONCATENATE(\"https://selfservice.mypurdue.purdue.edu/prod/bzwsrch.p_catalog_detail?subject=\",LEFT(B494, SEARCH(\" \",B494,1)-1),\"&cnbr=\",MID(B494, 1+SEARCH(\" \",B494,SEARCH(\" \",B494,1)),5)), 3 )","v":3},"POL 37200 - Indiana Government and Politics",null,"Y",null,"Y"]
[{"$f":"HYPERLINK( CONCATENATE(\"https://selfservice.mypurdue.purdue.edu/prod/bzwsrch.p_catalog_detail?subject=\",LEFT(B495, SEARCH(\" \",B495,1)-1),\"&cnbr=\",MID(B495, 1+SEARCH(\" \",B495,SEARCH(\" \",B495,1)),5)), 3 )","v":3},"POL 42300 - International Environmental Policy",{"$nulls":6},"Y"]
[3,"POL 43300 - International Organizations",null,"Y",null,"Y",null,null,"Y"]
[3,"POL 43400 - United States Foreign Policy, Central America and the Caribbean",null,"Y",null,"Y",null,null,"Y"]
[3,"POL 43500 - International Law",null,"Y",null,"Y",null,null,"Y"]
[3,"POL 44200 - Government and Politics in Russia",null,"Y",null,"Y",null,null,"Y"]
[null,"PSY | Any Psychological Sciences (PSY) course may be a social science selection",null,"Y",null,"Y"]
[{"$f":"HYPERLINK( CONCATENATE(\"https://selfservice.mypurdue.purdue.edu/prod/bzwsrch.p_catalog_detail?subject=\",LEFT(B501, SEARCH(\" \",B501,1)-1),\"&cnbr=\",MID(B501, 1+SEARCH(\" \",B501,SEARCH(\" \",B501,1)),5)), 3 )","v":3},"PSY 12000 - Elementary Psychology",null,"Y",null,"Y"]
[3,"PSY 33500 - Stereotyping and Prejudice",null,"Y",null,"Y",{"$nulls":3},"Y"]
[null,"PTGS | Any Portuguese (PTGS) course (language or culture and literature) may be a humanities selection.  Any PTGS course may be an international understanding selection.",null,"Y",{"$nulls":4},"Y-FL"]
[{"$f":"HYPERLINK( CONCATENATE(\"https://selfservice.mypurdue.purdue.edu/prod/bzwsrch.p_catalog_detail?subject=\",LEFT(B504, SEARCH(\" \",B504,1)-1),\"&cnbr=\",MID(B504, 1+SEARCH(\" \",B504,SEARCH(\" \",B504,1)),5)), 3 )","v":3},"PTGS 10100 - Portuguese Level I",null,"Y","Y",{"$nulls":3},"Y-FL"]
[3,"PTGS 10200 - Portuguese Level II",null,"Y","Y",{"$nulls":3},"Y-FL"]
[3,"PTGS 10500 - Accelerated Portuguese",null,"Y","Y",{"$nulls":3},"Y-FL"]
[3,"PTGS 20100 - Portuguese Level III",null,"Y","Y",{"$nulls":3},"Y-FL"]
[3,"PTGS 20200- Portuguese Level IV",null,"Y","Y",{"$nulls":3},"Y-FL"]
[3,"PTGS 30100 - Portuguese Level V",null,"Y","Y",{"$nulls":3},"Y-FL"]
[3,"PTGS 30200 - Portuguese Level VI",null,"Y","Y",{"$nulls":3},"Y-FL"]
[3,"PTGS 33000 - Brazilian, Portuguese, and African Cinema",null,"Y",{"$nulls":4},"Y"]
[{"$f":"HYPERLINK( CONCATENATE(\"https://selfservice.mypurdue.purdue.edu/prod/bzwsrch.p_catalog_detail?subject=\",LEFT(B512, SEARCH(\" \",B512,1)-1),\"&cnbr=\",MID(B512, 1+SEARCH(\" \",B512,SEARCH(\" \",B512,1)),5)), 3 )","v":3},"PUBH 20200 - Health in the Time of Pandemics: An Introduction",{"$nulls":4},"Y"]
[null,"REL | Any Religious Studies course may be a humanities selection",null,"Y"]
[3,"REL 20000 - Introduction to the Study of Religion",null,"Y","Y"]
[3,"REL 23000 - Religions of the East",null,"Y","Y",{"$nulls":3},"Y"]
[3,"REL 23100 - Religions of the West",null,"Y","Y",{"$nulls":3},"Y"]
[null,"RUSS | Any Russian (RUSS) course (language or culture and literature) may be a humanities selection.  Any RUSS course may be an international understanding selection. ",null,"Y",{"$nulls":4},"Y-FL"]
[{"$f":"HYPERLINK( CONCATENATE(\"https://selfservice.mypurdue.purdue.edu/prod/bzwsrch.p_catalog_detail?subject=\",LEFT(B518, SEARCH(\" \",B518,1)-1),\"&cnbr=\",MID(B518, 1+SEARCH(\" \",B518,SEARCH(\" \",B518,1)),5)), 4 )","v":4},"RUSS 10100 - Russian Level I",null,"Y","Y",{"$nulls":3},"Y-FL"]
[{"$f":"HYPERLINK( CONCATENATE(\"https://selfservice.mypurdue.purdue.edu/prod/bzwsrch.p_catalog_detail?subject=\",LEFT(B519, SEARCH(\" \",B519,1)-1),\"&cnbr=\",MID(B519, 1+SEARCH(\" \",B519,SEARCH(\" \",B519,1)),5)), 4 )","v":4},"RUSS 10200 - Russian Level II",null,"Y","Y",{"$nulls":3},"Y-FL"]
[{"$f":"HYPERLINK( CONCATENATE(\"https://selfservice.mypurdue.purdue.edu/prod/bzwsrch.p_catalog_detail?subject=\",LEFT(B520, SEARCH(\" \",B520,1)-1),\"&cnbr=\",MID(B520, 1+SEARCH(\" \",B520,SEARCH(\" \",B520,1)),5)), 4 )","v":4},"RUSS 20100 - Russian Level III",null,"Y","Y",{"$nulls":3},"Y-FL"]
[{"$f":"HYPERLINK( CONCATENATE(\"https://selfservice.mypurdue.purdue.edu/prod/bzwsrch.p_catalog_detail?subject=\",LEFT(B521, SEARCH(\" \",B521,1)-1),\"&cnbr=\",MID(B521, 1+SEARCH(\" \",B521,SEARCH(\" \",B521,1)),5)), 4 )","v":4},"RUSS 20200 - Russian Level IV",null,"Y","Y",{"$nulls":3},"Y-FL"]
[3,"RUSS 30100 - Russian Level V",null,"Y","Y",{"$nulls":3},"Y-FL"]
[3,"RUSS 30200 - Russian Level VI",null,"Y","Y",{"$nulls":3},"Y-FL"]
[3,"RUSS 33000 - Russian and East European Cinema",null,"Y","Y",{"$nulls":3},"Y"]
[3,"RUSS 40100 - Russian Level VII",null,"Y","Y",{"$nulls":3},"Y-FL"]
[3,"RUSS 40200 - Russian Level VIII",null,"Y","Y",{"$nulls":3},"Y-FL"]
[{"$f":"HYPERLINK( CONCATENATE(\"https://selfservice.mypurdue.purdue.edu/prod/bzwsrch.p_catalog_detail?subject=\",LEFT(B527, SEARCH(\" \",B527,1)-1),\"&cnbr=\",MID(B527, 1+SEARCH(\" \",B527,SEARCH(\" \",B527,1)),5)), 3 )","v":3},"SA 10202 - French Culture, Food And Health",{"$nulls":4},"Y"]
[{"$f":"HYPERLINK( CONCATENATE(\"https://selfservice.mypurdue.purdue.edu/prod/bzwsrch.p_catalog_detail?subject=\",LEFT(B528, SEARCH(\" \",B528,1)-1),\"&cnbr=\",MID(B528, 1+SEARCH(\" \",B528,SEARCH(\" \",B528,1)),5)), 3 )","v":3},"SFS 41100 - Structural Racism in US Agriculture",{"$nulls":7},"Y"]
[{"$f":"HYPERLINK( CONCATENATE(\"https://selfservice.mypurdue.purdue.edu/prod/bzwsrch.p_catalog_detail?subject=\",LEFT(B529, SEARCH(\" \",B529,1)-1),\"&cnbr=\",MID(B529, 1+SEARCH(\" \",B529,SEARCH(\" \",B529,1)),5)), 3 )","v":3},"SFS 41200 - Colonialism, Globalization, and Food Justice",{"$nulls":7},"Y"]
[{"$f":"HYPERLINK( CONCATENATE(\"https://selfservice.mypurdue.purdue.edu/prod/bzwsrch.p_catalog_detail?subject=\",LEFT(B530, SEARCH(\" \",B530,1)-1),\"&cnbr=\",MID(B530, 1+SEARCH(\" \",B530,SEARCH(\" \",B530,1)),5)), 3 )","v":3},"SFS 41300 - The Cultures and Agricultures of the United States",{"$nulls":7},"Y"]
[{"$f":"HYPERLINK( CONCATENATE(\"https://selfservice.mypurdue.purdue.edu/prod/bzwsrch.p_catalog_detail?subject=\",LEFT(B531, SEARCH(\" \",B531,1)-1),\"&cnbr=\",MID(B531, 1+SEARCH(\" \",B531,SEARCH(\" \",B531,1)),5)), 3 )","v":3},"SFS 48500 - Environmental Communication","Y"]
[3,"SLHS 11500 - Introduction to Communicative Disorders",{"$nulls":4},"Y"]
[3,"SLHS 21500 - Exploring Audiology & Hearing Science",{"$nulls":4},"Y"]
[{"$f":"HYPERLINK( CONCATENATE(\"https://selfservice.mypurdue.purdue.edu/prod/bzwsrch.p_catalog_detail?subject=\",LEFT(B534, SEARCH(\" \",B534,1)-1),\"&cnbr=\",MID(B534, 1+SEARCH(\" \",B534,SEARCH(\" \",B534,1)),5)), 3 )","v":3},"SLHS 22700 - Elements Of Linguistics",null,"Y",null,"Y"]
[3,"SLHS 30900 - Language Development",{"$nulls":4},"Y"]
[null,"SOC | Any Sociology (SOC) course may be a social science selection",null,"Y",null,"Y"]
[{"$f":"HYPERLINK( CONCATENATE(\"https://selfservice.mypurdue.purdue.edu/prod/bzwsrch.p_catalog_detail?subject=\",LEFT(B537, SEARCH(\" \",B537,1)-1),\"&cnbr=\",MID(B537, 1+SEARCH(\" \",B537,SEARCH(\" \",B537,1)),5)), 3 )","v":3},"SOC 10000 - Intro to Sociology",null,"Y",null,"Y"]
[3,"SOC 22000 - Social Problems",null,"Y",null,"Y",{"$nulls":3},"Y"]
[3,"SOC 31000 - Racial and Ethnic Diversity",null,"Y",null,"Y",{"$nulls":3},"Y"]
[{"$f":"HYPERLINK( CONCATENATE(\"https://selfservice.mypurdue.purdue.edu/prod/bzwsrch.p_catalog_detail?subject=\",LEFT(B540, SEARCH(\" \",B540,1)-1),\"&cnbr=\",MID(B540, 1+SEARCH(\" \",B540,SEARCH(\" \",B540,1)),5)), 3 )","v":3},"SOC 33500 - Political Sociology",{"$nulls":4},"Y"]
[3,"SOC 35600 - Hate and Violence",null,"Y",null,"Y",{"$nulls":3},"Y"]
[null,"SPAN | Any Spanish (SPAN) course (language or culture and literature) may be a humanities selection.  Any SPAN course may be an international understanding selection. ",null,"Y",{"$nulls":4},"Y-FL"]
[3,"SPAN 10100 - Spanish Level I",null,"Y","Y",{"$nulls":3},"Y-FL"]
[3,"SPAN 10200 - Spanish Level II",null,"Y","Y",{"$nulls":3},"Y-FL"]
[4,"SPAN 10500 - Accelerated Basic Spanish",null,"Y","Y",{"$nulls":3},"Y-FL"]
[3,"SPAN 20100 - Spanish Level III",null,"Y","Y",{"$nulls":3},"Y-FL"]
[3,"SPAN 20200 - Spanish Level IV",null,"Y","Y",{"$nulls":3},"Y-FL"]
[4,"SPAN 20500 - Accelerated Intermediate Spanish",null,"Y","Y",{"$nulls":3},"Y-FL"]
[3,"SPAN 23000 - Contemporary Spanish American Literature In Translation",null,"Y",{"$nulls":4},"Y-FL"]
[3,"SPAN 23100 - Cervantes' Don Quixote",null,"Y",{"$nulls":4},"Y"]
[3,"SPAN 23500 - Spanish American Literature In Translation",null,null,"Y",{"$nulls":3},"Y-FL"]
[3,"SPAN 30100 - Spanish Level V",null,null,"Y",{"$nulls":3},"Y-FL"]
[3,"SPAN 30200 - Spanish Level VI",null,null,"Y",{"$nulls":3},"Y-FL"]
[3,"SPAN 30500 - Spanish for Heritage Speakers",null,null,"Y",{"$nulls":3},"Y-FL"]
[3,"SPAN 30801 - Advanced Spanish for Heritage Speakers",null,null,"Y",{"$nulls":3},"Y-FL"]
[3,"SPAN 33000 - Spanish and Latin American Cinema",null,"Y","Y",{"$nulls":3},"Y"]
[3,"SPAN 40100 - Spanish Level VII",null,null,"Y",{"$nulls":3},"Y-FL"]
[3,"SPAN 40200 - Spanish Level VIII ",null,null,"Y",{"$nulls":3},"Y-FL"]
[3,"STAT 11300 - Statistics and Society",{"$nulls":4},"Y"]
[{"$f":"HYPERLINK( CONCATENATE(\"https://selfservice.mypurdue.purdue.edu/prod/bzwsrch.p_catalog_detail?subject=\",LEFT(B560, SEARCH(\" \",B560,1)-1),\"&cnbr=\",MID(B560, 1+SEARCH(\" \",B560,SEARCH(\" \",B560,1)),5)), 3 )","v":3},"SYS 30000 - It's a Complext World: Addressing Global Challenges",{"$nulls":4},"Y"]
[{"$f":"HYPERLINK( CONCATENATE(\"https://selfservice.mypurdue.purdue.edu/prod/bzwsrch.p_catalog_detail?subject=\",LEFT(B561, SEARCH(\" \",B561,1)-1),\"&cnbr=\",MID(B561, 1+SEARCH(\" \",B561,SEARCH(\" \",B561,1)),5)), 3 )","v":3},"SYS 35000 - Systems Theories and Approaches",{"$nulls":4},"Y"]
[{"$f":"HYPERLINK( CONCATENATE(\"https://selfservice.mypurdue.purdue.edu/prod/bzwsrch.p_catalog_detail?subject=\",LEFT(B562, SEARCH(\" \",B562,1)-1),\"&cnbr=\",MID(B562, 1+SEARCH(\" \",B562,SEARCH(\" \",B562,1)),5)), 3 )","v":3},"SYS 40000 - Systems Praxis",{"$nulls":4},"Y"]
[3,"TECH 12000 - Design Thinking In Technology",{"$nulls":4},"Y"]
[null,"THTR | Any Theatre (THTR) course may be a humanities selection",null,"Y"]
[3,"THTR 20100 - Theater Appreciation",null,"Y","Y"]
[2,"VIP 27920 - Sophomore Participation in Vertically Integrated Projects (VIP)",{"$nulls":4},"Y"]
[2,"VIP 37920 - Junior Participation In Vertically Integrated Projects (VIP)",{"$nulls":4},"Y"]
[2,"VIP 47920 - Senior Participation in Vertically Integraed Projects (VIP)",{"$nulls":4},"Y"]
[null,"WGSS | Any Women's, Gender, and Sexuality Studies (WGSS) course may be a humanities selection",null,"Y"]
[{"$f":"HYPERLINK( CONCATENATE(\"https://selfservice.mypurdue.purdue.edu/prod/bzwsrch.p_catalog_detail?subject=\",LEFT(B570, SEARCH(\" \",B570,1)-1),\"&cnbr=\",MID(B570, 1+SEARCH(\" \",B570,SEARCH(\" \",B570,1)),5)), 3 )","v":3},"WGSS 28000 - Women's Studies: An Introduction",null,"Y","Y","Y"]
[{"$f":"HYPERLINK( CONCATENATE(\"https://selfservice.mypurdue.purdue.edu/prod/bzwsrch.p_catalog_detail?subject=\",LEFT(B571, SEARCH(\" \",B571,1)-1),\"&cnbr=\",MID(B571, 1+SEARCH(\" \",B571,SEARCH(\" \",B571,1)),5)), 3 )","v":3},"WGSS 28200 - Introduction to LGBT Studies",null,"Y",null,"Y"]
[{"$f":"HYPERLINK( CONCATENATE(\"https://selfservice.mypurdue.purdue.edu/prod/bzwsrch.p_catalog_detail?subject=\",LEFT(B572, SEARCH(\" \",B572,1)-1),\"&cnbr=\",MID(B572, 1+SEARCH(\" \",B572,SEARCH(\" \",B572,1)),5)), 3 )","v":3},"WGSS 38000 - Gender and Multiculturalism",null,"Y"]
[3,"WGSS 38100 - Women of Color in the United States",null,"Y"]
[3,"WGSS 38300 - Women and Work",null,"Y"]
[3,"WGSS 48000 - Feminist Theory",null,"Y"]
[3,"WGSS 48200 - Interdisciplinary Studies in Sexuality: Scholarship on Lesbian and Gay Issues",null,"Y"]

{"sheet":"Multli List Prior to 202010","index":1,"n_rows":60,"n_cols":10,"rows_kept":60,"merged":[[0,0,0,9]]}
["These are courses that were approved to be used as a multicultural requirement prior to the Fall 2019 Catalog term. For any new beginning student starting in Fall 2019, needs to use the list on the current courses tab. Students on catalog terms prior to Fall 2019, may use this list. Transfer students and CODO students starting in Fall 2019 may use this list. Transfer students and CODOs on the Fall 2020 catalog term must use the requirements established for Fall 2019. "]
[]
["CREDITS","COURSE","Written/COM","HUM/SOC","UCC HUM","SOC","UCC STS","(and)","INTL","MULTI"]
[3,"AAS 27100 - Introduction to African American Studies",null,"Y","Y",{"$nulls":4},"Y"]
[3,"AAS 27700 - African American Pop Culture",null,"Y",{"$nulls":5},"Y"]
[3,"AAS 37000 - Black Women Rising",null,"Y",{"$nulls":5},"Y"]
[3,"AAS 37100 - The African American Experience",null,"Y",{"$nulls":5},"Y"]
[3,"AAS 37300 - Issues in African American Studies",null,"Y",{"$nulls":5},"Y"]
[3,"AAS 37500 - The Black Family",null,"Y",{"$nulls":5},"Y"]
[3,"AAS 37600 - The Black Male",null,"Y",{"$nulls":5},"Y"]
[3,"AAS 37700 - African American Sexuality and Society",null,"Y",{"$nulls":5},"Y"]
[3,"ANTH 23000 - Gender Across Cultures",{"$nulls":3},"Y",{"$nulls":3},"Y"]
[3,"ANTH 28200 - Introduction to LGBT Studies",{"$nulls":3},"Y",{"$nulls":3},"Y"]
[3,"ANTH 34000 - Global Perspectives on Health",{"$nulls":3},"Y",{"$nulls":3},"Y"]
[3,"ANTH 37900 -Native American Cultures",{"$nulls":3},"Y",{"$nulls":3},"Y"]
[3,"ANTH 48200 - Sexual Diversity in Global Perspectives",{"$nulls":3},"Y",{"$nulls":3},"Y"]
[3,"ASAM 24000 - Introduction to Asian American Studies",null,"Y","Y",{"$nulls":4},"Y"]
[3,"COM 30300 - Intercultural Communication","Y",{"$nulls":6},"Y"]
[3,"COM 32800 - Diversity at Work: A Rhetorical Approach","Y",{"$nulls":6},"Y"]
[3,"COM 36800 - Sociolinguistic Study of African American English","Y",{"$nulls":6},"Y"]
[3,"COM 37600 - Communication and Gender","Y",{"$nulls":6},"Y"]
[3,"COM 38100 - Gender and Feminist Studies in Communication","Y",{"$nulls":6},"Y"]
[3,"ENGL 25700 - Literature of Black America","Y","Y",{"$nulls":5},"Y"]
[3,"ENGL 35400 - Asian American Literature","Y",{"$nulls":6},"Y"]
[3,"ENGL 35800 - Black Drama","Y","Y",{"$nulls":5},"Y"]
[3,"ENGL 36000 - Gender and Literature","Y","Y","Y",{"$nulls":4},"Y"]
[3,"ENTR 47000 - Women and Leadership",{"$nulls":7},"Y"]
[3,"HDFS 28000 - Diversity in Individual and Family Life",{"$nulls":7},"Y"]
[3,"HIST 35400 - Women in America to 1870",null,"Y","Y",{"$nulls":4},"Y"]
[3,"HIST 36500 - Women in America",null,"Y",{"$nulls":5},"Y"]
[3,"HIST 36600 - Hispanic Heritage of the United States",null,"Y",{"$nulls":5},"Y"]
[3,"HIST 37500 - Womein in America Since 1870",null,"Y","Y",{"$nulls":4},"Y"]
[3,"HIST 37700 - History and Culture of Native America",null,"Y","Y",{"$nulls":4},"Y"]
[3,"HIST 39600 - The Afro-American to 1865",null,"Y","Y",{"$nulls":4},"Y"]
[3,"HIST 39800 - The Afro-American since 1865",null,"Y","Y",{"$nulls":4},"Y"]
[3,"HK 22600 - Contemporary Women's Health",{"$nulls":7},"Y"]
[3,"IDIS 28000 - Women's Studies:  An Introduction",null,"Y",{"$nulls":5},"Y"]
[3,"IDIS 33000 - Introduction to Jewish Studies",null,"Y",{"$nulls":5},"Y"]
[3,"IDIS 38000 - Gender and Multiculturalism",null,"Y",{"$nulls":5},"Y"]
[3,"JWST 33000 - Introduction to Jewish Studies",null,"Y","Y",{"$nulls":4},"Y"]
[3,"PHIL 20600 - Philosophy of Religion",null,"Y","Y",{"$nulls":4},"Y"]
[3,"PHIL 22500 - Philosophy and Gender",null,"Y","Y",{"$nulls":4},"Y"]
[3,"PHIL 23000 - Religions of the East",null,"Y","Y",{"$nulls":3},"Y","Y"]
[3,"PHIL 23100 - Religions of the West",null,"Y","Y",{"$nulls":3},"Y","Y"]
[3,"PHIL 24200 - Philosophy, Culture and the African American Experience",null,"Y","Y",{"$nulls":4},"Y"]
[3,"POL 22200 - Women, Politics, and Public Policy",{"$nulls":3},"Y",{"$nulls":3},"Y"]
[3,"POL 32600 - Black Political Participation in America",{"$nulls":3},"Y",{"$nulls":3},"Y"]
[3,"POL 36000 - Women and the Law",{"$nulls":3},"Y",{"$nulls":3},"Y"]
[3,"PSY 23900 - The Psychology of Women",{"$nulls":3},"Y",{"$nulls":3},"Y"]
[3,"REL 23000 - Religions of the East",null,"Y","Y",{"$nulls":3},"Y","Y"]
[3,"REL 23100 - Religions of the West",null,"Y","Y",{"$nulls":3},"Y","Y"]
[3,"SOC 36700 - Religion in America",{"$nulls":3},"Y",{"$nulls":3},"Y"]
[3,"SOC 45000 - Gender Roles in Modern Society",{"$nulls":3},"Y",{"$nulls":3},"Y"]
[3,"WGSS 28000 - Women's Studies: An Introduction",null,"Y","Y","Y",{"$nulls":3},"Y"]
[3,"WGSS 38000 - Gender and Multiculturalism",null,"Y",{"$nulls":5},"Y"]
[3,"WGSS 38100 - Women of Color in the United States",null,"Y",{"$nulls":5},"Y"]
[3,"WGSS 38300 - Women and Work",null,"Y",{"$nulls":5},"Y"]
[3,"WGSS 48000 - Feminist Theory",null,"Y",{"$nulls":5},"Y"]
[3,"WGSS 48200 - Interdisciplinary Studies in Sexuality: Scholarship on Lesbian and Gay Issues",null,"Y",{"$nulls":5},"Y"]
[3,"YDAE 38500 - Urban Service Learning",{"$nulls":7},"Y"]

{"sheet":"Original","index":2,"n_rows":602,"n_cols":10,"rows_kept":602,"hidden":true,"merged":[[0,1,0,8]]}
[]
["CREDITS","COURSE","COM","HUM","UCC HUM","SOC","UCC STS","(and)","INTL","MULTI"]
[null,"AAS | Any African American Studies (AAS) course may be a humanities selection",null,"Y"]
[{"$f":"HYPERLINK( CONCATENATE(\"https://selfservice.mypurdue.purdue.edu/prod/bzwsrch.p_catalog_detail?subject=\",LEFT(B4, SEARCH(\" \",B4,1)-1),\"&cnbr=\",MID(B4, 1+SEARCH(\" \",B4,SEARCH(\" \",B4,1)),5)), 3 )","v":3},"AAS 27100 - Introduction to African American Studies",null,"Y","Y",{"$nulls":4},"Y"]
[3,"AAS 27700 - African American Pop Culture",null,"Y",{"$nulls":5},"Y"]
[3,"AAS 37000 - Black Women Rising",null,"Y",{"$nulls":5},"Y"]
[3,"AAS 37100 - The African American Experience",null,"Y",{"$nulls":5},"Y"]
[3,"AAS 37300 - Issues in African American Studies",null,"Y",{"$nulls":5},"Y"]
[3,"AAS 37500 - The Black Family",null,"Y",{"$nulls":5},"Y"]
[3,"AAS 37600 - The Black Male",null,"Y",{"$nulls":5},"Y"]
[3,"AAS 37700 - African American Sexuality and Society",null,"Y",{"$nulls":5},"Y"]
[{"$f":"HYPERLINK( CONCATENATE(\"https://selfservice.mypurdue.purdue.edu/prod/bzwsrch.p_catalog_detail?subject=\",LEFT(B12, SEARCH(\" \",B12,1)-1),\"&cnbr=\",MID(B12, 1+SEARCH(\" \",B12,SEARCH(\" \",B12,1)),5)), 1 )","v":1},"ABE 29000 - Sophomore Seminar",{"$nulls":4},"Y"]
[null,"AD | Any Art and Design (AD) course may be used as a humanities selection",null,"Y"]
[3,"AD 11300 - Basic Drawings",null,"Y","Y"]
[3,"AD 11700 - Black and White Photography",null,"Y","Y"]
[3,"AD 12500 - Intro to Interior Design",null,"Y","Y"]
[3,"AD 22600 - History of Art to 1400",null,"Y","Y"]
[3,"AD 22700 - History of Art since 1400",null,"Y","Y"]
[3,"AD 24200 - Ceramics I",null,"Y","Y"]
[3,"AD 25100 - History of Photography",null,"Y","Y"]
[3,"AD 25500 - Art Appreciation",null,"Y","Y"]
[3,"AD 26500 - Relief Printmaking",null,"Y","Y"]
[3,"AD 26600 - Silkscreen Printmaking",null,"Y","Y"]
[3,"AD 27500 - Beginning Sculpture ",null,"Y","Y"]
[3,"AD 38300 - Modern Art",null,"Y","Y"]
[3,"AD 38400 - Contemporary Art",null,"Y","Y"]
[3,"AGEC 20300 - Introductory Microeconomics for Food and Agribusiness",{"$nulls":3},"Y"]
[3,"AGEC 20400 - Introduction to Resource Economics and Environmental Policy",{"$nulls":3},"Y"]
[3,"AGEC 21700 - Economics",{"$nulls":3},"Y"]
[3,"AGEC 25000 - Economic Geography of World Food and Resources",{"$nulls":3},"Y",null,null,"Y"]
[3,"AGEC 30500 - Agricultural Prices",{"$nulls":3},"Y"]
[3,"AGEC 33300 - Food Distribution - A Retailing Perspective",null,"Y",null,"Y"]
[3,"AGEC 34000 - International Economic Development",{"$nulls":3},"Y",null,null,"Y"]
[3,"AGEC 40600- Natural Resource And Environmental Economics",{"$nulls":3},"Y"]
[3,"AGEC 41000 - Agricultural Policy  ",{"$nulls":3},"Y"]
[3,"AGEC 41500 - Community And Resource Development",{"$nulls":3},"Y"]
[3,"AGEC 45000 - International Agricultural Trade",{"$nulls":3},"Y",null,null,"Y"]
[3,"AGEC 49800 - Afghanistan Development Challenges",{"$nulls":3},"Y",null,null,"Y"]
[3,"AGR 20100 - Communicating Across Culture","Y","Y",null,"Y",{"$nulls":3},"Y"]
[3,"AGR 49300 - Special Topics in International Agriculture",{"$nulls":6},"Y"]
[{"$f":"HYPERLINK( CONCATENATE(\"https://selfservice.mypurdue.purdue.edu/prod/bzwsrch.p_catalog_detail?subject=\",LEFT(B41, SEARCH(\" \",B41,1)-1),\"&cnbr=\",MID(B41, 1+SEARCH(\" \",B41,SEARCH(\" \",B41,1)),5)), 0 )","v":0},"AGR 49500 - Intl. Prof. Experience in Agr., Food, and Nat. Resources",{"$nulls":6},"Y"]
[3,"AGR 49700 - Agricultural Study Abroad (This course is no longer in the catalog)",{"$nulls":6},"Y"]
[3,"AGRY 12300 - Genetics and Society",null,"Y",null,"Y"]
[{"$f":"HYPERLINK( CONCATENATE(\"https://selfservice.mypurdue.purdue.edu/prod/bzwsrch.p_catalog_detail?subject=\",LEFT(B44, SEARCH(\" \",B44,1)-1),\"&cnbr=\",MID(B44, 1+SEARCH(\" \",B44,SEARCH(\" \",B44,1)),5)), 3 )","v":3},"AGRY 12500 - Environmental Science and Conservation",{"$nulls":4},"Y"]
[3,"AGRY 28500 - World Crop Adaptation and Distribution",{"$nulls":4},"Y",null,"Y"]
[3,"AGRY 29000 - Introduction to Environmental Science (This course is no longer in the catalog; cross listed with EAPS 11300 and NRES 29000)",{"$nulls":4},"Y"]
[3,"AGRY 35000 - Global Awareness",{"$nulls":6},"Y"]
[3,"AGRY 39900 - Afghanistan Development Challenges",{"$nulls":3},"Y",null,null,"Y"]
[3,"AGRY 39900 - Exploring International Agriculture",{"$nulls":6},"Y"]
[3,"AGRY 57000 - Agronomy in International Development (This course is no longer in the catalog)",{"$nulls":6},"Y"]
[3,"AGRY 59800 - African Development Challenges",{"$nulls":6},"Y"]
[null,"AMST | Any American Studies (AMST) course may be a humanities selection",null,"Y"]
[{"$f":"HYPERLINK( CONCATENATE(\"https://selfservice.mypurdue.purdue.edu/prod/bzwsrch.p_catalog_detail?subject=\",LEFT(B53, SEARCH(\" \",B53,1)-1),\"&cnbr=\",MID(B53, 1+SEARCH(\" \",B53,SEARCH(\" \",B53,1)),5)), 3 )","v":3},"AMST 20100 - Interpreting America",null,"Y","Y"]
[{"$f":"HYPERLINK( CONCATENATE(\"https://selfservice.mypurdue.purdue.edu/prod/bzwsrch.p_catalog_detail?subject=\",LEFT(B54, SEARCH(\" \",B54,1)-1),\"&cnbr=\",MID(B54, 1+SEARCH(\" \",B54,SEARCH(\" \",B54,1)),5)), 3 )","v":3},"ANSC 10200 - Intro to Animal Agriculture",{"$nulls":4},"Y"]
[{"$f":"HYPERLINK( CONCATENATE(\"https://selfservice.mypurdue.purdue.edu/prod/bzwsrch.p_catalog_detail?subject=\",LEFT(B55, SEARCH(\" \",B55,1)-1),\"&cnbr=\",MID(B55, 1+SEARCH(\" \",B55,SEARCH(\" \",B55,1)),5)), 3 )","v":3},"ANSC 29400 - Exploring International Animal Agriculture",{"$nulls":6},"Y"]
[{"$f":"HYPERLINK( CONCATENATE(\"https://selfservice.mypurdue.purdue.edu/prod/bzwsrch.p_catalog_detail?subject=\",LEFT(B56, SEARCH(\" \",B56,1)-1),\"&cnbr=\",MID(B56, 1+SEARCH(\" \",B56,SEARCH(\" \",B56,1)),5)), 3 )","v":3},"ANSC 29500 - Exploring International Agriculture",{"$nulls":6},"Y"]
[null,"ANTH | Anthropology (ANTH) course may be a social science selection",{"$nulls":3},"Y"]
[{"$f":"HYPERLINK( CONCATENATE(\"https://selfservice.mypurdue.purdue.edu/prod/bzwsrch.p_catalog_detail?subject=\",LEFT(B58, SEARCH(\" \",B58,1)-1),\"&cnbr=\",MID(B58, 1+SEARCH(\" \",B58,SEARCH(\" \",B58,1)),5)), 3 )","v":3},"ANTH 10000 - Introduction to Anthropology",{"$nulls":3},"Y",null,null,"Y"]
[3,"ANTH 20500 - Human Cultural Diversity",{"$nulls":3},"Y",null,null,"Y","Y"]
[3,"ANTH 21000 - Technology and Culture",{"$nulls":3},"Y","Y"]
[3,"ANTH 23000 - Gender Across Cultures",{"$nulls":3},"Y",{"$nulls":3},"Y"]
[3,"ANTH 28200 - Introduction to LGBT Studies",{"$nulls":3},"Y",{"$nulls":3},"Y"]
[3,"ANTH 30300 - Gender Across Cultures (This course is no longer in the catalog)",{"$nulls":3},"Y",{"$nulls":3},"Y"]
[3,"ANTH 34000 - Global Perspectives on Health",{"$nulls":3},"Y",{"$nulls":3},"Y"]
[3,"ANTH 37900 -Native American Cultures",{"$nulls":3},"Y",{"$nulls":3},"Y"]
[3,"ANTH 39200 - Globalization and Culture",{"$nulls":3},"Y",null,null,"Y"]
[3,"ANTH 48200 - Sexual Diversity in Global Perspectives",{"$nulls":3},"Y",{"$nulls":3},"Y"]
[3,"ANTH 57600 - Economic Development and Social Change (This course is no longer in the catalog)",{"$nulls":3},"Y",null,null,"Y"]
[3,"ANTH 57800 - Peoples of Middle America (This course is no longer in the catalog)",{"$nulls":3},"Y",null,null,"Y","Y"]
[null,"ARAB | Any Arabic (ARAB) course (language or culture and literature) may be a humanities selection.  Any ARAB course may be an international understanding selection. ",null,"Y",{"$nulls":4},"Y"]
[3,"ARAB 10100 - Standard Arabic Level I",null,"Y","Y",{"$nulls":3},"Y"]
[3,"ARAB 10200 - Standard Arabic Level II",null,"Y","Y",{"$nulls":3},"Y"]
[3,"ARAB 20100 - Standard Arabic Level IV",null,"Y","Y",{"$nulls":3},"Y"]
[3,"ARAB 20200 - Standard Arabic Level V",null,"Y","Y",{"$nulls":3},"Y"]
[3,"ARAB 23000 - Arabic Literature in Translation",null,"Y",{"$nulls":4},"Y"]
[3,"ARAB 23900 - Arab Women Writers",null,"Y",{"$nulls":4},"Y"]
[3,"ARAB 28000 - Arabic Culture",null,"Y","Y",{"$nulls":3},"Y"]
[3,"ARAB 28100 - Introduction to Islamic Civilization and Culture",null,"Y",{"$nulls":4},"Y"]
[3,"ARAB 30100 - Standard Arabic Level V",null,"Y","Y",{"$nulls":3},"Y"]
[3,"ARAB 30200 - Standard Arabic Level VI",null,"Y","Y",{"$nulls":3},"Y"]
[3,"ARAB 33400 - North African Literature and Culture (Maghrebi Literature and Culture is now a section of ENGL 396)",null,"Y",{"$nulls":4},"Y"]
[3,"ARAB 58700 - Modern Arab Thought",null,"Y",{"$nulls":4},"Y"]
[null,"ASAM | Any Asian American Studies (ASAM) course may be a humanities selection",null,"Y"]
[3,"ASAM 24000 - Introduction to Asian American Studies",null,"Y","Y",{"$nulls":4},"Y"]
[null,"ASL | Any American Sign Language (ASL) course may be a communications OR Humanites/Social Science selection","Y","Y",null,"Y"]
[3,"ASL 10100 - American Sign Language I","Y",null,"Y"]
[3,"ASL 10200 - American Sign Language II","Y",null,"Y"]
[3,"ASL 20100 - American Sign Language III","Y",null,"Y"]
[3,"ASL 20200 - American Sign Language IV","Y",null,"Y"]
[null,"BAND | Up to 3 credits of BAND may be used to fulfill humanities requirements",null,"Y"]
[{"$f":"HYPERLINK( CONCATENATE(\"https://selfservice.mypurdue.purdue.edu/prod/bzwsrch.p_catalog_detail?subject=\",LEFT(B91, SEARCH(\" \",B91,1)-1),\"&cnbr=\",MID(B91, 1+SEARCH(\" \",B91,SEARCH(\" \",B91,1)),5)), 2 )","v":2},"BCHM 10000 - Intro to Biochemistry",{"$nulls":4},"Y"]
[{"$f":"HYPERLINK( CONCATENATE(\"https://selfservice.mypurdue.purdue.edu/prod/bzwsrch.p_catalog_detail?subject=\",LEFT(B92, SEARCH(\" \",B92,1)-1),\"&cnbr=\",MID(B92, 1+SEARCH(\" \",B92,SEARCH(\" \",B92,1)),5)), 3 )","v":3},"BCM 10001 - Introduction to Contruction Management",{"$nulls":4},"Y"]
[{"$f":"HYPERLINK( CONCATENATE(\"https://selfservice.mypurdue.purdue.edu/prod/bzwsrch.p_catalog_detail?subject=\",LEFT(B93, SEARCH(\" \",B93,1)-1),\"&cnbr=\",MID(B93, 1+SEARCH(\" \",B93,SEARCH(\" \",B93,1)),5)), 2 )","v":2},"BIOL 12100 - Biology I: Diversity, Ecology, & Behavior",{"$nulls":4},"Y"]
[3,"BIOL 31200 - Great Issues: Genomics and Society ( Applicable for STS Fall 2015 and earlier)",{"$nulls":4},"Y"]
[3,"BTNY 20100 - Plants and Civilization",{"$nulls":4},"Y",null,"Y"]
[3,"BTNY 21100 - Plants and the Environment",{"$nulls":4},"Y"]
[3,"CDFS 30100 - Families in a multicultural society (This course is no longer in the catalog)",{"$nulls":7},"Y"]
[null,"CHNS | Any Chinese (CHNS) course (language or culture and literature) may be a humanities selection.  Any CHNS course may be an international understanding selection. ",null,"Y",{"$nulls":4},"Y"]
[{"$f":"HYPERLINK( CONCATENATE(\"https://selfservice.mypurdue.purdue.edu/prod/bzwsrch.p_catalog_detail?subject=\",LEFT(B99, SEARCH(\" \",B99,1)-1),\"&cnbr=\",MID(B99, 1+SEARCH(\" \",B99,SEARCH(\" \",B99,1)),5)), 4 )","v":4},"CHNS 10100 - Chinese Level I",null,"Y","Y",{"$nulls":3},"Y"]
[{"$f":"HYPERLINK( CONCATENATE(\"https://selfservice.mypurdue.purdue.edu/prod/bzwsrch.p_catalog_detail?subject=\",LEFT(B100, SEARCH(\" \",B100,1)-1),\"&cnbr=\",MID(B100, 1+SEARCH(\" \",B100,SEARCH(\" \",B100,1)),5)), 4 )","v":4},"CHNS 10200 - Chinese Level II",null,"Y","Y",{"$nulls":3},"Y"]
[{"$f":"HYPERLINK( CONCATENATE(\"https://selfservice.mypurdue.purdue.edu/prod/bzwsrch.p_catalog_detail?subject=\",LEFT(B101, SEARCH(\" \",B101,1)-1),\"&cnbr=\",MID(B101, 1+SEARCH(\" \",B101,SEARCH(\" \",B101,1)),5)), 4 )","v":4},"CHNS 20100 - Chinese Level III",null,"Y","Y",{"$nulls":3},"Y"]
[{"$f":"HYPERLINK( CONCATENATE(\"https://selfservice.mypurdue.purdue.edu/prod/bzwsrch.p_catalog_detail?subject=\",LEFT(B102, SEARCH(\" \",B102,1)-1),\"&cnbr=\",MID(B102, 1+SEARCH(\" \",B102,SEARCH(\" \",B102,1)),5)), 4 )","v":4},"CHNS 20200- Chinese Level IV",null,"Y","Y",{"$nulls":3},"Y"]
[3,"CHNS 23000 - Chinese Literature in Translation",null,"Y",{"$nulls":4},"Y"]
[3,"CHNS 24100 - Introduction to the Study of Chinese Literature",null,"Y","Y",{"$nulls":3},"Y"]
[3,"CHNS 28000 - Topics in Chinese Civilization and Culture",null,"Y","Y",{"$nulls":3},"Y"]
[{"$f":"HYPERLINK( CONCATENATE(\"https://selfservice.mypurdue.purdue.edu/prod/bzwsrch.p_catalog_detail?subject=\",LEFT(B106, SEARCH(\" \",B106,1)-1),\"&cnbr=\",MID(B106, 1+SEARCH(\" \",B106,SEARCH(\" \",B106,1)),5)), 1 )","v":1},"CHNS 28500 - Chinese Calligraphy",null,"Y",{"$nulls":4},"Y"]
[3,"CHNS 30100 - Chinese Level V",null,"Y","Y",{"$nulls":3},"Y"]
[3,"CHNS 30200 - Chinese Level VI",null,"Y","Y",{"$nulls":3},"Y"]
[3,"CHNS 33000 - Introduction to Chinese Cinema",null,"Y","Y",{"$nulls":3},"Y"]
[3,"CHNS 40100 - Chinese Level VII",null,"Y","Y",{"$nulls":3},"Y"]
[3,"CHNS 40200 - Chinese Level VIII",null,"Y","Y",{"$nulls":3},"Y"]
[null,"CLCS | Any Classics (CLCS) course may be a humanities selection.  Any CLCS course may be an international understanding selection.",null,"Y",{"$nulls":4},"Y"]
[3,"CLCS 23000 - Survey of Greet Literature in Translation (course number changed to CLCS 23010)",null,"Y","Y",{"$nulls":3},"Y"]
[3,"CLCS 23010 - Survey of Greet Literature in Translation",null,"Y","Y",{"$nulls":3},"Y"]
[3,"CLCS 23100 - Survey of Latin Literature",null,"Y","Y",{"$nulls":3},"Y"]
[3,"CLCS 23200 - Classical Roots of English Words",null,"Y","Y",{"$nulls":3},"Y"]
[3,"CLCS 23300 - Comparative Mythology",null,"Y","Y",{"$nulls":3},"Y"]
[3,"CLCS 23500 - Intro to Classical Mythology",null,"Y","Y",{"$nulls":3},"Y"]
[3,"CLCS 23700 - Gender & Sexuality in Greek and Roman Antiquity",null,"Y","Y",{"$nulls":3},"Y"]
[3,"CLCS 23800 - The Tragic Vision",null,"Y","Y",{"$nulls":3},"Y"]
[3,"CLCS 23900 - The Comic Vision",null,"Y","Y",{"$nulls":3},"Y"]
[{"$f":"HYPERLINK( CONCATENATE(\"https://selfservice.mypurdue.purdue.edu/prod/bzwsrch.p_catalog_detail?subject=\",LEFT(B122, SEARCH(\" \",B122,1)-1),\"&cnbr=\",MID(B122, 1+SEARCH(\" \",B122,SEARCH(\" \",B122,1)),5)), 3 )","v":3},"CLCS 33900 - Literature and the Law",null,"Y","Y",{"$nulls":3},"Y"]
[3,"CLCS 38000 - Alexander the Great & Hellenistic World",null,null,"Y",{"$nulls":3},"Y"]
[null,"CMPL | Any Comparative Literature (CMPL) course may be a humanities selection",null,"Y"]
[3,"CMPL 26600 - Intro to World Lit Beg - 1600",null,"Y","Y"]
[3,"CMPL 26700 - World Literature: From 1700 AD to the Present",null,"Y","Y"]
[null,"COM | Any Communications (COM) course above 200000 may be a communication selection","Y"]
[3,"COM 22400 - Communicating in the Global Workplace","Y",{"$nulls":5},"Y"]
[3,"COM 25100 - Communication, Information and Society","Y",{"$nulls":3},"Y"]
[3,"COM 30300 - Intercultural Communication","Y",{"$nulls":6},"Y"]
[3,"COM 32800 - Diversity at Work: A Rhetorical Approach","Y",{"$nulls":6},"Y"]
[3,"COM 36800 - Sociolinguistic Study of African American English","Y",{"$nulls":6},"Y"]
[3,"COM 37600 - Communication and Gender","Y",{"$nulls":6},"Y"]
[3,"COM 38100 - Gender and Feminist Studies in Communication","Y",{"$nulls":6},"Y"]
[3,"COM 42400 - Communication in International Organizations (This course is no longer in the catalog)","Y",{"$nulls":5},"Y"]
[{"$f":"HYPERLINK( CONCATENATE(\"https://selfservice.mypurdue.purdue.edu/prod/bzwsrch.p_catalog_detail?subject=\",LEFT(B136, SEARCH(\" \",B136,1)-1),\"&cnbr=\",MID(B136, 1+SEARCH(\" \",B136,SEARCH(\" \",B136,1)),5)), 3 )","v":3},"CS 10100 - Digital Literacy",null,null,"Y"]
[null,"DANC | Any Dance (DANC) course may be a humanities selection",null,"Y"]
[3,"DANC 25000 - Dance Appreciation",null,"Y","Y"]
[3,"EAPS 10000 - Planet Earth",{"$nulls":4},"Y"]
[3,"EAPS 10400 - Oceanography",{"$nulls":4},"Y"]
[3,"EAPS 10600 - Geosciences in the Cinema",{"$nulls":4},"Y"]
[3,"EAPS 11300 - Introduction to Environmental Science (This course is no longer in the catalog; cross listed with AGRY 29000 and NRES 29000)",{"$nulls":4},"Y"]
[3,"EAPS 12000 - Introduction to Geography",{"$nulls":4},"Y"]
[{"$f":"HYPERLINK( CONCATENATE(\"https://selfservice.mypurdue.purdue.edu/prod/bzwsrch.p_catalog_detail?subject=\",LEFT(B144, SEARCH(\" \",B144,1)-1),\"&cnbr=\",MID(B144, 1+SEARCH(\" \",B144,SEARCH(\" \",B144,1)),5)), 3 )","v":3},"EAPS 12500 - Environmental Science and Conservation",{"$nulls":4},"Y"]
[{"$f":"HYPERLINK( CONCATENATE(\"https://selfservice.mypurdue.purdue.edu/prod/bzwsrch.p_catalog_detail?subject=\",LEFT(B145, SEARCH(\" \",B145,1)-1),\"&cnbr=\",MID(B145, 1+SEARCH(\" \",B145,SEARCH(\" \",B145,1)),5)), 3 )","v":3},"EAPS 12900 - Earth System Dynamics",{"$nulls":4},"Y"]
[{"$f":"HYPERLINK( CONCATENATE(\"https://selfservice.mypurdue.purdue.edu/prod/bzwsrch.p_catalog_detail?subject=\",LEFT(B146, SEARCH(\" \",B146,1)-1),\"&cnbr=\",MID(B146, 1+SEARCH(\" \",B146,SEARCH(\" \",B146,1)),5)), 3 )","v":3},"EAPS 20000 - Water World: Processes and Challenges in Global Hydrology"]
[null,"ECON | Any Economics (ECON) course may be a social science selection",{"$nulls":3},"Y"]
[3,"ECON 21000 - Principles of Economics",{"$nulls":3},"Y"]
[3,"ECON 25100 - Microeconomics",{"$nulls":3},"Y"]
[3,"ECON 25200 - Macroeconomics",{"$nulls":3},"Y"]
[3,"ECON 37000 - International Trade",{"$nulls":3},"Y",null,null,"Y"]
[3,"ECON 46600 - International Economics",{"$nulls":3},"Y",null,null,"Y"]
[3,"EDCI 28500 - Multiculturalism and Education",{"$nulls":7},"Y"]
[3,"EDPS 23500 - Learning And Motivation ",{"$nulls":3},"Y"]
[3,"EDPS 26500 - The Inclusive Classroom",{"$nulls":3},"Y"]
[3,"EDPS 31500 - Collaborative Leadership: Interpersonal Skills","Y"]
[3,"EDST 20000 - History And Philosophy Of Education",null,"Y","Y"]
[null,"ENGL | Any English (ENGL) course above 20000 may be a communication selection","Y"]
[{"$f":"HYPERLINK( CONCATENATE(\"https://selfservice.mypurdue.purdue.edu/prod/bzwsrch.p_catalog_detail?subject=\",LEFT(B159, SEARCH(\" \",B159,1)-1),\"&cnbr=\",MID(B159, 1+SEARCH(\" \",B159,SEARCH(\" \",B159,1)),5)), 3 )","v":3},"ENGL 11000 - American Language and Culture for International Students I",null,"Y","Y"]
[3,"ENGL 20200 - Engaging English","Y",null,"Y"]
[{"$f":"HYPERLINK( CONCATENATE(\"https://selfservice.mypurdue.purdue.edu/prod/bzwsrch.p_catalog_detail?subject=\",LEFT(B161, SEARCH(\" \",B161,1)-1),\"&cnbr=\",MID(B161, 1+SEARCH(\" \",B161,SEARCH(\" \",B161,1)),5)), 3 )","v":3},"ENGL 21700 - Figures of Myth and Legend I: Monsters",null,null,"Y"]
[{"$f":"HYPERLINK( CONCATENATE(\"https://selfservice.mypurdue.purdue.edu/prod/bzwsrch.p_catalog_detail?subject=\",LEFT(B162, SEARCH(\" \",B162,1)-1),\"&cnbr=\",MID(B162, 1+SEARCH(\" \",B162,SEARCH(\" \",B162,1)),5)), 3 )","v":3},"ENGL 21800 - Figures of Myth and Legend II: Heros and Villains",null,null,"Y"]
[{"$f":"HYPERLINK( CONCATENATE(\"https://selfservice.mypurdue.purdue.edu/prod/bzwsrch.p_catalog_detail?subject=\",LEFT(B163, SEARCH(\" \",B163,1)-1),\"&cnbr=\",MID(B163, 1+SEARCH(\" \",B163,SEARCH(\" \",B163,1)),5)), 3 )","v":3},"ENGL 21900 - Figures of Myth and Legend III: Magic and Marvels",null,null,"Y"]
[3,"ENGL 22300 - Literature and Technology","Y",null,"Y",null,"Y"]
[3,"ENGL 22500 - Literature, Inequality, and Injustice","Y",null,"Y"]
[3,"ENGL 22600 - Narrative Medicine","Y",{"$nulls":3},"Y"]
[3,"ENGL 22700 -Elements Of Linguistics","Y","Y"]
[3,"ENGL 23000 - Great Narrative Works","Y","Y","Y"]
[3,"ENGL 23100 - Introduction To Literature","Y","Y"]
[3,"ENGL 23200 - Thematic Studies In Literature","Y","Y"]
[3,"ENGL 23400 - Ecological Literature","Y",{"$nulls":3},"Y"]
[3,"ENGL 23500 - Introduction To Drama","Y","Y"]
[3,"ENGL 23700 - Introduction To Poetry","Y","Y","Y"]
[3,"ENGL 23800 - Introduction To Fiction","Y","Y","Y"]
[3,"ENGL 23900 - Introduction To Biography","Y","Y"]
[3,"ENGL 24000 - Survey of the British Literature: From the Beginnings Through the Neoclassical Period","Y","Y","Y"]
[3,"ENGL 24100 - Survey Of The British Literature: From The Rise Of Romanticism To The Modern Period ","Y","Y","Y"]
[3,"ENGL 25000 - Great American Books","Y","Y","Y"]
[3,"ENGL 25700 - Literature of Black America","Y","Y",{"$nulls":5},"Y"]
[3,"ENGL 26200 - Greek And Roman Classics In Translation","Y","Y"]
[3,"ENGL 26400 - The Bible As Literature","Y","Y","Y"]
[3,"ENGL 26600 - World Literature: From the Beginnings to 1700 A.D.","Y","Y",{"$nulls":4},"Y"]
[3,"ENGL 26700 - World Literature: From 1700 A.D. to the Present","Y","Y","Y",{"$nulls":3},"Y"]
[3,"ENGL 27600 - Shakespeare On Film","Y","Y","Y"]
[3,"ENGL 27900 - The American Short Story In Print And Film","Y","Y"]
[3,"ENGL 28600 - The Movies ","Y",null,"Y"]
[3,"ENGL 32200 - Word, Image, Media","Y",null,"Y"]
[3,"ENGL 33100 - Medieval English Literature","Y","Y"]
[3,"ENGL 33300 - Renaissance English Literature","Y","Y"]
[3,"ENGL 33500 - Restoration And Eighteenth-Century English Literature","Y","Y"]
[3,"ENGL 33700 - Nineteenth-Century English Literature","Y","Y"]
[3,"ENGL 35000 - Survey Of American Literature From Its Beginnings To 1865","Y","Y","Y"]
[{"$f":"HYPERLINK( CONCATENATE(\"https://selfservice.mypurdue.purdue.edu/prod/bzwsrch.p_catalog_detail?subject=\",LEFT(B193, SEARCH(\" \",B193,1)-1),\"&cnbr=\",MID(B193, 1+SEARCH(\" \",B193,SEARCH(\" \",B193,1)),5)), 3 )","v":3},"ENGL 35100 - Survey Of American Literature From 1865 To The Post-World War II Period","Y","Y","Y"]
[3,"ENGL 35400 - Asian American Literature","Y",{"$nulls":6},"Y"]
[3,"ENGL 35600 - American Humor","Y","Y"]
[3,"ENGL 35800 - Black Drama","Y","Y",{"$nulls":5},"Y"]
[3,"ENGL 36000 - Gender and Literature","Y","Y","Y",{"$nulls":4},"Y"]
[3,"ENGL 36400 - Religious Classics In The Western Tradition (This course is no longer in the catalog)","Y","Y"]
[3,"ENGL 36500 - Literature and Imperialism","Y",null,"Y"]
[3,"ENGL 36700 - Mystery and Detective Fiction","Y",null,"Y"]
[3,"ENGL 37200 - American Folklore","Y","Y"]
[3,"ENGL 37300 - Science Fiction And Fantasy","Y","Y","Y"]
[3,"ENGL 37500 - British Drama To 1800, Exclusive Of Shakespeare","Y","Y"]
[3,"ENGL 37700 - Major Modern Poetry","Y","Y"]
[3,"ENGL 37900 - The Short Story","Y","Y"]
[3,"ENGL 38100 - The British Novel","Y","Y","Y"]
[3,"ENGL 38200 - The American Novel","Y","Y","Y"]
[3,"ENGL 38300 - Modern Drama: Ibsen To The Absurdists","Y","Y"]
[3,"ENGL 38600 - History Of The Film To 1938","Y","Y"]
[3,"ENGL 38700 - History Of The Film From 1938 To The Present","Y","Y"]
[3,"ENGL 38900 - Literature for Children","Y",null,"Y"]
[3,"ENGL 39600 - Studies In Literature And Language","Y","Y"]
[3,"ENGL 41100 - Studies In Major Authors","Y","Y"]
[3,"ENGL 41200 - Studies In Genre","Y","Y"]
[3,"ENGL 41300 - Studies In Literature And History","Y","Y"]
[3,"ENGL 41400 - Studies In Literature And Culture","Y","Y"]
[3,"ENGL 44100 - Chaucer's Canterbury Tales","Y","Y"]
[3,"ENGL 44200 - Shakespeare","Y","Y"]
[3,"ENGL 44400 - Milton","Y","Y"]
[3,"ENGL 46200 - The Bible As Literature: The Old Testament","Y","Y"]
[3,"ENGL 46300 - The Bible As Literature: The New Testament","Y","Y"]
[3,"ENGL 46800 - Problems In The History Of Criticism","Y","Y"]
[3,"ENGL 46900 - Issues In Contemporary Criticism And Theory","Y","Y"]
[3,"ENGL 49200 - Literature In The Secondary Schools","Y","Y"]
[{"$f":"HYPERLINK( CONCATENATE(\"https://selfservice.mypurdue.purdue.edu/prod/bzwsrch.p_catalog_detail?subject=\",LEFT(B225, SEARCH(\" \",B225,1)-1),\"&cnbr=\",MID(B225, 1+SEARCH(\" \",B225,SEARCH(\" \",B225,1)),5)), 3 )","v":3},"ENGR 20100 - Engineering in Global Context (This course is no longer in the catalog; course number changed to ENGR 31000)",{"$nulls":4},"Y"]
[{"$f":"HYPERLINK( CONCATENATE(\"https://selfservice.mypurdue.purdue.edu/prod/bzwsrch.p_catalog_detail?subject=\",LEFT(B226, SEARCH(\" \",B226,1)-1),\"&cnbr=\",MID(B226, 1+SEARCH(\" \",B226,SEARCH(\" \",B226,1)),5)), 3 )","v":3},"ENGR 31000 - Engineering in the Global Context",{"$nulls":4},"Y"]
[3,"ENTM 10500 - Insects: Friends and Foe",{"$nulls":4},"Y"]
[3,"ENTM 12800 - Investigating Forensic Science",{"$nulls":4},"Y"]
[3,"ENTM 20100 - Scientific and Technical Communication","Y"]
[3,"ENTM 21800 - Intro to Forensic Science (This course is no longer in the catalog)",{"$nulls":4},"Y"]
[3,"ENTR 47000 - Women and Leadership",{"$nulls":7},"Y"]
[{"$f":"HYPERLINK( CONCATENATE(\"https://selfservice.mypurdue.purdue.edu/prod/bzwsrch.p_catalog_detail?subject=\",LEFT(B232, SEARCH(\" \",B232,1)-1),\"&cnbr=\",MID(B232, 1+SEARCH(\" \",B232,SEARCH(\" \",B232,1)),5)), 1 )","v":1},"EPCS 10100 - First Year Participation in EPICS",{"$nulls":4},"Y"]
[{"$f":"HYPERLINK( CONCATENATE(\"https://selfservice.mypurdue.purdue.edu/prod/bzwsrch.p_catalog_detail?subject=\",LEFT(B233, SEARCH(\" \",B233,1)-1),\"&cnbr=\",MID(B233, 1+SEARCH(\" \",B233,SEARCH(\" \",B233,1)),5)), 2 )","v":2},"EPCS 10200 - First Year Participation in EPICS",{"$nulls":4},"Y"]
[{"$f":"HYPERLINK( CONCATENATE(\"https://selfservice.mypurdue.purdue.edu/prod/bzwsrch.p_catalog_detail?subject=\",LEFT(B234, SEARCH(\" \",B234,1)-1),\"&cnbr=\",MID(B234, 1+SEARCH(\" \",B234,SEARCH(\" \",B234,1)),5)), 1 )","v":1},"EPCS 11100 - First Year Participation in EPICS I",{"$nulls":4},"Y"]
[{"$f":"HYPERLINK( CONCATENATE(\"https://selfservice.mypurdue.purdue.edu/prod/bzwsrch.p_catalog_detail?subject=\",LEFT(B235, SEARCH(\" \",B235,1)-1),\"&cnbr=\",MID(B235, 1+SEARCH(\" \",B235,SEARCH(\" \",B235,1)),5)), 1 )","v":1},"EPCS 12100 - First Year Participation in EPICS II",{"$nulls":4},"Y"]
[{"$f":"HYPERLINK( CONCATENATE(\"https://selfservice.mypurdue.purdue.edu/prod/bzwsrch.p_catalog_detail?subject=\",LEFT(B236, SEARCH(\" \",B236,1)-1),\"&cnbr=\",MID(B236, 1+SEARCH(\" \",B236,SEARCH(\" \",B236,1)),5)), 1 )","v":1},"EPCS 20100 - Sophomore Participation in EPICS",{"$nulls":4},"Y"]
[{"$f":"HYPERLINK( CONCATENATE(\"https://selfservice.mypurdue.purdue.edu/prod/bzwsrch.p_catalog_detail?subject=\",LEFT(B237, SEARCH(\" \",B237,1)-1),\"&cnbr=\",MID(B237, 1+SEARCH(\" \",B237,SEARCH(\" \",B237,1)),5)), 2 )","v":2},"EPCS 20200 - Sophomore Participation in EPICS",{"$nulls":4},"Y"]
[{"$f":"HYPERLINK( CONCATENATE(\"https://selfservice.mypurdue.purdue.edu/prod/bzwsrch.p_catalog_detail?subject=\",LEFT(B238, SEARCH(\" \",B238,1)-1),\"&cnbr=\",MID(B238, 1+SEARCH(\" \",B238,SEARCH(\" \",B238,1)),5)), 1 )","v":1},"EPCS 30100 - Junior Participation in EPICS",{"$nulls":4},"Y"]
[{"$f":"HYPERLINK( CONCATENATE(\"https://selfservice.mypurdue.purdue.edu/prod/bzwsrch.p_catalog_detail?subject=\",LEFT(B239, SEARCH(\" \",B239,1)-1),\"&cnbr=\",MID(B239, 1+SEARCH(\" \",B239,SEARCH(\" \",B239,1)),5)), 2 )","v":2},"EPCS 30200 - Junior Participation in EPICS",{"$nulls":4},"Y"]
[{"$f":"HYPERLINK( CONCATENATE(\"https://selfservice.mypurdue.purdue.edu/prod/bzwsrch.p_catalog_detail?subject=\",LEFT(B240, SEARCH(\" \",B240,1)-1),\"&cnbr=\",MID(B240, 1+SEARCH(\" \",B240,SEARCH(\" \",B240,1)),5)), 1 )","v":1},"EPCS 40100 - Senior Participation in EPICS",{"$nulls":4},"Y"]
[{"$f":"HYPERLINK( CONCATENATE(\"https://selfservice.mypurdue.purdue.edu/prod/bzwsrch.p_catalog_detail?subject=\",LEFT(B241, SEARCH(\" \",B241,1)-1),\"&cnbr=\",MID(B241, 1+SEARCH(\" \",B241,SEARCH(\" \",B241,1)),5)), 2 )","v":2},"EPCS 40200 - Senior Participation in EPICS",{"$nulls":4},"Y"]
[null,"FLL | Any Foreign language or literature (FLL) course may be a humanities selection and is also international understanding.  ",null,"Y",{"$nulls":4},"Y"]
[3,"FNR 10300 - Intro to Environmental Conservation (This course is no longer in the catalog; the course still seems to be offered though…)",{"$nulls":4},"Y"]
[{"$f":"HYPERLINK( CONCATENATE(\"https://selfservice.mypurdue.purdue.edu/prod/bzwsrch.p_catalog_detail?subject=\",LEFT(B244, SEARCH(\" \",B244,1)-1),\"&cnbr=\",MID(B244, 1+SEARCH(\" \",B244,SEARCH(\" \",B244,1)),5)), 3 )","v":3},"FNR 12500 - Environmental Science and Conservation",{"$nulls":4},"Y"]
[3,"FNR 22310 - Introduction to Environmental Policy",{"$nulls":4},"Y"]
[3,"FNR 23000 - The World's Forests and Society",{"$nulls":4},"Y",null,"Y"]
[3,"FNR 24000 - Wildlife in America ",{"$nulls":4},"Y"]
[{"$f":"HYPERLINK( CONCATENATE(\"https://selfservice.mypurdue.purdue.edu/prod/bzwsrch.p_catalog_detail?subject=\",LEFT(B248, SEARCH(\" \",B248,1)-1),\"&cnbr=\",MID(B248, 1+SEARCH(\" \",B248,SEARCH(\" \",B248,1)),5)), 2 )","v":2},"FNR 30200 - Global Sustainability Issues",{"$nulls":6},"Y"]
[{"$f":"HYPERLINK( CONCATENATE(\"https://selfservice.mypurdue.purdue.edu/prod/bzwsrch.p_catalog_detail?subject=\",LEFT(B249, SEARCH(\" \",B249,1)-1),\"&cnbr=\",MID(B249, 1+SEARCH(\" \",B249,SEARCH(\" \",B249,1)),5)), 3 )","v":3},"FNR 37500- Human Dimensions of Natural Resource Management",{"$nulls":3},"Y"]
[3,"FNR 46000 - International Natural Resources Summer Program",{"$nulls":6},"Y"]
[3,"FNR 48800 - Global Environmental Issues",{"$nulls":6},"Y"]
[null,"FR | Any French (FR) course (language or culture and literature) may be a humanities selection.  Any FR course may be an international understanding selection.",null,"Y",{"$nulls":4},"Y"]
[3,"FR 10100 - French Level I",null,"Y","Y",{"$nulls":3},"Y"]
[3,"FR 10200 - French Level II",null,"Y","Y",{"$nulls":3},"Y"]
[3,"FR 20100 - French Level III",null,"Y","Y",{"$nulls":3},"Y"]
[3,"FR 20200 - French Level IV",null,"Y","Y",{"$nulls":3},"Y"]
[3,"FR 23000 - French Literature in Translation",null,"Y",{"$nulls":4},"Y"]
[3,"FR 30100 - French Level V",null,"Y","Y",{"$nulls":3},"Y"]
[3,"FR 30200 - French Level VI",null,"Y","Y",{"$nulls":3},"Y"]
[3,"FR 33000 - French Cinema",null,"Y","Y",{"$nulls":3},"Y"]
[3,"FR 40100 - French Level VII",null,"Y","Y",{"$nulls":3},"Y"]
[3,"FR 40200 - French Level VIII",null,"Y","Y",{"$nulls":3},"Y"]
[3,"FS 161 - Science of Food (This course is no longer in the catalog)",{"$nulls":4},"Y"]
[null,"FVS | Any Film and Video Studies (FVS) course may be a humanities selection",null,"Y"]
[null,"GER | Any German (GER) course (language or culture and literature) may be a humanities selection.  Any GER course may be an international understanding selection. ",null,"Y",{"$nulls":4},"Y"]
[3,"GER 10100 - German Level I",null,"Y","Y",{"$nulls":3},"Y"]
[3,"GER 10200 - German Level II",null,"Y","Y",{"$nulls":3},"Y"]
[3,"GER 20100 - German Level III",null,"Y","Y",{"$nulls":3},"Y"]
[3,"GER 20200 - German Level IV",null,"Y","Y",{"$nulls":3},"Y"]
[3,"GER 23000 - German Literature in Translation",null,"Y","Y",{"$nulls":3},"Y"]
[3,"GER 28000 - German Special Topics",null,"Y",{"$nulls":4},"Y"]
[3,"GER 30100 - German Level V",null,"Y","Y",{"$nulls":3},"Y"]
[3,"GER 30200 - German Level VI",null,"Y","Y",{"$nulls":3},"Y"]
[3,"GER 33000 - German Cinema ",null,"Y","Y",{"$nulls":3},"Y"]
[3,"GER 40100 - German Level VII",null,"Y","Y",{"$nulls":3},"Y"]
[3,"GER 40200 - German Level VIII",null,"Y","Y",{"$nulls":3},"Y"]
[null,"GREK | Any Greek (GREK) course (language or culture and literature) may be a humanities selection.  Any GREK course may be an international understanding selection. ",null,"Y",{"$nulls":4},"Y"]
[3,"GREK 10100 - Ancient Greek Level I",null,"Y","Y",{"$nulls":3},"Y"]
[3,"GREK 10200 - Ancient Greek Level II",null,"Y","Y",{"$nulls":3},"Y"]
[3,"GREK 20100 - Ancient Greek Level III",null,"Y","Y",{"$nulls":3},"Y"]
[3,"GREK 20200 - Ancient Greek Level IV",null,"Y","Y",{"$nulls":3},"Y"]
[3,"GS 10000 - American Language and Culture for International Students (This course is no longer in the catalog)",null,"Y",null,"Y"]
[3,"GSLA 30100 - Theories of Global Studies",null,null,"Y"]
[3,"HDFS 28000 - Diversity in Individual and Family Life",{"$nulls":7},"Y"]
[3,"HDFS 30100 - Families in a multicultural society (This course is no longer in the catalog)",{"$nulls":7},"Y"]
[null,"HEBR | Any Hebrew (HEBR) course (language or culture and literature) may be a humanities selection.  Any HEBR course may be an international understanding selection. ",null,"Y",{"$nulls":4},"Y"]
[3,"HEBR 10100 - Modern Hebrew I",null,"Y","Y"]
[3,"HEBR 10200 - Modern Hebrew II",null,"Y","Y"]
[3,"HEBR 12100 - Biblical Hebrew Level I",null,"Y","Y"]
[3,"HEBR 12200 - Biblical Hebrew Level II",null,"Y","Y"]
[3,"HEBR 20100 - Modern Hebrew III",null,"Y","Y"]
[3,"HEBR 20200 - Modern Hebrew IV",null,"Y","Y"]
[3,"HEBR 22100 - Biblical Hebrew Level III",null,"Y","Y"]
[3,"HEBR 22200 - Biblical Hebrew Level IV",null,"Y","Y"]
[3,"HEBR 28000 - Modern Israel: Cinema, Literature, Politics and History (This course is no longer in the catalog)",null,"Y","Y",{"$nulls":3},"Y"]
[{"$f":"HYPERLINK( CONCATENATE(\"https://selfservice.mypurdue.purdue.edu/prod/bzwsrch.p_catalog_detail?subject=\",LEFT(B296, SEARCH(\" \",B296,1)-1),\"&cnbr=\",MID(B296, 1+SEARCH(\" \",B296,SEARCH(\" \",B296,1)),5)), 3 )","v":3},"HEBR 38000 - Israel and the Modern World",null,null,"Y"]
[3,"HEBR 38500 - The Holocaust in Modern Hebrew Literature",null,"Y",{"$nulls":4},"Y"]
[null,"HIST | Any History (HIST) course may be a humanities selection",null,"Y"]
[3,"HIST 10300 - Intro to the Medieval World",null,"Y","Y"]
[3,"HIST 10400 - Intro to the Modern World",null,"Y","Y",{"$nulls":3},"Y"]
[3,"HIST 10500 - Survey of Global World ",null,"Y","Y",{"$nulls":3},"Y"]
[3,"HIST 15100 - American History to 1877",null,"Y","Y"]
[3,"HIST 15200 - United States since 1877",null,"Y","Y"]
[3,"HIST 21000 - The Making of Modern Africa",null,"Y","Y"]
[3,"HIST 21100 - The Global Field: World Soccer and Global History",null,"Y","Y"]
[3,"HIST 23800 - History of Russia from Medieval times to 1861",null,"Y","Y"]
[3,"HIST 23900 - History of Russia from 1861 to the present",null,"Y","Y"]
[3,"HIST 24000 - East Asia and Its Historic Transition",null,"Y","Y",{"$nulls":3},"Y"]
[3,"HIST 24100 - East Asia and the Modern World",null,"Y","Y",{"$nulls":3},"Y"]
[3,"HIST 24300 - South Asian History and Civilizations",null,"Y","Y",{"$nulls":3},"Y"]
[3,"HIST 24500 - Intro to Middle East History and Culture",null,"Y","Y",{"$nulls":3},"Y"]
[3,"HIST 24600 - Modern Middle East and North Africa",null,"Y","Y",{"$nulls":3},"Y"]
[3,"HIST 25000 - U.S. Relations with the Middle East & No. Africa",null,"Y","Y"]
[3,"HIST 27100 - Introduction To Colonial Latin American History (1492-1810)",null,"Y","Y",{"$nulls":3},"Y"]
[{"$f":"HYPERLINK( CONCATENATE(\"https://selfservice.mypurdue.purdue.edu/prod/bzwsrch.p_catalog_detail?subject=\",LEFT(B315, SEARCH(\" \",B315,1)-1),\"&cnbr=\",MID(B315, 1+SEARCH(\" \",B315,SEARCH(\" \",B315,1)),5)), 3 )","v":3},"HIST 27200 - Introduction To Modern Latin American History (1810 To The Present)",null,"Y","Y",{"$nulls":3},"Y"]
[3,"HIST 29000 - Russia: Yesterday, Today, and Tomorrow",null,"Y",{"$nulls":4},"Y"]
[3,"HIST 30000 - Eve of Destruction: Global Crisis and World Organization in the 20th Century",null,"Y","Y",{"$nulls":3},"Y"]
[3,"HIST 30200 - History of Horticulture",null,"Y",{"$nulls":4},"Y"]
[3,"HIST 30305 - Food in Modern America",null,"Y","Y",null,"Y"]
[3,"HIST 30400 - America in the 1960s",null,"Y","Y"]
[3,"HIST 30505 - The U.S. in the World 1898-present",null,"Y","Y"]
[3,"HIST 31005 - The Civil War and Reconstruction, 1850-1877",null,"Y","Y"]
[3,"HIST 31405 - Science, Technology, Engineering and Mathematics (STEM) and Gender",null,"Y","Y",null,"Y"]
[3,"HIST 31505 - American Beauty",null,"Y","Y"]
[3,"HIST 32300 - German History",null,"Y","Y",{"$nulls":3},"Y"]
[3,"HIST 32400 - Modern France",null,"Y","Y",{"$nulls":3},"Y"]
[3,"HIST 32900 - History of Women in Modern Europe",null,"Y","Y"]
[{"$f":"HYPERLINK( CONCATENATE(\"https://selfservice.mypurdue.purdue.edu/prod/bzwsrch.p_catalog_detail?subject=\",LEFT(B328, SEARCH(\" \",B328,1)-1),\"&cnbr=\",MID(B328, 1+SEARCH(\" \",B328,SEARCH(\" \",B328,1)),5)), 3 )","v":3},"HIST 33205 - The Nuclear Age (This course is no longer in the catalog)",null,null,"Y",null,"Y"]
[{"$f":"HYPERLINK( CONCATENATE(\"https://selfservice.mypurdue.purdue.edu/prod/bzwsrch.p_catalog_detail?subject=\",LEFT(B329, SEARCH(\" \",B329,1)-1),\"&cnbr=\",MID(B329, 1+SEARCH(\" \",B329,SEARCH(\" \",B329,1)),5)), 3 )","v":3},"HIST 33300 - Science and Society in Western Civilization I",null,null,"Y",null,"Y"]
[{"$f":"HYPERLINK( CONCATENATE(\"https://selfservice.mypurdue.purdue.edu/prod/bzwsrch.p_catalog_detail?subject=\",LEFT(B330, SEARCH(\" \",B330,1)-1),\"&cnbr=\",MID(B330, 1+SEARCH(\" \",B330,SEARCH(\" \",B330,1)),5)), 3 )","v":3},"HIST 33400 - Science and Society in Western Civilization II",null,null,"Y",null,"Y"]
[3,"HIST 33805 - History of Human Rights",null,"Y","Y"]
[3,"HIST 34000 - Modern China",null,"Y","Y",{"$nulls":3},"Y"]
[3,"HIST 34100 - History of Africa South of the Sahara",null,"Y","Y",{"$nulls":3},"Y"]
[3,"HIST 34200 - Africa and the West",null,"Y",{"$nulls":4},"Y"]
[3,"HIST 34300 - Traditional Japan",null,"Y","Y",{"$nulls":3},"Y"]
[3,"HIST 34400 - History of Modern Japan",null,"Y","Y",{"$nulls":3},"Y"]
[3,"HIST 34500 - Modern Middle East (This course is no longer in the catalog)",null,"Y",{"$nulls":4},"Y"]
[3,"HIST 34901 - The First World War",null,"Y","Y"]
[{"$f":"HYPERLINK( CONCATENATE(\"https://selfservice.mypurdue.purdue.edu/prod/bzwsrch.p_catalog_detail?subject=\",LEFT(B339, SEARCH(\" \",B339,1)-1),\"&cnbr=\",MID(B339, 1+SEARCH(\" \",B339,SEARCH(\" \",B339,1)),5)), 3 )","v":3},"HIST 35000 - Science & Society in the Twentieth Century World",null,null,"Y",null,"Y"]
[3,"HIST 35100 - The Second World War",null,"Y","Y"]
[{"$f":"HYPERLINK( CONCATENATE(\"https://selfservice.mypurdue.purdue.edu/prod/bzwsrch.p_catalog_detail?subject=\",LEFT(B341, SEARCH(\" \",B341,1)-1),\"&cnbr=\",MID(B341, 1+SEARCH(\" \",B341,SEARCH(\" \",B341,1)),5)), 3 )","v":3},"HIST 35205 - Death, Disease And Medicine In Twentieth Century American History",null,null,"Y",null,"Y"]
[3,"HIST 35400 - Women in America to 1870",null,"Y","Y",{"$nulls":4},"Y"]
[{"$f":"HYPERLINK( CONCATENATE(\"https://selfservice.mypurdue.purdue.edu/prod/bzwsrch.p_catalog_detail?subject=\",LEFT(B343, SEARCH(\" \",B343,1)-1),\"&cnbr=\",MID(B343, 1+SEARCH(\" \",B343,SEARCH(\" \",B343,1)),5)), 3 )","v":3},"HIST 35500 - History Of American Military Affairs",null,null,"Y"]
[3,"HIST 35900 - Gender in East Asian History",null,"Y","Y"]
[3,"HIST 36305 - The History of Medicine and Public Health",null,"Y","Y",null,"Y"]
[3,"HIST 36500 - Women in America",null,"Y",{"$nulls":5},"Y"]
[3,"HIST 36600 - Hispanic Heritage of the United States",null,"Y",{"$nulls":5},"Y"]
[3,"HIST 37100 - Society, Culture, and Rock and Roll",null,"Y","Y"]
[3,"HIST 37500 - Womein in America Since 1870",null,"Y","Y",{"$nulls":4},"Y"]
[3,"HIST 37700 - History and Culture of Native America",null,"Y","Y",{"$nulls":4},"Y"]
[3,"HIST 38001 - History of U.S. Agriculture",null,"Y","Y",null,"Y"]
[3,"HIST 38200 - American Constitutional History",null,"Y","Y"]
[3,"HIST 38300 - Recent American Constitutional History",null,"Y","Y"]
[3,"HIST 38400 - History of Aviation",null,"Y","Y",null,"Y"]
[{"$f":"HYPERLINK( CONCATENATE(\"https://selfservice.mypurdue.purdue.edu/prod/bzwsrch.p_catalog_detail?subject=\",LEFT(B355, SEARCH(\" \",B355,1)-1),\"&cnbr=\",MID(B355, 1+SEARCH(\" \",B355,SEARCH(\" \",B355,1)),5)), 3 )","v":3},"HIST 38505 - Media, Politics and Popular Culture",null,null,"Y"]
[3,"HIST 38700 - History of Space Age",null,"Y","Y",null,"Y"]
[3,"HIST 39400 - Environmental History of the United States",null,"Y","Y"]
[3,"HIST 39600 - The Afro-American to 1865",null,"Y","Y",{"$nulls":4},"Y"]
[3,"HIST 39800 - The Afro-American since 1865",null,"Y","Y",{"$nulls":4},"Y"]
[3,"HIST 40800 - Dictatorship and Democracy: Europoe 1919-1945",null,"Y",{"$nulls":4},"Y"]
[{"$f":"HYPERLINK( CONCATENATE(\"https://selfservice.mypurdue.purdue.edu/prod/bzwsrch.p_catalog_detail?subject=\",LEFT(B361, SEARCH(\" \",B361,1)-1),\"&cnbr=\",MID(B361, 1+SEARCH(\" \",B361,SEARCH(\" \",B361,1)),5)), 3 )","v":3},"HIST 41005 - History of the American Presidency",null,null,"Y"]
[3,"HIST 43700 - The History of East Central Europe and the Russian Satellite Areas (This course is no longer in the catalog)",null,"Y",{"$nulls":4},"Y"]
[3,"HIST 43900 - Communist China",null,"Y",{"$nulls":4},"Y"]
[3,"HIST 44100 - Africa in the Twentieth Century",null,"Y",{"$nulls":4},"Y"]
[{"$f":"HYPERLINK( CONCATENATE(\"https://selfservice.mypurdue.purdue.edu/prod/bzwsrch.p_catalog_detail?subject=\",LEFT(B365, SEARCH(\" \",B365,1)-1),\"&cnbr=\",MID(B365, 1+SEARCH(\" \",B365,SEARCH(\" \",B365,1)),5)), 3 )","v":3},"HIST 47005 - Women and Health in America",null,null,"Y"]
[3,"HIST 47200 - History of Mexico",null,"Y",{"$nulls":4},"Y"]
[3,"HIST 59500 - The Holocaust and Genocide",null,"Y",{"$nulls":4},"Y"]
[3,"HK 22600 - Contemporary Women's Health",{"$nulls":7},"Y"]
[3,"HONR 19900 - Malaria: First World Science v Third World Disease",{"$nulls":6},"Y"]
[3,"HONR 19900 - The Role of Animals in Societies of the World",{"$nulls":6},"Y"]
[3,"HONR 19900 - Science and Pseudoscience",null,"Y"]
[{"$f":"HYPERLINK( CONCATENATE(\"https://selfservice.mypurdue.purdue.edu/prod/bzwsrch.p_catalog_detail?subject=\",LEFT(B372, SEARCH(\" \",B372,1)-1),\"&cnbr=\",MID(B372, 1+SEARCH(\" \",B372,SEARCH(\" \",B372,1)),5)), 1 )","v":1},"HONR 19901 - The Evolution of Ideas (Previously named: First Year Honors in Science, Technology, and Society)",{"$nulls":4},"Y"]
[3,"HONR 29900 - Afghanistan Development Challenges",{"$nulls":6},"Y"]
[3,"HONR 29900 - Insects in Literature and Art",null,"Y"]
[{"$f":"HYPERLINK( CONCATENATE(\"https://selfservice.mypurdue.purdue.edu/prod/bzwsrch.p_catalog_detail?subject=\",LEFT(B375, SEARCH(\" \",B375,1)-1),\"&cnbr=\",MID(B375, 1+SEARCH(\" \",B375,SEARCH(\" \",B375,1)),5)), 1 )","v":1},"HORT 12100 - Medicine in the Garden",{"$nulls":4},"Y"]
[3,"HORT 30600 - History of Horticulture",null,"Y",null,null,"Y",null,"Y"]
[3,"HORT 40300 - Tropical Horticulture",{"$nulls":6},"Y"]
[3,"HORT 45000 - The English Landscape: Integrating HIST, HORT and LA",null,"Y",{"$nulls":4},"Y"]
[3,"HSCI 20100 - Principles of Public Health Science",{"$nulls":4},"Y"]
[3,"HSCI 20200 - Essentials of Environmental, Occupational, & Radiological Health Sciences.",{"$nulls":4},"Y"]
[3,"HTM 39800 - Cuisine and Culture Abroad",{"$nulls":6},"Y"]
[null,"IDIS | Any Interdisciplinary Studies (IDIS) course may be a humanities selection",null,"Y"]
[3,"IDIS 27100 - Introduction to African American Studies (This course is no longer in the catalog)",null,"Y",{"$nulls":5},"Y"]
[3,"IDIS 27700 - African American Pop Culture (This course is no longer in the catalog)",null,"Y",{"$nulls":5},"Y"]
[3,"IDIS 28000 - Women's Studies:  An Introduction",null,"Y",{"$nulls":5},"Y"]
[3,"IDIS 33000 - Introduction to Jewish Studies",null,"Y",{"$nulls":5},"Y"]
[3,"IDIS 37000 - Black Women Rising (This course is no longer in the catalog)",null,"Y",{"$nulls":5},"Y"]
[{"$f":"HYPERLINK( CONCATENATE(\"https://selfservice.mypurdue.purdue.edu/prod/bzwsrch.p_catalog_detail?subject=\",LEFT(B388, SEARCH(\" \",B388,1)-1),\"&cnbr=\",MID(B388, 1+SEARCH(\" \",B388,SEARCH(\" \",B388,1)),5)), 3 )","v":3},"IDIS 37500 - Black Family (This course is no longer in the catalog)",null,"Y",{"$nulls":5},"Y"]
[3,"IDIS 37600 - African American Male (This course is no longer in the catalog)"," ","Y",{"$nulls":5},"Y"]
[3,"IDIS 38000 - Gender and Multiculturalism",null,"Y",{"$nulls":5},"Y"]
[3,"IDIS 38100 - Contemporary Japanese Women (This course is no longer in the catalog)",null,"Y",{"$nulls":4},"Y"]
[3,"IDIS 48100 - Women of Color in the United States (This course is no longer in the catalog)",null,"Y",{"$nulls":5},"Y"]
[{"$f":"HYPERLINK( CONCATENATE(\"https://selfservice.mypurdue.purdue.edu/prod/bzwsrch.p_catalog_detail?subject=\",LEFT(B393, SEARCH(\" \",B393,1)-1),\"&cnbr=\",MID(B393, 1+SEARCH(\" \",B393,SEARCH(\" \",B393,1)),5)), 2 )","v":2},"IT 22600 - Biotechnical Lab I",{"$nulls":4},"Y"]
[null,"ITAL | Any Italian (ITAL) course (language or culture and literature) may be a humanities selection.  Any ITAL course may be an international understanding selection. ",null,"Y",{"$nulls":4},"Y"]
[3,"ITAL 10100 - Italian Level I",null,"Y","Y",{"$nulls":3},"Y"]
[3,"ITAL 10200 - Italian Level II",null,"Y","Y",{"$nulls":3},"Y"]
[3,"ITAL 10500 - Accelerated Basic Italian",null,"Y","Y",{"$nulls":3},"Y"]
[3,"ITAL 20100 - Italian Level III",null,"Y","Y",{"$nulls":3},"Y"]
[3,"ITAL 20200 - Italian Level IV",null,"Y","Y",{"$nulls":3},"Y"]
[3,"ITAL 20500 - Accelerated Intermediate Italian",null,"Y","Y",{"$nulls":3},"Y"]
[3,"ITAL 23100 - Dante's Divine Comedy",null,"Y",{"$nulls":4},"Y"]
[3,"ITAL 28000 - Italian Culture & Civilization",null,"Y","Y",{"$nulls":3},"Y"]
[3,"ITAL 28100 - The Italian Renaissance and its Scientific and Cultural Impact on Western Civilization",null,"Y","Y",{"$nulls":3},"Y"]
[3,"ITAL 30100 - Italian Level V",null,"Y","Y",{"$nulls":3},"Y"]
[3,"ITAL 30200 - Italian Level VI",null,"Y","Y",{"$nulls":3},"Y"]
[3,"ITAL 33000 - Italian Cinema",null,"Y","Y",{"$nulls":3},"Y"]
[3,"ITAL 33300 - The Spirit of Italian Comedy",null,"Y","Y",{"$nulls":3},"Y"]
[3,"ITAL 33500 - Italian-American Cinema",null,"Y",{"$nulls":4},"Y"]
[3,"ITAL 38000 - Italian Culture and Civilization (This course is no longer in the catalog)",null,"Y","Y",{"$nulls":3},"Y"]
[3,"ITAL 39300 - Special Topics in Italian Literature or Cinema",null,"Y",{"$nulls":4},"Y"]
[3,"ITAL 49300 - Advanced Topics in Italian Literature or Cinema",null,"Y",{"$nulls":4},"Y"]
[null,"JPNS | Any Japanese (JPNS) course (language or culture and literature) may be a humanities selection.  Any JPNS course may be an international understanding selection. ",null,"Y",{"$nulls":4},"Y"]
[{"$f":"HYPERLINK( CONCATENATE(\"https://selfservice.mypurdue.purdue.edu/prod/bzwsrch.p_catalog_detail?subject=\",LEFT(B413, SEARCH(\" \",B413,1)-1),\"&cnbr=\",MID(B413, 1+SEARCH(\" \",B413,SEARCH(\" \",B413,1)),5)), 4 )","v":4},"JPNS 10100 - Japanese Level I",null,"Y","Y",{"$nulls":3},"Y"]
[{"$f":"HYPERLINK( CONCATENATE(\"https://selfservice.mypurdue.purdue.edu/prod/bzwsrch.p_catalog_detail?subject=\",LEFT(B414, SEARCH(\" \",B414,1)-1),\"&cnbr=\",MID(B414, 1+SEARCH(\" \",B414,SEARCH(\" \",B414,1)),5)), 4 )","v":4},"JPNS 10200 - Japanese Level II",null,"Y","Y",{"$nulls":3},"Y"]
[{"$f":"HYPERLINK( CONCATENATE(\"https://selfservice.mypurdue.purdue.edu/prod/bzwsrch.p_catalog_detail?subject=\",LEFT(B415, SEARCH(\" \",B415,1)-1),\"&cnbr=\",MID(B415, 1+SEARCH(\" \",B415,SEARCH(\" \",B415,1)),5)), 4 )","v":4},"JPNS 20100 - Japanese Level III",null,"Y","Y",{"$nulls":3},"Y"]
[{"$f":"HYPERLINK( CONCATENATE(\"https://selfservice.mypurdue.purdue.edu/prod/bzwsrch.p_catalog_detail?subject=\",LEFT(B416, SEARCH(\" \",B416,1)-1),\"&cnbr=\",MID(B416, 1+SEARCH(\" \",B416,SEARCH(\" \",B416,1)),5)), 4 )","v":4},"JPNS 20200 - Japanese Level IV",null,"Y","Y",{"$nulls":3},"Y"]
[3,"JPNS 23000 - Japanese Literature in Translation",null,"Y",{"$nulls":4},"Y"]
[3,"JPNS 28000 - Introduction to Modern Japanese Civilization",null,"Y",{"$nulls":4},"Y"]
[3,"JPNS 30100 - Japanese Level V",null,"Y","Y",{"$nulls":3},"Y"]
[3,"JPNS 30200 - Japanese Level VI",null,"Y","Y",{"$nulls":3},"Y"]
[3,"JPNS 33000 - Japanese Cinema",null,"Y",{"$nulls":4},"Y"]
[3,"JPNS 40100 - Japanese Level VII",null,"Y","Y",{"$nulls":3},"Y"]
[{"$f":"HYPERLINK( CONCATENATE(\"https://selfservice.mypurdue.purdue.edu/prod/bzwsrch.p_catalog_detail?subject=\",LEFT(B423, SEARCH(\" \",B423,1)-1),\"&cnbr=\",MID(B423, 1+SEARCH(\" \",B423,SEARCH(\" \",B423,1)),5)), 2 )","v":2},"JPNS 40200 - Japanese Level VIII",null,"Y","Y",{"$nulls":3},"Y"]
[null,"JWST | Any Jewish Studies (JWST) course may be a humanities selection",null,"Y"]
[3,"JWST 33000 - Introduction to Jewish Studies",null,"Y","Y",{"$nulls":4},"Y"]
[{"$f":"HYPERLINK( CONCATENATE(\"https://selfservice.mypurdue.purdue.edu/prod/bzwsrch.p_catalog_detail?subject=\",LEFT(B426, SEARCH(\" \",B426,1)-1),\"&cnbr=\",MID(B426, 1+SEARCH(\" \",B426,SEARCH(\" \",B426,1)),5)), 1 )","v":1},"LA 16100 - Land and Society",{"$nulls":4},"Y"]
[3,"LA 16600 - History and Theory of Landscape Architecture",{"$nulls":6},"Y"]
[3,"LA 45000 - The English Landscape: Integrating HIST, HORT and LA",null,"Y",{"$nulls":4},"Y"]
[null,"LALS | Any Latin America and Latino Studies (LALS) course may be a humanities selection",null,"Y"]
[null,"LATN | Any Latin (LATN) course (language or culture and literature) may be a humanities selection.  Any LATN course may be an international understanding selection. ",null,"Y",{"$nulls":4},"Y"]
[3,"LATN 10100 - Latin Level I",null,"Y","Y"]
[3,"LATN 10200 - Latin Level II",null,null,"Y"]
[3,"LATN 20100 - Latin Level III",null,null,"Y"]
[3,"LATN 20200 - Latin Level IV",null,null,"Y"]
[3,"LATN 34300 - Roman Oratory",null,null,"Y"]
[3,"LATN 34400 - Roman Epic",null,null,"Y"]
[3,"LATN 34500 - Roman Elegy",null,null,"Y"]
[3,"LATN 34600 - Roman Rhetoric",null,null,"Y"]
[3,"LATN 34700 - Roman Comedy",null,null,"Y"]
[3,"LATN 44200 - Roman Lyric Poetry",null,null,"Y"]
[3,"LATN 44300 - Roman Satire",null,null,"Y"]
[3,"LATN 44400 - Roman Philosophers",null,null,"Y"]
[3,"LATN 44500 - Roman Encyclopedists",null,null,"Y"]
[3,"LATN 44600 - Roman Historians",null,null,"Y"]
[null,"LC | Any Languages and Cultures course may be a humanities selection and is also international understanding.  ",null,"Y",{"$nulls":4},"Y"]
[3,"LC 23900 - Women Writers In Translation",null,"Y","Y",{"$nulls":3},"Y"]
[{"$f":"HYPERLINK( CONCATENATE(\"https://selfservice.mypurdue.purdue.edu/prod/bzwsrch.p_catalog_detail?subject=\",LEFT(B447, SEARCH(\" \",B447,1)-1),\"&cnbr=\",MID(B447, 1+SEARCH(\" \",B447,SEARCH(\" \",B447,1)),5)), 3 )","v":3},"LC 26100 - Introduction to the Linguistic Study of Foreign Languages",{"$nulls":3},"Y"]
[3,"LC 33300 - The Middle Ages on Film",null,"Y","Y",{"$nulls":3},"Y"]
[null,"LING | Any Linguistics (LING) course may be a humanities selection",null,"Y"]
[{"$f":"HYPERLINK( CONCATENATE(\"https://selfservice.mypurdue.purdue.edu/prod/bzwsrch.p_catalog_detail?subject=\",LEFT(B450, SEARCH(\" \",B450,1)-1),\"&cnbr=\",MID(B450, 1+SEARCH(\" \",B450,SEARCH(\" \",B450,1)),5)), 3 )","v":3},"LING 20100 - Intro to Linguistics",{"$nulls":3},"Y"]
[null,"MARS | Any Medieval and Renaissance Studies (MARS) course may be a humanities selection",null,"Y"]
[{"$f":"HYPERLINK( CONCATENATE(\"https://selfservice.mypurdue.purdue.edu/prod/bzwsrch.p_catalog_detail?subject=\",LEFT(B452, SEARCH(\" \",B452,1)-1),\"&cnbr=\",MID(B452, 1+SEARCH(\" \",B452,SEARCH(\" \",B452,1)),5)), 1 )","v":1},"ME 29000 - Global Engineering Professional Seminar",{"$nulls":4},"Y"]
[null,"MUS | Any Music (MUS) course may be a humanities selection",null,"Y"]
[{"$f":"HYPERLINK( CONCATENATE(\"https://selfservice.mypurdue.purdue.edu/prod/bzwsrch.p_catalog_detail?subject=\",LEFT(B454, SEARCH(\" \",B454,1)-1),\"&cnbr=\",MID(B454, 1+SEARCH(\" \",B454,SEARCH(\" \",B454,1)),5)), 3 )","v":3},"MUS 25000 - Music Appreciation",null,"Y","Y"]
[3,"MUS 26100 - Fundamentals of Music",null,"Y","Y"]
[3,"MUS 36100 - Music Theory I",null,"Y","Y"]
[{"$f":"HYPERLINK( CONCATENATE(\"https://selfservice.mypurdue.purdue.edu/prod/bzwsrch.p_catalog_detail?subject=\",LEFT(B457, SEARCH(\" \",B457,1)-1),\"&cnbr=\",MID(B457, 1+SEARCH(\" \",B457,SEARCH(\" \",B457,1)),5)), 3 )","v":3},"MUS 37600 - World Music",null,"Y","Y"]
[3,"MUS 37800 - Jazz History",null,"Y","Y"]
[{"$f":"HYPERLINK( CONCATENATE(\"https://selfservice.mypurdue.purdue.edu/prod/bzwsrch.p_catalog_detail?subject=\",LEFT(B459, SEARCH(\" \",B459,1)-1),\"&cnbr=\",MID(B459, 1+SEARCH(\" \",B459,SEARCH(\" \",B459,1)),5)), 3 )","v":3},"NRES 12500 - Environmental Science and Conservation",{"$nulls":4},"Y"]
[3,"NRES 29000 - Introduction to Environmental Science (This course is no longer in the catalog)",{"$nulls":4},"Y"]
[3,"NUTR 39800 - Culture & Food of France",{"$nulls":4},"Y"]
[3,"OLS 49900 - Women and Work",{"$nulls":7},"Y"]
[null,"PHIL | Any Philosophy (PHIL) course may be a humanities selection",null,"Y"]
[3,"PHIL 11000 - Introduction to Philosophy",null,"Y","Y",{"$nulls":3},"Y"]
[3,"PHIL 11100 - Ethics",null,"Y","Y"]
[3,"PHIL 11400 - Global Moral Issues",null,"Y","Y"]
[3,"PHIL 20600 - Philosophy of Religion",null,"Y","Y",{"$nulls":4},"Y"]
[{"$f":"HYPERLINK( CONCATENATE(\"https://selfservice.mypurdue.purdue.edu/prod/bzwsrch.p_catalog_detail?subject=\",LEFT(B468, SEARCH(\" \",B468,1)-1),\"&cnbr=\",MID(B468, 1+SEARCH(\" \",B468,SEARCH(\" \",B468,1)),5)), 3 )","v":3},"PHIL 20700 - Ethics for Technology, Engineering, and Design",{"$nulls":4},"Y"]
[3,"PHIL 21900 - Introduction to Existentialism",null,"Y","Y"]
[3,"PHIL 22100 - Introduction to Philosophy of Science",null,"Y",null,null,"Y"]
[{"$f":"HYPERLINK( CONCATENATE(\"https://selfservice.mypurdue.purdue.edu/prod/bzwsrch.p_catalog_detail?subject=\",LEFT(B471, SEARCH(\" \",B471,1)-1),\"&cnbr=\",MID(B471, 1+SEARCH(\" \",B471,SEARCH(\" \",B471,1)),5)), 3 )","v":3},"PHIL 22300 - Fate and Free Will",null,null,"Y"]
[3,"PHIL 22500 - Philosophy and Gender",null,"Y","Y",{"$nulls":4},"Y"]
[3,"PHIL 23000 - Religions of the East",null,"Y","Y",{"$nulls":3},"Y","Y"]
[3,"PHIL 23100 - Religions of the West",null,"Y","Y",{"$nulls":3},"Y","Y"]
[3,"PHIL 24000 - Social and Political Philosophy",null,"Y","Y"]
[3,"PHIL 24200 - Philosophy, Culture and the African American Experience",null,"Y","Y",{"$nulls":4},"Y"]
[3,"PHIL 27000 - Biomedical Ethics",null,"Y",null,null,"Y"]
[3,"PHIL 27500 - Philosophy of Art",null,"Y","Y"]
[3,"PHIL 28000 - Ethics and Animals",null,"Y","Y"]
[3,"PHIL 29000 - Environmental Ethics ",null,"Y","Y"]
[3,"PHIL 30100 - History of Ancient Philosophy",null,"Y","Y"]
[3,"PHIL 30200 - History of Medieval Philosophy",null,"Y","Y"]
[3,"PHIL 30300 - History of Modern Philosophy",null,"Y","Y"]
[3,"PHIL 30400 - 19th Centruy Philosophy",null,"Y","Y"]
[3,"PHIL 33000 - Religions of the East (This course is no longer in the catalog; renamed to PHIL 23000)",null,"Y","Y",{"$nulls":3},"Y","Y"]
[3,"PHIL 33100 - Religions of the West (This course is no longer in the catalog; renamed to PHIL 23100)",null,"Y",{"$nulls":4},"Y","Y"]
[null,"POL | Any Political Science (POL) course may be a social science selection",{"$nulls":3},"Y"]
[{"$f":"HYPERLINK( CONCATENATE(\"https://selfservice.mypurdue.purdue.edu/prod/bzwsrch.p_catalog_detail?subject=\",LEFT(B488, SEARCH(\" \",B488,1)-1),\"&cnbr=\",MID(B488, 1+SEARCH(\" \",B488,SEARCH(\" \",B488,1)),5)), 3 )","v":3},"POL 10100 - American Government and Politics",{"$nulls":3},"Y"]
[{"$f":"HYPERLINK( CONCATENATE(\"https://selfservice.mypurdue.purdue.edu/prod/bzwsrch.p_catalog_detail?subject=\",LEFT(B489, SEARCH(\" \",B489,1)-1),\"&cnbr=\",MID(B489, 1+SEARCH(\" \",B489,SEARCH(\" \",B489,1)),5)), 3 )","v":3},"POL 12000 - Introduction to Public Policy and Public Administration",{"$nulls":3},"Y"]
[3,"POL 13000 - Introduction to International Relations",{"$nulls":3},"Y",null,null,"Y"]
[3,"POL 14100 - Governments of the World",{"$nulls":3},"Y",null,null,"Y"]
[3,"POL 22200 - Women, Politics, and Public Policy",{"$nulls":3},"Y",{"$nulls":3},"Y"]
[3,"POL 22300 - Introduction to Environmental Policy",{"$nulls":3},"Y","Y"]
[{"$f":"HYPERLINK( CONCATENATE(\"https://selfservice.mypurdue.purdue.edu/prod/bzwsrch.p_catalog_detail?subject=\",LEFT(B494, SEARCH(\" \",B494,1)-1),\"&cnbr=\",MID(B494, 1+SEARCH(\" \",B494,SEARCH(\" \",B494,1)),5)), 3 )","v":3},"POL 23000 - Introduction to the Study of Peace",{"$nulls":3},"Y"]
[3,"POL 23100 - Introductions to United States Foreign Policy",{"$nulls":3},"Y",null,null,"Y"]
[3,"POL 23200 - Contemporary Crises in International Relations",{"$nulls":3},"Y",null,null,"Y"]
[3,"POL 23500 - International Relations Among Rich and Poor Nations",{"$nulls":3},"Y",null,null,"Y"]
[3,"POL 23700 - Modern Weapons and International Relations",{"$nulls":3},"Y","Y",null,"Y"]
[3,"POL 29000 - Russia: Yesterday, Today, and Tomorrow (This course is no longer in the catalog)",{"$nulls":3},"Y",null,null,"Y"]
[3,"POL 30300 - Comparative Politics (This course is no longer in the catalog)",{"$nulls":3},"Y",null,null,"Y"]
[3,"POL 30400 - Israel and World Politics (This course is no longer in the catalog) ",{"$nulls":3},"Y",null,null,"Y"]
[3,"POL 32200 - Science and World Politics (This course is no longer in the catalog)",{"$nulls":3},"Y",null,null,"Y"]
[3,"POL 32600 - Black Political Participation in America",{"$nulls":3},"Y",{"$nulls":3},"Y"]
[3,"POL 32700 - Global Green Politics",{"$nulls":3},"Y",null,null,"Y"]
[{"$f":"HYPERLINK( CONCATENATE(\"https://selfservice.mypurdue.purdue.edu/prod/bzwsrch.p_catalog_detail?subject=\",LEFT(B505, SEARCH(\" \",B505,1)-1),\"&cnbr=\",MID(B505, 1+SEARCH(\" \",B505,SEARCH(\" \",B505,1)),5)), 3 )","v":3},"POL 33500 - China and the Challenges of Globalization",{"$nulls":3},"Y"]
[3,"POL 34200 - Government and Politics in Communist Successor States (This course is no longer in the catalog)",{"$nulls":3},"Y",null,null,"Y"]
[3,"POL 34400 - Introduction to Politics of the Third World",{"$nulls":3},"Y",null,null,"Y"]
[3,"POL 34500 - West European Democracies in the Post-Industrial Era",{"$nulls":3},"Y",null,null,"Y"]
[3,"POL 34800 - East Asian Politics",{"$nulls":3},"Y",null,null,"Y"]
[3,"POL 36000 - Women and the Law",{"$nulls":3},"Y",{"$nulls":3},"Y"]
[{"$f":"HYPERLINK( CONCATENATE(\"https://selfservice.mypurdue.purdue.edu/prod/bzwsrch.p_catalog_detail?subject=\",LEFT(B511, SEARCH(\" \",B511,1)-1),\"&cnbr=\",MID(B511, 1+SEARCH(\" \",B511,SEARCH(\" \",B511,1)),5)), 3 )","v":3},"POL 37200 - Indiana Government and Politics",{"$nulls":3},"Y"]
[3,"POL 43300 - International Organizations",{"$nulls":3},"Y",null,null,"Y"]
[3,"POL 43400 - United States Foreign Policy, Central America and the Caribbean",{"$nulls":3},"Y",null,null,"Y"]
[3,"POL 43500 - International Law",{"$nulls":3},"Y",null,null,"Y"]
[3,"POL 44200 - Government and Politics in Russia",{"$nulls":3},"Y",null,null,"Y"]
[3,"POL 44400 - Introduction to African Politics (This course is no longer in the catalog)",{"$nulls":3},"Y",null,null,"Y"]
[3,"POL 44500 - Politics of France and Germany (This course is no longer in the catalog)",{"$nulls":3},"Y",null,null,"Y"]
[3,"POL 44700 - The British Political System and the Commonwealth of Nations (This course is no longer in the catalog)",{"$nulls":3},"Y",null,null,"Y"]
[3,"POL 44900 - Japanese Political Economy (This course is no longer in the catalog)",{"$nulls":3},"Y",null,null,"Y"]
[3,"POL 45600 - African American Political Thought (This course is no longer in the catalog)",{"$nulls":3},"Y",{"$nulls":3},"Y"]
[null,"PSY | Any Psychological Sciences (PSY) course may be a social science selection",{"$nulls":3},"Y"]
[{"$f":"HYPERLINK( CONCATENATE(\"https://selfservice.mypurdue.purdue.edu/prod/bzwsrch.p_catalog_detail?subject=\",LEFT(B522, SEARCH(\" \",B522,1)-1),\"&cnbr=\",MID(B522, 1+SEARCH(\" \",B522,SEARCH(\" \",B522,1)),5)), 3 )","v":3},"PSY 12000 - Elementary Psychology",{"$nulls":3},"Y"]
[3,"PSY 22500 - Stereotyping and Prejudice (This course is no longer in the catalog)",{"$nulls":3},"Y",{"$nulls":3},"Y"]
[3,"PSY 23900 - The Psychology of Women",{"$nulls":3},"Y",{"$nulls":3},"Y"]
[3,"PSY 33500 - Stereotyping and Prejudice",{"$nulls":3},"Y",{"$nulls":3},"Y"]
[3,"PSY 36800 - Children's Development in Cross Cultural Perspective (This course is no longer in the catalog)",{"$nulls":3},"Y",{"$nulls":3},"Y"]
[null,"PTGS | Any Portuguese (PTGS) course (language or culture and literature) may be a humanities selection.  Any PTGS course may be an international understanding selection.",null,"Y",{"$nulls":4},"Y"]
[{"$f":"HYPERLINK( CONCATENATE(\"https://selfservice.mypurdue.purdue.edu/prod/bzwsrch.p_catalog_detail?subject=\",LEFT(B528, SEARCH(\" \",B528,1)-1),\"&cnbr=\",MID(B528, 1+SEARCH(\" \",B528,SEARCH(\" \",B528,1)),5)), 3 )","v":3},"PTGS 10100 - Portuguese Level I",null,"Y","Y",{"$nulls":3},"Y"]
[3,"PTGS 10200 - Portuguese Level II",null,"Y","Y",{"$nulls":3},"Y"]
[3,"PTGS 10500 - Accelerated Portuguese",null,"Y","Y",{"$nulls":3},"Y"]
[3,"PTGS 20100 - Portuguese Level III",null,"Y","Y",{"$nulls":3},"Y"]
[3,"PTGS 20200- Portuguese Level IV",null,"Y","Y",{"$nulls":3},"Y"]
[3,"PTGS 30100 - Portuguese Level V",null,"Y","Y",{"$nulls":3},"Y"]
[3,"PTGS 30200 - Portuguese Level VI",null,"Y","Y",{"$nulls":3},"Y"]
[3,"PTGS 33000 - Brazilian, Portuguese, and African Cinema",null,"Y",{"$nulls":4},"Y"]
[null,"REL | Any Religious Studies course may be a humanities selection",null,"Y"]
[3,"REL 20000 - Introduction to the Study of Religion",null,"Y","Y"]
[3,"REL 23000 - Religions of the East",null,"Y","Y",{"$nulls":3},"Y","Y"]
[3,"REL 23100 - Religions of the West",null,"Y","Y",{"$nulls":3},"Y","Y"]
[null,"RUSS | Any Russian (RUSS) course (language or culture and literature) may be a humanities selection.  Any RUSS course may be an international understanding selection. ",null,"Y",{"$nulls":4},"Y"]
[{"$f":"HYPERLINK( CONCATENATE(\"https://selfservice.mypurdue.purdue.edu/prod/bzwsrch.p_catalog_detail?subject=\",LEFT(B541, SEARCH(\" \",B541,1)-1),\"&cnbr=\",MID(B541, 1+SEARCH(\" \",B541,SEARCH(\" \",B541,1)),5)), 4 )","v":4},"RUSS 10100 - Russian Level I",null,"Y","Y",{"$nulls":3},"Y"]
[{"$f":"HYPERLINK( CONCATENATE(\"https://selfservice.mypurdue.purdue.edu/prod/bzwsrch.p_catalog_detail?subject=\",LEFT(B542, SEARCH(\" \",B542,1)-1),\"&cnbr=\",MID(B542, 1+SEARCH(\" \",B542,SEARCH(\" \",B542,1)),5)), 4 )","v":4},"RUSS 10200 - Russian Level II",null,"Y","Y",{"$nulls":3},"Y"]
[{"$f":"HYPERLINK( CONCATENATE(\"https://selfservice.mypurdue.purdue.edu/prod/bzwsrch.p_catalog_detail?subject=\",LEFT(B543, SEARCH(\" \",B543,1)-1),\"&cnbr=\",MID(B543, 1+SEARCH(\" \",B543,SEARCH(\" \",B543,1)),5)), 4 )","v":4},"RUSS 20100 - Russian Level III",null,"Y","Y",{"$nulls":3},"Y"]
[{"$f":"HYPERLINK( CONCATENATE(\"https://selfservice.mypurdue.purdue.edu/prod/bzwsrch.p_catalog_detail?subject=\",LEFT(B544, SEARCH(\" \",B544,1)-1),\"&cnbr=\",MID(B544, 1+SEARCH(\" \",B544,SEARCH(\" \",B544,1)),5)), 4 )","v":4},"RUSS 20200 - Russian Level IV",null,"Y","Y",{"$nulls":3},"Y"]
[3,"RUSS 28100 - Post Soviet Experience (This course is no longer in the catalog)",null,"Y","Y",{"$nulls":3},"Y"]
[3,"RUSS 28900 - Russia: Yesterday, Today and Tomorrow (This course is no longer in the catalog)",null,"Y",{"$nulls":4},"Y"]
[3,"RUSS 30100 - Russian Level V",null,"Y","Y",{"$nulls":3},"Y"]
[3,"RUSS 30200 - Russian Level VI",null,"Y","Y",{"$nulls":3},"Y"]
[3,"RUSS 33000 - Russian and East European Cinema",null,"Y","Y",{"$nulls":3},"Y"]
[3,"RUSS 40100 - Russian Level VII",null,"Y","Y",{"$nulls":3},"Y"]
[3,"RUSS 40200 - Russian Level VIII",null,"Y","Y",{"$nulls":3},"Y"]
[{"$f":"HYPERLINK( CONCATENATE(\"https://selfservice.mypurdue.purdue.edu/prod/bzwsrch.p_catalog_detail?subject=\",LEFT(B552, SEARCH(\" \",B552,1)-1),\"&cnbr=\",MID(B552, 1+SEARCH(\" \",B552,SEARCH(\" \",B552,1)),5)), 3 )","v":3},"SA 10202 - French Culture, Food And Health",{"$nulls":4},"Y"]
[3,"SLHS 11500 - Introduction to Communicative Disorders",{"$nulls":4},"Y"]
[3,"SLHS 21500 - Exploring Audiology & Hearing Science",{"$nulls":4},"Y"]
[{"$f":"HYPERLINK( CONCATENATE(\"https://selfservice.mypurdue.purdue.edu/prod/bzwsrch.p_catalog_detail?subject=\",LEFT(B555, SEARCH(\" \",B555,1)-1),\"&cnbr=\",MID(B555, 1+SEARCH(\" \",B555,SEARCH(\" \",B555,1)),5)), 3 )","v":3},"SLHS 22700 - Elements Of Linguistics",{"$nulls":3},"Y"]
[3,"SLHS 30900 - Language Development",{"$nulls":4},"Y"]
[null,"SOC | Any Sociology (SOC) course may be a social science selection",{"$nulls":3},"Y"]
[{"$f":"HYPERLINK( CONCATENATE(\"https://selfservice.mypurdue.purdue.edu/prod/bzwsrch.p_catalog_detail?subject=\",LEFT(B558, SEARCH(\" \",B558,1)-1),\"&cnbr=\",MID(B558, 1+SEARCH(\" \",B558,SEARCH(\" \",B558,1)),5)), 3 )","v":3},"SOC 10000 - Intro to Sociology",{"$nulls":3},"Y"]
[3,"SOC 22000 - Social Problems",{"$nulls":3},"Y",{"$nulls":3},"Y"]
[3,"SOC 31000 - Racial and Ethnic Diversity",{"$nulls":3},"Y",{"$nulls":3},"Y"]
[3,"SOC 35600 - Hate and Violence",{"$nulls":3},"Y",{"$nulls":3},"Y"]
[3,"SOC 36700 - Religion in America",{"$nulls":3},"Y",{"$nulls":3},"Y"]
[3,"SOC 45000 - Gender Roles in Modern Society",{"$nulls":3},"Y",{"$nulls":3},"Y"]
[null,"SPAN | Any Spanish (SPAN) course (language or culture and literature) may be a humanities selection.  Any SPAN course may be an international understanding selection. ",null,"Y",{"$nulls":4},"Y"]
[3,"SPAN 10100 - Spanish Level I",null,"Y","Y",{"$nulls":3},"Y"]
[3,"SPAN 10200 - Spanish Level II",null,"Y","Y",{"$nulls":3},"Y"]
[3,"SPAN 20100 - Spanish Level III",null,"Y","Y",{"$nulls":3},"Y"]
[3,"SPAN 20200 - Spanish Level IV",null,"Y","Y",{"$nulls":3},"Y"]
[3,"SPAN 23000 - Contemporary Spanish American Literature In Translation",null,"Y",{"$nulls":4},"Y"]
[3,"SPAN 23100 - Cervantes' Don Quixote",null,"Y",{"$nulls":4},"Y"]
[3,"SPAN 23500 - Mexican and Latino Culture (This course is no longer in the catalog)",null,"Y","Y",{"$nulls":3},"Y","Y"]
[3,"SPAN 23500 - Spanish American Literature In Translation",null,null,"Y",{"$nulls":3},"Y"]
[3,"SPAN 30100 - Spanish Level V",null,null,"Y",{"$nulls":3},"Y"]
[3,"SPAN 30200 - Spanish Level VI",null,null,"Y",{"$nulls":3},"Y"]
[3,"SPAN 30500 - Spanish for Heritage Speakers",null,null,"Y",{"$nulls":3},"Y"]
[3,"SPAN 30801 - Advanced Spanish for Heritage Speakers",null,null,"Y",{"$nulls":3},"Y"]
[3,"SPAN 33000 - Spanish and Latin American Cinema",null,"Y","Y",{"$nulls":3},"Y"]
[3,"SPAN 40100 - Spanish Level VII",null,null,"Y",{"$nulls":3},"Y"]
[3,"SPAN 40200 - Spanish Level VIII ",null,null,"Y",{"$nulls":3},"Y"]
[3,"STAT 11300 - Statistics and Society",{"$nulls":4},"Y"]
[{"$f":"HYPERLINK( CONCATENATE(\"https://selfservice.mypurdue.purdue.edu/prod/bzwsrch.p_catalog_detail?subject=\",LEFT(B581, SEARCH(\" \",B581,1)-1),\"&cnbr=\",MID(B581, 1+SEARCH(\" \",B581,SEARCH(\" \",B581,1)),5)), 3 )","v":3},"SYS 30000 - It's a Complext World: Addressing Global Challenges",{"$nulls":4},"Y"]
[{"$f":"HYPERLINK( CONCATENATE(\"https://selfservice.mypurdue.purdue.edu/prod/bzwsrch.p_catalog_detail?subject=\",LEFT(B582, SEARCH(\" \",B582,1)-1),\"&cnbr=\",MID(B582, 1+SEARCH(\" \",B582,SEARCH(\" \",B582,1)),5)), 3 )","v":3},"SYS 35000 - Systems Theories and Approaches",{"$nulls":4},"Y"]
[3,"TECH 12000 - Design Thinking In Technology",{"$nulls":4},"Y"]
[null,"THTR | Any Theatre (THTR) course may be a humanities selection",null,"Y"]
[3,"THTR 20100 - Theater Appreciation",null,"Y","Y"]
[null,"WOST | Any Women's Studies (WOST) course may be a humanities selection",null,"Y"]
[{"$f":"HYPERLINK( CONCATENATE(\"https://selfservice.mypurdue.purdue.edu/prod/bzwsrch.p_catalog_detail?subject=\",LEFT(B587, SEARCH(\" \",B587,1)-1),\"&cnbr=\",MID(B587, A5492+SEARCH(\" \",B587,SEARCH(\" \",B587,1)),5)), 3 )","v":3},"WOST 28000 - Women's Studies: An Introduction (This course is no longer in the catalog)",null,"Y","Y",{"$nulls":4},"Y"]
[{"$f":"HYPERLINK( CONCATENATE(\"https://selfservice.mypurdue.purdue.edu/prod/bzwsrch.p_catalog_detail?subject=\",LEFT(B588, SEARCH(\" \",B588,1)-1),\"&cnbr=\",MID(B588, 1+SEARCH(\" \",B588,SEARCH(\" \",B588,1)),5)), 3 )","v":3},"WOST 38000 - Gender and Multiculturalism (This course is no longer in the catalog)",null,"Y",{"$nulls":5},"Y"]
[3,"WOST 38100 - Women of color in the United States (This course is no longer in the catalog)",null,"Y",{"$nulls":5},"Y"]
[3,"WOST 38300 - Women and Work (This course is no longer in the catalog)",null,"Y",{"$nulls":5},"Y"]
[3,"WOST 48000 - Feminist Theory (This course is no longer in the catalog)",null,"Y",{"$nulls":5},"Y"]
[3,"WOST 48200 - Interdisciplinary Studies in Sexuality: Scholarship on Lesbian and Gay Issues (This course is no longer in the catalog)",null,"Y",{"$nulls":5},"Y"]
[null,"WGSS | Any Women's, Gender, and Sexuality Studies (WGSS) course may be a humanities selection",null,"Y"]
[3,"WGSS 28000 - Women's Studies: An Introduction",null,"Y","Y","Y",{"$nulls":3},"Y"]
[{"$f":"HYPERLINK( CONCATENATE(\"https://selfservice.mypurdue.purdue.edu/prod/bzwsrch.p_catalog_detail?subject=\",LEFT(B595, SEARCH(\" \",B595,1)-1),\"&cnbr=\",MID(B595, 1+SEARCH(\" \",B595,SEARCH(\" \",B595,1)),5)), 3 )","v":3},"WGSS 28200 - Introduction to LGBT Studies",{"$nulls":3},"Y"]
[3,"WGSS 38000 - Gender and Multiculturalism",null,"Y",{"$nulls":5},"Y"]
[3,"WGSS 38100 - Women of Color in the United States",null,"Y",{"$nulls":5},"Y"]
[3,"WGSS 38300 - Women and Work",null,"Y",{"$nulls":5},"Y"]
[3,"WGSS 48000 - Feminist Theory",null,"Y",{"$nulls":5},"Y"]
[3,"WGSS 48200 - Interdisciplinary Studies in Sexuality: Scholarship on Lesbian and Gay Issues",null,"Y",{"$nulls":5},"Y"]
[3,"YDAE 38500 - Urban Service Learning",{"$nulls":7},"Y"]
[3,"YDAE 44000 - Methods of Teaching Agricultural Education","Y"]

{"sheet":"Courses No Longer Offered","index":3,"n_rows":53,"n_cols":12,"rows_kept":53}
["CREDITS","COURSE","COM","HUM","UCC HUM","SOC","UCC STS","(and)","INTL","MULTI","EXP DATE","Course Title"]
[{"$f":"HYPERLINK( CONCATENATE(\"https://selfservice.mypurdue.purdue.edu/prod/bzwsrch.p_catalog_detail?subject=\",LEFT(B2, SEARCH(\" \",B2,1)-1),\"&cnbr=\",MID(B2, 1+SEARCH(\" \",B2,SEARCH(\" \",B2,1)),5)), 3 )","v":3},"AGR 49700 - Agricultural Study Abroad (This course is no longer in the catalog)",{"$nulls":6},"Y",null,"Prior to 2014"]
[3,"AGRY 29000 - Introduction to Environmental Science (This course is no longer in the catalog; cross listed with EAPS 11300 and NRES 29000)",{"$nulls":4},"Y",{"$nulls":3},"Used 2017-2018","Same Title"]
[3,"AGRY 57000 - Agronomy in International Development (This course is no longer in the catalog)",{"$nulls":6},"Y",null,"Prior to 2014"]
[{"$f":"HYPERLINK( CONCATENATE(\"https://selfservice.mypurdue.purdue.edu/prod/bzwsrch.p_catalog_detail?subject=\",LEFT(B5, SEARCH(\" \",B5,1)-1),\"&cnbr=\",MID(B5, 1+SEARCH(\" \",B5,SEARCH(\" \",B5,1)),5)), 3 )","v":3},"ANTH 30300 - Gender Across Cultures (This course is no longer in the catalog)",{"$nulls":3},"Y",{"$nulls":3},"Y","Prior to 2014"]
[3,"ANTH 57600 - Economic Development and Social Change (This course is no longer in the catalog)",{"$nulls":3},"Y",null,null,"Y",null,"Prior to 2014"]
[3,"ANTH 57800 - Peoples of Middle America (This course is no longer in the catalog)",{"$nulls":3},"Y",null,null,"Y","Y","Prior to 2014"]
[{"$f":"HYPERLINK( CONCATENATE(\"https://selfservice.mypurdue.purdue.edu/prod/bzwsrch.p_catalog_detail?subject=\",LEFT(B8, SEARCH(\" \",B8,1)-1),\"&cnbr=\",MID(B8, 1+SEARCH(\" \",B8,SEARCH(\" \",B8,1)),5)), 3 )","v":3},"CDFS 30100 - Families in a multicultural society (This course is no longer in the catalog)",{"$nulls":7},"Y","Prior to 2014"]
[3,"CLCS 23000 - Survey of Greet Literature in Translation (course number changed to CLCS 23010)",null,"Y","Y",{"$nulls":3},"Y",null,"Used 2017-2018","CLCS 23010 Survey of Greek Literature in Transition"]
[3,"COM 42400 - Communication in International Organizations (This course is no longer in the catalog)","Y",{"$nulls":5},"Y",null,"Prior to 2014"]
[3,"EAPS 11300 - Introduction to Environmental Science (This course is no longer in the catalog; cross listed with AGRY 29000 and NRES 29000)",{"$nulls":4},"Y",{"$nulls":3},"Used 2017-2018","Same Title"]
[{"$f":"HYPERLINK( CONCATENATE(\"https://selfservice.mypurdue.purdue.edu/prod/bzwsrch.p_catalog_detail?subject=\",LEFT(B12, SEARCH(\" \",B12,1)-1),\"&cnbr=\",MID(B12, 1+SEARCH(\" \",B12,SEARCH(\" \",B12,1)),5)), 3 )","v":3},"ENGL 36400 - Religious Classics In The Western Tradition (This course is no longer in the catalog)","Y","Y",{"$nulls":6},"Prior to 2014"]
[{"$f":"HYPERLINK( CONCATENATE(\"https://selfservice.mypurdue.purdue.edu/prod/bzwsrch.p_catalog_detail?subject=\",LEFT(B13, SEARCH(\" \",B13,1)-1),\"&cnbr=\",MID(B13, 1+SEARCH(\" \",B13,SEARCH(\" \",B13,1)),5)), 3 )","v":3},"ENGR 20100 - Engineering in Global Context (This course is no longer in the catalog; course number changed to ENGR 31000)",{"$nulls":4},"Y",{"$nulls":3},"Used 2015-2016","Same Title"]
[3,"ENTM 21800 - Intro to Forensic Science (This course is no longer in the catalog)",{"$nulls":4},"Y",{"$nulls":3},"Used 2014-2015","Same Title"]
[3,"FNR 10300 - Intro to Environmental Conservation (This course is no longer in the catalog; the course still seems to be offered though…)",{"$nulls":4},"Y",{"$nulls":3},"Used 2016-2017","Introduction to Forestry: Luger-Purdue Future of Forestery"]
[{"$f":"HYPERLINK( CONCATENATE(\"https://selfservice.mypurdue.purdue.edu/prod/bzwsrch.p_catalog_detail?subject=\",LEFT(B16, SEARCH(\" \",B16,1)-1),\"&cnbr=\",MID(B16, 1+SEARCH(\" \",B16,SEARCH(\" \",B16,1)),5)), 3 )","v":3},"GS 10000 - American Language and Culture for International Students (This course is no longer in the catalog)",null,"Y",null,"Y",{"$nulls":4},"Used 2016-2017","Same Title"]
[3,"HDFS 30100 - Families in a multicultural society (This course is no longer in the catalog)",{"$nulls":7},"Y","Prior to 2014"]
[3,"HEBR 28000 - Modern Israel: Cinema, Literature, Politics and History (This course is no longer in the catalog)",null,"Y","Y",{"$nulls":3},"Y",null,"Used 2015-2016","Same Title"]
[{"$f":"HYPERLINK( CONCATENATE(\"https://selfservice.mypurdue.purdue.edu/prod/bzwsrch.p_catalog_detail?subject=\",LEFT(B19, SEARCH(\" \",B19,1)-1),\"&cnbr=\",MID(B19, 1+SEARCH(\" \",B19,SEARCH(\" \",B19,1)),5)), 3 )","v":3},"HIST 33205 - The Nuclear Age (This course is no longer in the catalog)",null,null,"Y",null,"Y",{"$nulls":3},"Prior to 2014"]
[{"$f":"HYPERLINK( CONCATENATE(\"https://selfservice.mypurdue.purdue.edu/prod/bzwsrch.p_catalog_detail?subject=\",LEFT(B20, SEARCH(\" \",B20,1)-1),\"&cnbr=\",MID(B20, 1+SEARCH(\" \",B20,SEARCH(\" \",B20,1)),5)), 3 )","v":3},"HIST 34500 - Modern Middle East (This course is no longer in the catalog)",null,"Y",{"$nulls":4},"Y",null,"Prior to 2014"]
[3,"HIST 43700 - The History of East Central Europe and the Russian Satellite Areas (This course is no longer in the catalog)",null,"Y",{"$nulls":4},"Y",null,"Prior to 2014"]
[3,"IDIS 27100 - Introduction to African American Studies (This course is no longer in the catalog)",null,"Y",{"$nulls":5},"Y","Prior to 2014"]
[3,"IDIS 27700 - African American Pop Culture (This course is no longer in the catalog)",null,"Y",{"$nulls":5},"Y","Prior to 2014"]
[3,"IDIS 37000 - Black Women Rising (This course is no longer in the catalog)",null,"Y",{"$nulls":5},"Y","Prior to 2014"]
[{"$f":"HYPERLINK( CONCATENATE(\"https://selfservice.mypurdue.purdue.edu/prod/bzwsrch.p_catalog_detail?subject=\",LEFT(B25, SEARCH(\" \",B25,1)-1),\"&cnbr=\",MID(B25, 1+SEARCH(\" \",B25,SEARCH(\" \",B25,1)),5)), 3 )","v":3},"IDIS 37500 - Black Family (This course is no longer in the catalog)",null,"Y",{"$nulls":5},"Y","Prior to 2014"]
[3,"IDIS 37600 - African American Male (This course is no longer in the catalog)"," ","Y",{"$nulls":5},"Y","Prior to 2014"]
[3,"IDIS 38100 - Contemporary Japanese Women (This course is no longer in the catalog)",null,"Y",{"$nulls":4},"Y",null,"Prior to 2014"]
[3,"IDIS 48100 - Women of Color in the United States (This course is no longer in the catalog)",null,"Y",{"$nulls":5},"Y","Prior to 2014"]
[3,"ITAL 38000 - Italian Culture and Civilization (This course is no longer in the catalog)",null,"Y","Y",{"$nulls":3},"Y",null,"Used 2014-2015","Same Title"]
[{"$f":"HYPERLINK( CONCATENATE(\"https://selfservice.mypurdue.purdue.edu/prod/bzwsrch.p_catalog_detail?subject=\",LEFT(B30, SEARCH(\" \",B30,1)-1),\"&cnbr=\",MID(B30, 1+SEARCH(\" \",B30,SEARCH(\" \",B30,1)),5)), 3 )","v":3},"NRES 29000 - Introduction to Environmental Science (This course is no longer in the catalog)",{"$nulls":4},"Y",{"$nulls":3},"Used 2017-2018","Same Title"]
[3,"PHIL 33000 - Religions of the East (This course is no longer in the catalog; renamed to PHIL 23000)",null,"Y","Y",{"$nulls":3},"Y","Y","Prior to 2014"]
[3,"PHIL 33100 - Religions of the West (This course is no longer in the catalog; renamed to PHIL 23100)",null,"Y",{"$nulls":4},"Y","Y","Prior to 2014"]
[3,"POL 29000 - Russia: Yesterday, Today, and Tomorrow (This course is no longer in the catalog)",{"$nulls":3},"Y",null,null,"Y",null,"Prior to 2014"]
[3,"POL 30300 - Comparative Politics (This course is no longer in the catalog)",{"$nulls":3},"Y",null,null,"Y",null,"Prior to 2014"]
[3,"POL 30400 - Israel and World Politics (This course is no longer in the catalog) ",{"$nulls":3},"Y",null,null,"Y",null,"Prior to 2014"]
[3,"POL 32200 - Science and World Politics (This course is no longer in the catalog)",{"$nulls":3},"Y",null,null,"Y",null,"Prior to 2014"]
[3,"POL 34200 - Government and Politics in Communist Successor States (This course is no longer in the catalog)",{"$nulls":3},"Y",null,null,"Y",null,"Prior to 2014"]
[3,"POL 44400 - Introduction to African Politics (This course is no longer in the catalog)",{"$nulls":3},"Y",null,null,"Y",null,"Prior to 2014"]
[3,"POL 44500 - Politics of France and Germany (This course is no longer in the catalog)",{"$nulls":3},"Y",null,null,"Y",null,"Prior to 2014"]
[3,"POL 44700 - The British Political System and the Commonwealth of Nations (This course is no longer in the catalog)",{"$nulls":3},"Y",null,null,"Y",null,"Prior to 2014"]
[3,"POL 44900 - Japanese Political Economy (This course is no longer in the catalog)",{"$nulls":3},"Y",null,null,"Y",null,"Prior to 2014"]
[3,"POL 45600 - African American Political Thought (This course is no longer in the catalog)",{"$nulls":3},"Y",{"$nulls":3},"Y","Prior to 2014"]
[3,"PSY 22500 - Stereotyping and Prejudice (This course is no longer in the catalog)",{"$nulls":3},"Y",{"$nulls":3},"Y","Prior to 2014"]
[3,"PSY 36800 - Children's Development in Cross Cultural Perspective (This course is no longer in the catalog)",{"$nulls":3},"Y",{"$nulls":3},"Y","Used 2016-2017","Same Title"]
[{"$f":"HYPERLINK( CONCATENATE(\"https://selfservice.mypurdue.purdue.edu/prod/bzwsrch.p_catalog_detail?subject=\",LEFT(B45, SEARCH(\" \",B45,1)-1),\"&cnbr=\",MID(B45, 1+SEARCH(\" \",B45,SEARCH(\" \",B45,1)),5)), 3 )","v":3},"RUSS 28100 - Post Soviet Experience (This course is no longer in the catalog)",null,"Y","Y",{"$nulls":3},"Y",null,"Used 2014-2015","Same Title"]
[3,"RUSS 28900 - Russia: Yesterday, Today and Tomorrow (This course is no longer in the catalog)",null,"Y",{"$nulls":4},"Y",null,"Used 2014-2015","Same Title"]
[3,"SPAN 23500 - Mexican and Latino Culture (This course is no longer in the catalog)",null,"Y","Y",{"$nulls":3},"Y","Y","Used 2017-2018","Spanish American Literature In Translation"]
[{"$f":"HYPERLINK( CONCATENATE(\"https://selfservice.mypurdue.purdue.edu/prod/bzwsrch.p_catalog_detail?subject=\",LEFT(B48, SEARCH(\" \",B48,1)-1),\"&cnbr=\",MID(B48, A4943+SEARCH(\" \",B48,SEARCH(\" \",B48,1)),5)), 3 )","v":3},"WOST 28000 - Women's Studies: An Introduction (This course is no longer in the catalog)",null,"Y","Y",{"$nulls":4},"Y","Prior to 2014"]
[{"$f":"HYPERLINK( CONCATENATE(\"https://selfservice.mypurdue.purdue.edu/prod/bzwsrch.p_catalog_detail?subject=\",LEFT(B49, SEARCH(\" \",B49,1)-1),\"&cnbr=\",MID(B49, 1+SEARCH(\" \",B49,SEARCH(\" \",B49,1)),5)), 3 )","v":3},"WOST 38000 - Gender and Multiculturalism (This course is no longer in the catalog)",null,"Y",{"$nulls":5},"Y","Prior to 2014"]
[3,"WOST 38100 - Women of color in the United States (This course is no longer in the catalog)",null,"Y",{"$nulls":5},"Y","Prior to 2014"]
[3,"WOST 38300 - Women and Work (This course is no longer in the catalog)",null,"Y",{"$nulls":5},"Y","Prior to 2014"]
[3,"WOST 48000 - Feminist Theory (This course is no longer in the catalog)",null,"Y",{"$nulls":5},"Y","Prior to 2014"]
[3,"WOST 48200 - Interdisciplinary Studies in Sexuality: Scholarship on Lesbian and Gay Issues (This course is no longer in the catalog)",null,"Y",{"$nulls":5},"Y","Prior to 2014"]

{"sheet":"Course Title Changed","index":4,"n_rows":41,"n_cols":11,"rows_kept":41,"hidden":true}
["CREDITS","COURSE","COM","HUM","UCC HUM","SOC","UCC STS","(and)","INTL","MULTI","Course Title Changed"]
[{"$f":"HYPERLINK( CONCATENATE(\"https://selfservice.mypurdue.purdue.edu/prod/bzwsrch.p_catalog_detail?subject=\",LEFT(B2, SEARCH(\" \",B2,1)-1),\"&cnbr=\",MID(B2, 1+SEARCH(\" \",B2,SEARCH(\" \",B2,1)),5)), 3 )","v":3},"AD 11700 - Black and White Photography",null,"Y","Y"]
[{"$f":"HYPERLINK( CONCATENATE(\"https://selfservice.mypurdue.purdue.edu/prod/bzwsrch.p_catalog_detail?subject=\",LEFT(B3, SEARCH(\" \",B3,1)-1),\"&cnbr=\",MID(B3, 1+SEARCH(\" \",B3,SEARCH(\" \",B3,1)),5)), 3 )","v":3},"AMST 20100 - Interpreting America",null,"Y","Y"]
[{"$f":"HYPERLINK( CONCATENATE(\"https://selfservice.mypurdue.purdue.edu/prod/bzwsrch.p_catalog_detail?subject=\",LEFT(B4, SEARCH(\" \",B4,1)-1),\"&cnbr=\",MID(B4, 1+SEARCH(\" \",B4,SEARCH(\" \",B4,1)),5)), 3 )","v":3},"ANTH 37900 -Native American Cultures",{"$nulls":3},"Y",{"$nulls":3},"Y"]
[3,"ARAB 33400 - North African Literature and Culture (Maghrebi Literature and Culture is now a section of ENGL 396)",null,"Y",{"$nulls":4},"Y"]
[{"$f":"HYPERLINK( CONCATENATE(\"https://selfservice.mypurdue.purdue.edu/prod/bzwsrch.p_catalog_detail?subject=\",LEFT(B6, SEARCH(\" \",B6,1)-1),\"&cnbr=\",MID(B6, 1+SEARCH(\" \",B6,SEARCH(\" \",B6,1)),5)), 3 )","v":3},"EDPS 31500 - Collaborative Leadership: Interpersonal Skills","Y"]
[{"$f":"HYPERLINK( CONCATENATE(\"https://selfservice.mypurdue.purdue.edu/prod/bzwsrch.p_catalog_detail?subject=\",LEFT(B7, SEARCH(\" \",B7,1)-1),\"&cnbr=\",MID(B7, 1+SEARCH(\" \",B7,SEARCH(\" \",B7,1)),5)), 3 )","v":3},"ENGL 24000 - Survey of the British Literature: From the Beginnings Through the Neoclassical Period","Y","Y","Y"]
[{"$f":"HYPERLINK( CONCATENATE(\"https://selfservice.mypurdue.purdue.edu/prod/bzwsrch.p_catalog_detail?subject=\",LEFT(B8, SEARCH(\" \",B8,1)-1),\"&cnbr=\",MID(B8, 1+SEARCH(\" \",B8,SEARCH(\" \",B8,1)),5)), 1 )","v":1},"EPCS 10100 - First Year Participation in EPICS",{"$nulls":4},"Y"]
[{"$f":"HYPERLINK( CONCATENATE(\"https://selfservice.mypurdue.purdue.edu/prod/bzwsrch.p_catalog_detail?subject=\",LEFT(B9, SEARCH(\" \",B9,1)-1),\"&cnbr=\",MID(B9, 1+SEARCH(\" \",B9,SEARCH(\" \",B9,1)),5)), 2 )","v":2},"EPCS 10200 - First Year Participation in EPICS",{"$nulls":4},"Y"]
[{"$f":"HYPERLINK( CONCATENATE(\"https://selfservice.mypurdue.purdue.edu/prod/bzwsrch.p_catalog_detail?subject=\",LEFT(B10, SEARCH(\" \",B10,1)-1),\"&cnbr=\",MID(B10, 1+SEARCH(\" \",B10,SEARCH(\" \",B10,1)),5)), 1 )","v":1},"EPCS 11100 - First Year Participation in EPICS I",{"$nulls":4},"Y"]
[{"$f":"HYPERLINK( CONCATENATE(\"https://selfservice.mypurdue.purdue.edu/prod/bzwsrch.p_catalog_detail?subject=\",LEFT(B11, SEARCH(\" \",B11,1)-1),\"&cnbr=\",MID(B11, 1+SEARCH(\" \",B11,SEARCH(\" \",B11,1)),5)), 1 )","v":1},"EPCS 12100 - First Year Participation in EPICS II",{"$nulls":4},"Y"]
[{"$f":"HYPERLINK( CONCATENATE(\"https://selfservice.mypurdue.purdue.edu/prod/bzwsrch.p_catalog_detail?subject=\",LEFT(B12, SEARCH(\" \",B12,1)-1),\"&cnbr=\",MID(B12, 1+SEARCH(\" \",B12,SEARCH(\" \",B12,1)),5)), 1 )","v":1},"EPCS 20100 - Sophomore Participation in EPICS",{"$nulls":4},"Y"]
[{"$f":"HYPERLINK( CONCATENATE(\"https://selfservice.mypurdue.purdue.edu/prod/bzwsrch.p_catalog_detail?subject=\",LEFT(B13, SEARCH(\" \",B13,1)-1),\"&cnbr=\",MID(B13, 1+SEARCH(\" \",B13,SEARCH(\" \",B13,1)),5)), 2 )","v":2},"EPCS 20200 - Sophomore Participation in EPICS",{"$nulls":4},"Y"]
[{"$f":"HYPERLINK( CONCATENATE(\"https://selfservice.mypurdue.purdue.edu/prod/bzwsrch.p_catalog_detail?subject=\",LEFT(B14, SEARCH(\" \",B14,1)-1),\"&cnbr=\",MID(B14, 1+SEARCH(\" \",B14,SEARCH(\" \",B14,1)),5)), 1 )","v":1},"EPCS 30100 - Junior Participation in EPICS",{"$nulls":4},"Y"]
[{"$f":"HYPERLINK( CONCATENATE(\"https://selfservice.mypurdue.purdue.edu/prod/bzwsrch.p_catalog_detail?subject=\",LEFT(B15, SEARCH(\" \",B15,1)-1),\"&cnbr=\",MID(B15, 1+SEARCH(\" \",B15,SEARCH(\" \",B15,1)),5)), 2 )","v":2},"EPCS 30200 - Junior Participation in EPICS",{"$nulls":4},"Y"]
[{"$f":"HYPERLINK( CONCATENATE(\"https://selfservice.mypurdue.purdue.edu/prod/bzwsrch.p_catalog_detail?subject=\",LEFT(B16, SEARCH(\" \",B16,1)-1),\"&cnbr=\",MID(B16, 1+SEARCH(\" \",B16,SEARCH(\" \",B16,1)),5)), 1 )","v":1},"EPCS 40100 - Senior Participation in EPICS",{"$nulls":4},"Y"]
[{"$f":"HYPERLINK( CONCATENATE(\"https://selfservice.mypurdue.purdue.edu/prod/bzwsrch.p_catalog_detail?subject=\",LEFT(B17, SEARCH(\" \",B17,1)-1),\"&cnbr=\",MID(B17, 1+SEARCH(\" \",B17,SEARCH(\" \",B17,1)),5)), 2 )","v":2},"EPCS 40200 - Senior Participation in EPICS",{"$nulls":4},"Y"]
[{"$f":"HYPERLINK( CONCATENATE(\"https://selfservice.mypurdue.purdue.edu/prod/bzwsrch.p_catalog_detail?subject=\",LEFT(B18, SEARCH(\" \",B18,1)-1),\"&cnbr=\",MID(B18, 1+SEARCH(\" \",B18,SEARCH(\" \",B18,1)),5)), 3 )","v":3},"FNR 12500 - Environmental Science and Conservation",{"$nulls":4},"Y"]
[{"$f":"HYPERLINK( CONCATENATE(\"https://selfservice.mypurdue.purdue.edu/prod/bzwsrch.p_catalog_detail?subject=\",LEFT(B19, SEARCH(\" \",B19,1)-1),\"&cnbr=\",MID(B19, 1+SEARCH(\" \",B19,SEARCH(\" \",B19,1)),5)), 3 )","v":3},"HEBR 38000 - Israel and the Modern World",null,null,"Y"]
[{"$f":"HYPERLINK( CONCATENATE(\"https://selfservice.mypurdue.purdue.edu/prod/bzwsrch.p_catalog_detail?subject=\",LEFT(B20, SEARCH(\" \",B20,1)-1),\"&cnbr=\",MID(B20, 1+SEARCH(\" \",B20,SEARCH(\" \",B20,1)),5)), 3 )","v":3},"HIST 24500 - Intro to Middle East History and Culture",null,"Y","Y",{"$nulls":3},"Y"]
[3,"HIST 27100 - Introduction To Colonial Latin American History (1492-1810)",null,"Y","Y",{"$nulls":3},"Y"]
[{"$f":"HYPERLINK( CONCATENATE(\"https://selfservice.mypurdue.purdue.edu/prod/bzwsrch.p_catalog_detail?subject=\",LEFT(B22, SEARCH(\" \",B22,1)-1),\"&cnbr=\",MID(B22, 1+SEARCH(\" \",B22,SEARCH(\" \",B22,1)),5)), 3 )","v":3},"HIST 27200 - Introduction To Modern Latin American History (1810 To The Present)",null,"Y","Y",{"$nulls":3},"Y"]
[{"$f":"HYPERLINK( CONCATENATE(\"https://selfservice.mypurdue.purdue.edu/prod/bzwsrch.p_catalog_detail?subject=\",LEFT(B23, SEARCH(\" \",B23,1)-1),\"&cnbr=\",MID(B23, 1+SEARCH(\" \",B23,SEARCH(\" \",B23,1)),5)), 3 )","v":3},"HIST 33300 - Science and Society in Western Civilization I",null,null,"Y",null,"Y"]
[{"$f":"HYPERLINK( CONCATENATE(\"https://selfservice.mypurdue.purdue.edu/prod/bzwsrch.p_catalog_detail?subject=\",LEFT(B24, SEARCH(\" \",B24,1)-1),\"&cnbr=\",MID(B24, 1+SEARCH(\" \",B24,SEARCH(\" \",B24,1)),5)), 3 )","v":3},"HIST 33400 - Science and Society in Western Civilization II",null,null,"Y",null,"Y"]
[{"$f":"HYPERLINK( CONCATENATE(\"https://selfservice.mypurdue.purdue.edu/prod/bzwsrch.p_catalog_detail?subject=\",LEFT(B25, SEARCH(\" \",B25,1)-1),\"&cnbr=\",MID(B25, 1+SEARCH(\" \",B25,SEARCH(\" \",B25,1)),5)), 3 )","v":3},"HIST 35000 - Science & Society in the Twentieth Century World",null,null,"Y",null,"Y"]
[{"$f":"HYPERLINK( CONCATENATE(\"https://selfservice.mypurdue.purdue.edu/prod/bzwsrch.p_catalog_detail?subject=\",LEFT(B26, SEARCH(\" \",B26,1)-1),\"&cnbr=\",MID(B26, 1+SEARCH(\" \",B26,SEARCH(\" \",B26,1)),5)), 3 )","v":3},"HIST 35205 - Death, Disease And Medicine In Twentieth Century American History",null,null,"Y",null,"Y"]
[{"$f":"HYPERLINK( CONCATENATE(\"https://selfservice.mypurdue.purdue.edu/prod/bzwsrch.p_catalog_detail?subject=\",LEFT(B27, SEARCH(\" \",B27,1)-1),\"&cnbr=\",MID(B27, 1+SEARCH(\" \",B27,SEARCH(\" \",B27,1)),5)), 3 )","v":3},"HIST 35500 - History Of American Military Affairs",null,null,"Y"]
[{"$f":"HYPERLINK( CONCATENATE(\"https://selfservice.mypurdue.purdue.edu/prod/bzwsrch.p_catalog_detail?subject=\",LEFT(B28, SEARCH(\" \",B28,1)-1),\"&cnbr=\",MID(B28, 1+SEARCH(\" \",B28,SEARCH(\" \",B28,1)),5)), 1 )","v":1},"HONR 19901 - The Evolution of Ideas (Previously named: First Year Honors in Science, Technology, and Society)",{"$nulls":4},"Y"]
[{"$f":"HYPERLINK( CONCATENATE(\"https://selfservice.mypurdue.purdue.edu/prod/bzwsrch.p_catalog_detail?subject=\",LEFT(B29, SEARCH(\" \",B29,1)-1),\"&cnbr=\",MID(B29, 1+SEARCH(\" \",B29,SEARCH(\" \",B29,1)),5)), 3 )","v":3},"ITAL 28100 - The Italian Renaissance and its Scientific and Cultural Impact on Western Civilization",null,"Y","Y",{"$nulls":3},"Y"]
[{"$f":"HYPERLINK( CONCATENATE(\"https://selfservice.mypurdue.purdue.edu/prod/bzwsrch.p_catalog_detail?subject=\",LEFT(B30, SEARCH(\" \",B30,1)-1),\"&cnbr=\",MID(B30, 1+SEARCH(\" \",B30,SEARCH(\" \",B30,1)),5)), 3 )","v":3},"LC 26100 - Introduction to the Linguistic Study of Foreign Languages",{"$nulls":3},"Y"]
[3,"LING 20100 - Intro to Linguistics",{"$nulls":3},"Y"]
[3,"MUS 37600 - World Music",null,"Y","Y"]
[3,"PHIL 22300 - Fate and Free Will",null,null,"Y"]
[3,"POL 10100 - American Government and Politics",{"$nulls":3},"Y"]
[3,"POL 12000 - Introduction to Public Policy and Public Administration",{"$nulls":3},"Y"]
[3,"POL 23000 - Introduction to the Study of Peace",{"$nulls":3},"Y"]
[3,"POL 33500 - China and the Challenges of Globalization",{"$nulls":3},"Y"]
[3,"SA 10202 - French Culture, Food And Health",{"$nulls":4},"Y"]
[3,"SLHS 22700 - Elements Of Linguistics",{"$nulls":3},"Y"]
[{"$f":"HYPERLINK( CONCATENATE(\"https://selfservice.mypurdue.purdue.edu/prod/bzwsrch.p_catalog_detail?subject=\",LEFT(B40, SEARCH(\" \",B40,1)-1),\"&cnbr=\",MID(B40, 1+SEARCH(\" \",B40,SEARCH(\" \",B40,1)),5)), 3 )","v":3},"SPAN 23000 - Contemporary Spanish American Literature In Translation",null,"Y",{"$nulls":4},"Y"]
[3,"TECH 12000 - Design Thinking In Technology",{"$nulls":4},"Y"]

{"sheet":"Grey","index":5,"n_rows":85,"n_cols":10,"rows_kept":85,"hidden":true}
["CREDITS","COURSE","COM","HUM","UCC HUM","SOC","UCC STS","(and)","INTL","MULTI"]
[null,"AAS | Any African American Studies (AAS) course may be a humanities selection",null,"Y"]
[null,"AD | Any Art and Design (AD) course may be used as a humanities selection",null,"Y"]
[null,"AMST | Any American Studies (AMST) course may be a humanities selection",null,"Y"]
[null,"ANTH | Anthropology (ANTH) course may be a social science selection",{"$nulls":3},"Y"]
[null,"ARAB | Any Arabic (ARAB) course (language or culture and literature) may be a humanities selection.  Any ARAB course may be an international understanding selection. ",null,"Y",{"$nulls":4},"Y"]
[null,"ASAM | Any Asian American Studies (ASAM) course may be a humanities selection",null,"Y"]
[null,"ASL | Any American Sign Language (ASL) course may be a communications selection","Y"]
[null,"BAND | Up to 3 credits of BAND may be used to fulfill humanities requirements",null,"Y"]
[null,"CHNS | Any Chinese (CHNS) course (language or culture and literature) may be a humanities selection.  Any CHNS course may be an international understanding selection. ",null,"Y",{"$nulls":4},"Y"]
[null,"CLCS | Any Classics (CLCS) course may be a humanities selection.  Any CLCS course may be an international understanding selection.",null,"Y",{"$nulls":4},"Y"]
[null,"CMPL | Any Comparative Literature (CMPL) course may be a humanities selection",null,"Y"]
[null,"COM | Any Communications (COM) course above 200000 may be a communication selection","Y"]
[null,"DANC | Any Dance (DANC) course may be a humanities selection",null,"Y"]
[null,"ECON | Any Economics (ECON) course may be a social science selection",{"$nulls":3},"Y"]
[null,"ENGL | Any English (ENGL) course above 20000 may be a communication selection","Y"]
[null,"FLL | Any Foreign language or literature (FLL) course may be a humanities selection and is also international understanding.  ",null,"Y",{"$nulls":4},"Y"]
[null,"FR | Any French (FR) course (language or culture and literature) may be a humanities selection.  Any FR course may be an international understanding selection.",null,"Y",{"$nulls":4},"Y"]
[null,"FVS | Any Film and Video Studies (FVS) course may be a humanities selection",null,"Y"]
[null,"GER | Any German (GER) course (language or culture and literature) may be a humanities selection.  Any GER course may be an international understanding selection. ",null,"Y",{"$nulls":4},"Y"]
[null,"GREK | Any Greek (GREK) course (language or culture and literature) may be a humanities selection.  Any GREK course may be an international understanding selection. ",null,"Y",{"$nulls":4},"Y"]
[null,"HEBR | Any Hebrew (HEBR) course (language or culture and literature) may be a humanities selection.  Any HEBR course may be an international understanding selection. ",null,"Y",{"$nulls":4},"Y"]
[null,"HIST | Any History (HIST) course may be a humanities selection",null,"Y"]
[null,"IDIS | Any Interdisciplinary Studies (IDIS) course may be a humanities selection",null,"Y"]
[null,"ITAL | Any Italian (ITAL) course (language or culture and literature) may be a humanities selection.  Any ITAL course may be an international understanding selection. ",null,"Y",{"$nulls":4},"Y"]
[null,"JPNS | Any Japanese (JPNS) course (language or culture and literature) may be a humanities selection.  Any JPNS course may be an international understanding selection. ",null,"Y",{"$nulls":4},"Y"]
[null,"JWST | Any Jewish Studies (JWST) course may be a humanities selection",null,"Y"]
[null,"LALS | Any Latin America and Latino Studies (LALS) course may be a humanities selection",null,"Y"]
[null,"LATN | Any Latin (LATN) course (language or culture and literature) may be a humanities selection.  Any LATN course may be an international understanding selection. ",null,"Y",{"$nulls":4},"Y"]
[null,"LC | Any Languages and Cultures course may be a humanities selection and is also international understanding.  ",null,"Y",{"$nulls":4},"Y"]
[null,"LING | Any Linguistics (LING) course may be a humanities selection",null,"Y"]
[null,"MARS | Any Medieval and Renaissance Studies (MARS) course may be a humanities selection",null,"Y"]
[null,"MUS | Any Music (MUS) course may be a humanities selection",null,"Y"]
[null,"PHIL | Any Philosophy (PHIL) course may be a humanities selection",null,"Y"]
[null,"POL | Any Political Science (POL) course may be a social science selection",{"$nulls":3},"Y"]
[null,"PSY | Any Psychological Sciences (PSY) course may be a social science selection",{"$nulls":3},"Y"]
[null,"PTGS | Any Portuguese (PTGS) course (language or culture and literature) may be a humanities selection.  Any PTGS course may be an international understanding selection.",null,"Y",{"$nulls":4},"Y"]
[null,"REL | Any Religious Studies course may be a humanities selection",null,"Y"]
[null,"RUSS | Any Russian (RUSS) course (language or culture and literature) may be a humanities selection.  Any RUSS course may be an international understanding selection. ",null,"Y",{"$nulls":4},"Y"]
[null,"SOC | Any Sociology (SOC) course may be a social science selection",{"$nulls":3},"Y"]
[null,"SPAN | Any Spanish (SPAN) course (language or culture and literature) may be a humanities selection.  Any SPAN course may be an international understanding selection. ",null,"Y",{"$nulls":4},"Y"]
[null,"THTR | Any Theatre (THTR) course may be a humanities selection",null,"Y"]
[null,"WOST | Any Women's Studies (WOST) course may be a humanities selection",null,"Y"]
[null,"WGSS | Any Women's, Gender, and Sexuality Studies (WGSS) course may be a humanities selection",null,"Y"]
[null,"AMST | Any American Studies (AMST) course may be a humanities selection",null,"Y"]
[null,"ANTH | Anthropology (ANTH) course may be a social science selection",{"$nulls":3},"Y"]
[null,"ARAB | Any Arabic (ARAB) course (language or culture and literature) may be a humanities selection.  Any ARAB course may be an international understanding selection. ",null,"Y",{"$nulls":4},"Y"]
[null,"ASAM | Any Asian American Studies (ASAM) course may be a humanities selection",null,"Y"]
[null,"ASL | Any American Sign Language (ASL) course may be a communications selection","Y"]
[null,"BAND | Up to 3 credits of BAND may be used to fulfill humanities requirements",null,"Y"]
[null,"CHNS | Any Chinese (CHNS) course (language or culture and literature) may be a humanities selection.  Any CHNS course may be an international understanding selection. ",null,"Y",{"$nulls":4},"Y"]
[null,"CLCS | Any Classics (CLCS) course may be a humanities selection.  Any CLCS course may be an international understanding selection.",null,"Y",{"$nulls":4},"Y"]
[null,"CMPL | Any Comparative Literature (CMPL) course may be a humanities selection",null,"Y"]
[null,"COM | Any Communications (COM) course above 200000 may be a communication selection","Y"]
[null,"DANC | Any Dance (DANC) course may be a humanities selection",null,"Y"]
[null,"ECON | Any Economics (ECON) course may be a social science selection",{"$nulls":3},"Y"]
[null,"ENGL | Any English (ENGL) course above 20000 may be a communication selection","Y"]
[null,"FLL | Any Foreign language or literature (FLL) course may be a humanities selection and is also international understanding.  ",null,"Y",{"$nulls":4},"Y"]
[null,"FR | Any French (FR) course (language or culture and literature) may be a humanities selection.  Any FR course may be an international understanding selection.",null,"Y",{"$nulls":4},"Y"]
[null,"FVS | Any Film and Video Studies (FVS) course may be a humanities selection",null,"Y"]
[null,"GER | Any German (GER) course (language or culture and literature) may be a humanities selection.  Any GER course may be an international understanding selection. ",null,"Y",{"$nulls":4},"Y"]
[null,"GREK | Any Greek (GREK) course (language or culture and literature) may be a humanities selection.  Any GREK course may be an international understanding selection. ",null,"Y",{"$nulls":4},"Y"]
[null,"HEBR | Any Hebrew (HEBR) course (language or culture and literature) may be a humanities selection.  Any HEBR course may be an international understanding selection. ",null,"Y",{"$nulls":4},"Y"]
[null,"HIST | Any History (HIST) course may be a humanities selection",null,"Y"]
[null,"IDIS | Any Interdisciplinary Studies (IDIS) course may be a humanities selection",null,"Y"]
[null,"ITAL | Any Italian (ITAL) course (language or culture and literature) may be a humanities selection.  Any ITAL course may be an international understanding selection. ",null,"Y",{"$nulls":4},"Y"]
[null,"JPNS | Any Japanese (JPNS) course (language or culture and literature) may be a humanities selection.  Any JPNS course may be an international understanding selection. ",null,"Y",{"$nulls":4},"Y"]
[null,"JWST | Any Jewish Studies (JWST) course may be a humanities selection",null,"Y"]
[null,"LALS | Any Latin America and Latino Studies (LALS) course may be a humanities selection",null,"Y"]
[null,"LATN | Any Latin (LATN) course (language or culture and literature) may be a humanities selection.  Any LATN course may be an international understanding selection. ",null,"Y",{"$nulls":4},"Y"]
[null,"LC | Any Languages and Cultures course may be a humanities selection and is also international understanding.  ",null,"Y",{"$nulls":4},"Y"]
[null,"LING | Any Linguistics (LING) course may be a humanities selection",null,"Y"]
[null,"MARS | Any Medieval and Renaissance Studies (MARS) course may be a humanities selection",null,"Y"]
[null,"MUS | Any Music (MUS) course may be a humanities selection",null,"Y"]
[null,"PHIL | Any Philosophy (PHIL) course may be a humanities selection",null,"Y"]
[null,"POL | Any Political Science (POL) course may be a social science selection",{"$nulls":3},"Y"]
[null,"PSY | Any Psychological Sciences (PSY) course may be a social science selection",{"$nulls":3},"Y"]
[null,"PTGS | Any Portuguese (PTGS) course (language or culture and literature) may be a humanities selection.  Any PTGS course may be an international understanding selection.",null,"Y",{"$nulls":4},"Y"]
[null,"REL | Any Religious Studies course may be a humanities selection",null,"Y"]
[null,"RUSS | Any Russian (RUSS) course (language or culture and literature) may be a humanities selection.  Any RUSS course may be an international understanding selection. ",null,"Y",{"$nulls":4},"Y"]
[null,"SOC | Any Sociology (SOC) course may be a social science selection",{"$nulls":3},"Y"]
[null,"SPAN | Any Spanish (SPAN) course (language or culture and literature) may be a humanities selection.  Any SPAN course may be an international understanding selection. ",null,"Y",{"$nulls":4},"Y"]
[null,"THTR | Any Theatre (THTR) course may be a humanities selection",null,"Y"]
[null,"WOST | Any Women's Studies (WOST) course may be a humanities selection",null,"Y"]
[null,"WGSS | Any Women's, Gender, and Sexuality Studies (WGSS) course may be a humanities selection",null,"Y"]

{"sheet":"No Color","index":6,"n_rows":465,"n_cols":10,"rows_kept":465,"hidden":true}
["CREDITS","COURSE","COM","HUM","UCC HUM","SOC","UCC STS","(and)","INTL","MULTI"]
[{"$f":"HYPERLINK( CONCATENATE(\"https://selfservice.mypurdue.purdue.edu/prod/bzwsrch.p_catalog_detail?subject=\",LEFT(B2, SEARCH(\" \",B2,1)-1),\"&cnbr=\",MID(B2, 1+SEARCH(\" \",B2,SEARCH(\" \",B2,1)),5)), 3 )","v":3},"AAS 27100 - Introduction to African American Studies",null,"Y","Y",{"$nulls":4},"Y"]
[3,"AAS 27700 - African American Pop Culture",null,"Y",{"$nulls":5},"Y"]
[3,"AAS 37000 - Black Women Rising",null,"Y",{"$nulls":5},"Y"]
[3,"AAS 37100 - The African American Experience",null,"Y",{"$nulls":5},"Y"]
[3,"AAS 37300 - Issues in African American Studies",null,"Y",{"$nulls":5},"Y"]
[3,"AAS 37500 - The Black Family",null,"Y",{"$nulls":5},"Y"]
[3,"AAS 37600 - The Black Male",null,"Y",{"$nulls":5},"Y"]
[3,"AAS 37700 - African American Sexuality and Society",null,"Y",{"$nulls":5},"Y"]
[{"$f":"HYPERLINK( CONCATENATE(\"https://selfservice.mypurdue.purdue.edu/prod/bzwsrch.p_catalog_detail?subject=\",LEFT(B10, SEARCH(\" \",B10,1)-1),\"&cnbr=\",MID(B10, 1+SEARCH(\" \",B10,SEARCH(\" \",B10,1)),5)), 1 )","v":1},"ABE 29000 - Sophomore Seminar",{"$nulls":4},"Y"]
[3,"AD 11300 - Basic Drawings",null,"Y","Y"]
[3,"AD 12500 - Intro to Interior Design",null,"Y","Y"]
[3,"AD 22600 - History of Art to 1400",null,"Y","Y"]
[3,"AD 22700 - History of Art since 1400",null,"Y","Y"]
[3,"AD 24200 - Ceramics I",null,"Y","Y"]
[3,"AD 25100 - History of Photography",null,"Y","Y"]
[3,"AD 25500 - Art Appreciation",null,"Y","Y"]
[3,"AD 26500 - Relief Printmaking",null,"Y","Y"]
[3,"AD 26600 - Silkscreen Printmaking",null,"Y","Y"]
[3,"AD 27500 - Beginning Sculpture ",null,"Y","Y"]
[3,"AD 38300 - Modern Art",null,"Y","Y"]
[3,"AD 38400 - Contemporary Art",null,"Y","Y"]
[3,"AGEC 20300 - Introductory Microeconomics for Food and Agribusiness",{"$nulls":3},"Y"]
[3,"AGEC 20400 - Introduction to Resource Economics and Environmental Policy",{"$nulls":3},"Y"]
[3,"AGEC 21700 - Economics",{"$nulls":3},"Y"]
[3,"AGEC 25000 - Economic Geography of World Food and Resources",{"$nulls":3},"Y",null,null,"Y"]
[3,"AGEC 30500 - Agricultural Prices",{"$nulls":3},"Y"]
[3,"AGEC 33300 - Food Distribution - A Retailing Perspective",null,"Y",null,"Y"]
[3,"AGEC 34000 - International Economic Development",{"$nulls":3},"Y",null,null,"Y"]
[3,"AGEC 40600- Natural Resource And Environmental Economics",{"$nulls":3},"Y"]
[3,"AGEC 41000 - Agricultural Policy  ",{"$nulls":3},"Y"]
[3,"AGEC 41500 - Community And Resource Development",{"$nulls":3},"Y"]
[3,"AGEC 45000 - International Agricultural Trade",{"$nulls":3},"Y",null,null,"Y"]
[3,"AGEC 49800 - Afghanistan Development Challenges",{"$nulls":3},"Y",null,null,"Y"]
[3,"AGR 20100 - Communicating Across Culture","Y","Y",null,"Y",{"$nulls":3},"Y"]
[3,"AGR 49300 - Special Topics in International Agriculture",{"$nulls":6},"Y"]
[{"$f":"HYPERLINK( CONCATENATE(\"https://selfservice.mypurdue.purdue.edu/prod/bzwsrch.p_catalog_detail?subject=\",LEFT(B37, SEARCH(\" \",B37,1)-1),\"&cnbr=\",MID(B37, 1+SEARCH(\" \",B37,SEARCH(\" \",B37,1)),5)), 0 )","v":0},"AGR 49500 - Intl. Prof. Experience in Agr., Food, and Nat. Resources",{"$nulls":6},"Y"]
[3,"AGRY 12300 - Genetics and Society",null,"Y",null,"Y"]
[{"$f":"HYPERLINK( CONCATENATE(\"https://selfservice.mypurdue.purdue.edu/prod/bzwsrch.p_catalog_detail?subject=\",LEFT(B39, SEARCH(\" \",B39,1)-1),\"&cnbr=\",MID(B39, 1+SEARCH(\" \",B39,SEARCH(\" \",B39,1)),5)), 3 )","v":3},"AGRY 12500 - Environmental Science and Conservation",{"$nulls":4},"Y"]
[3,"AGRY 28500 - World Crop Adaptation and Distribution",{"$nulls":4},"Y",null,"Y"]
[3,"AGRY 35000 - Global Awareness",{"$nulls":6},"Y"]
[3,"AGRY 39900 - Afghanistan Development Challenges",{"$nulls":3},"Y",null,null,"Y"]
[3,"AGRY 39900 - Exploring International Agriculture",{"$nulls":6},"Y"]
[3,"AGRY 59800 - African Development Challenges",{"$nulls":6},"Y"]
[{"$f":"HYPERLINK( CONCATENATE(\"https://selfservice.mypurdue.purdue.edu/prod/bzwsrch.p_catalog_detail?subject=\",LEFT(B45, SEARCH(\" \",B45,1)-1),\"&cnbr=\",MID(B45, 1+SEARCH(\" \",B45,SEARCH(\" \",B45,1)),5)), 3 )","v":3},"ANSC 10200 - Intro to Animal Agriculture",{"$nulls":4},"Y"]
[{"$f":"HYPERLINK( CONCATENATE(\"https://selfservice.mypurdue.purdue.edu/prod/bzwsrch.p_catalog_detail?subject=\",LEFT(B46, SEARCH(\" \",B46,1)-1),\"&cnbr=\",MID(B46, 1+SEARCH(\" \",B46,SEARCH(\" \",B46,1)),5)), 3 )","v":3},"ANSC 29400 - Exploring International Animal Agriculture",{"$nulls":6},"Y"]
[{"$f":"HYPERLINK( CONCATENATE(\"https://selfservice.mypurdue.purdue.edu/prod/bzwsrch.p_catalog_detail?subject=\",LEFT(B47, SEARCH(\" \",B47,1)-1),\"&cnbr=\",MID(B47, 1+SEARCH(\" \",B47,SEARCH(\" \",B47,1)),5)), 3 )","v":3},"ANSC 29500 - Exploring International Agriculture",{"$nulls":6},"Y"]
[{"$f":"HYPERLINK( CONCATENATE(\"https://selfservice.mypurdue.purdue.edu/prod/bzwsrch.p_catalog_detail?subject=\",LEFT(B48, SEARCH(\" \",B48,1)-1),\"&cnbr=\",MID(B48, 1+SEARCH(\" \",B48,SEARCH(\" \",B48,1)),5)), 3 )","v":3},"ANTH 10000 - Introduction to Anthropology",{"$nulls":3},"Y",null,null,"Y"]
[3,"ANTH 20500 - Human Cultural Diversity",{"$nulls":3},"Y",null,null,"Y","Y"]
[3,"ANTH 21000 - Technology and Culture",{"$nulls":3},"Y","Y"]
[3,"ANTH 23000 - Gender Across Cultures",{"$nulls":3},"Y",{"$nulls":3},"Y"]
[3,"ANTH 28200 - Introduction to LGBT Studies",{"$nulls":3},"Y",{"$nulls":3},"Y"]
[3,"ANTH 34000 - Global Perspectives on Health",{"$nulls":3},"Y",{"$nulls":3},"Y"]
[3,"ANTH 39200 - Globalization and Culture",{"$nulls":3},"Y",null,null,"Y"]
[3,"ANTH 48200 - Sexual Diversity in Global Perspectives",{"$nulls":3},"Y",{"$nulls":3},"Y"]
[3,"ARAB 10100 - Standard Arabic Level I",null,"Y","Y",{"$nulls":3},"Y"]
[3,"ARAB 10200 - Standard Arabic Level II",null,"Y","Y",{"$nulls":3},"Y"]
[3,"ARAB 20100 - Standard Arabic Level IV",null,"Y","Y",{"$nulls":3},"Y"]
[3,"ARAB 20200 - Standard Arabic Level V",null,"Y","Y",{"$nulls":3},"Y"]
[3,"ARAB 23000 - Arabic Literature in Translation",null,"Y",{"$nulls":4},"Y"]
[3,"ARAB 23900 - Arab Women Writers",null,"Y",{"$nulls":4},"Y"]
[3,"ARAB 28000 - Arabic Culture",null,"Y","Y",{"$nulls":3},"Y"]
[3,"ARAB 28100 - Introduction to Islamic Civilization and Culture",null,"Y",{"$nulls":4},"Y"]
[3,"ARAB 30100 - Standard Arabic Level V",null,"Y","Y",{"$nulls":3},"Y"]
[3,"ARAB 30200 - Standard Arabic Level VI",null,"Y","Y",{"$nulls":3},"Y"]
[3,"ARAB 58700 - Modern Arab Thought",null,"Y",{"$nulls":4},"Y"]
[3,"ASAM 24000 - Introduction to Asian American Studies",null,"Y","Y",{"$nulls":4},"Y"]
[3,"ASL 10100 - American Sign Language I","Y",null,"Y"]
[3,"ASL 10200 - American Sign Language II","Y",null,"Y"]
[3,"ASL 20100 - American Sign Language III","Y",null,"Y"]
[3,"ASL 20200 - American Sign Language IV","Y",null,"Y"]
[{"$f":"HYPERLINK( CONCATENATE(\"https://selfservice.mypurdue.purdue.edu/prod/bzwsrch.p_catalog_detail?subject=\",LEFT(B72, SEARCH(\" \",B72,1)-1),\"&cnbr=\",MID(B72, 1+SEARCH(\" \",B72,SEARCH(\" \",B72,1)),5)), 2 )","v":2},"BCHM 10000 - Intro to Biochemistry",{"$nulls":4},"Y"]
[{"$f":"HYPERLINK( CONCATENATE(\"https://selfservice.mypurdue.purdue.edu/prod/bzwsrch.p_catalog_detail?subject=\",LEFT(B73, SEARCH(\" \",B73,1)-1),\"&cnbr=\",MID(B73, 1+SEARCH(\" \",B73,SEARCH(\" \",B73,1)),5)), 3 )","v":3},"BCM 10001 - Introduction to Contruction Management",{"$nulls":4},"Y"]
[{"$f":"HYPERLINK( CONCATENATE(\"https://selfservice.mypurdue.purdue.edu/prod/bzwsrch.p_catalog_detail?subject=\",LEFT(B74, SEARCH(\" \",B74,1)-1),\"&cnbr=\",MID(B74, 1+SEARCH(\" \",B74,SEARCH(\" \",B74,1)),5)), 2 )","v":2},"BIOL 12100 - Biology I: Diversity, Ecology, & Behavior",{"$nulls":4},"Y"]
[3,"BIOL 31200 - Great Issues: Genomics and Society ( Applicable for STS Fall 2015 and earlier)",{"$nulls":4},"Y"]
[3,"BTNY 20100 - Plants and Civilization",{"$nulls":4},"Y",null,"Y"]
[3,"BTNY 21100 - Plants and the Environment",{"$nulls":4},"Y"]
[{"$f":"HYPERLINK( CONCATENATE(\"https://selfservice.mypurdue.purdue.edu/prod/bzwsrch.p_catalog_detail?subject=\",LEFT(B78, SEARCH(\" \",B78,1)-1),\"&cnbr=\",MID(B78, 1+SEARCH(\" \",B78,SEARCH(\" \",B78,1)),5)), 4 )","v":4},"CHNS 10100 - Chinese Level I",null,"Y","Y",{"$nulls":3},"Y"]
[{"$f":"HYPERLINK( CONCATENATE(\"https://selfservice.mypurdue.purdue.edu/prod/bzwsrch.p_catalog_detail?subject=\",LEFT(B79, SEARCH(\" \",B79,1)-1),\"&cnbr=\",MID(B79, 1+SEARCH(\" \",B79,SEARCH(\" \",B79,1)),5)), 4 )","v":4},"CHNS 10200 - Chinese Level II",null,"Y","Y",{"$nulls":3},"Y"]
[{"$f":"HYPERLINK( CONCATENATE(\"https://selfservice.mypurdue.purdue.edu/prod/bzwsrch.p_catalog_detail?subject=\",LEFT(B80, SEARCH(\" \",B80,1)-1),\"&cnbr=\",MID(B80, 1+SEARCH(\" \",B80,SEARCH(\" \",B80,1)),5)), 4 )","v":4},"CHNS 20100 - Chinese Level III",null,"Y","Y",{"$nulls":3},"Y"]
[{"$f":"HYPERLINK( CONCATENATE(\"https://selfservice.mypurdue.purdue.edu/prod/bzwsrch.p_catalog_detail?subject=\",LEFT(B81, SEARCH(\" \",B81,1)-1),\"&cnbr=\",MID(B81, 1+SEARCH(\" \",B81,SEARCH(\" \",B81,1)),5)), 4 )","v":4},"CHNS 20200- Chinese Level IV",null,"Y","Y",{"$nulls":3},"Y"]
[3,"CHNS 23000 - Chinese Literature in Translation",null,"Y",{"$nulls":4},"Y"]
[3,"CHNS 24100 - Introduction to the Study of Chinese Literature",null,"Y","Y",{"$nulls":3},"Y"]
[3,"CHNS 28000 - Topics in Chinese Civilization and Culture",null,"Y","Y",{"$nulls":3},"Y"]
[{"$f":"HYPERLINK( CONCATENATE(\"https://selfservice.mypurdue.purdue.edu/prod/bzwsrch.p_catalog_detail?subject=\",LEFT(B85, SEARCH(\" \",B85,1)-1),\"&cnbr=\",MID(B85, 1+SEARCH(\" \",B85,SEARCH(\" \",B85,1)),5)), 1 )","v":1},"CHNS 28500 - Chinese Calligraphy",null,"Y",{"$nulls":4},"Y"]
[3,"CHNS 30100 - Chinese Level V",null,"Y","Y",{"$nulls":3},"Y"]
[3,"CHNS 30200 - Chinese Level VI",null,"Y","Y",{"$nulls":3},"Y"]
[3,"CHNS 33000 - Introduction to Chinese Cinema",null,"Y","Y",{"$nulls":3},"Y"]
[3,"CHNS 40100 - Chinese Level VII",null,"Y","Y",{"$nulls":3},"Y"]
[3,"CHNS 40200 - Chinese Level VIII",null,"Y","Y",{"$nulls":3},"Y"]
[3,"CLCS 23010 - Survey of Greet Literature in Translation",null,"Y","Y",{"$nulls":3},"Y"]
[3,"CLCS 23100 - Survey of Latin Literature",null,"Y","Y",{"$nulls":3},"Y"]
[3,"CLCS 23200 - Classical Roots of English Words",null,"Y","Y",{"$nulls":3},"Y"]
[3,"CLCS 23300 - Comparative Mythology",null,"Y","Y",{"$nulls":3},"Y"]
[3,"CLCS 23500 - Intro to Classical Mythology",null,"Y","Y",{"$nulls":3},"Y"]
[3,"CLCS 23700 - Gender & Sexuality in Greek and Roman Antiquity",null,"Y","Y",{"$nulls":3},"Y"]
[3,"CLCS 23800 - The Tragic Vision",null,"Y","Y",{"$nulls":3},"Y"]
[3,"CLCS 23900 - The Comic Vision",null,"Y","Y",{"$nulls":3},"Y"]
[3,"CLCS 33900 - Literature and the Law",null,"Y","Y",{"$nulls":3},"Y"]
[3,"CLCS 38000 - Alexander the Great & Hellenistic World",null,null,"Y",{"$nulls":3},"Y"]
[3,"CMPL 26600 - Intro to World Lit Beg - 1600",null,"Y","Y"]
[3,"CMPL 26700 - World Literature: From 1700 AD to the Present",null,"Y","Y"]
[3,"COM 22400 - Communicating in the Global Workplace","Y",{"$nulls":5},"Y"]
[3,"COM 25100 - Communication, Information and Society","Y",{"$nulls":3},"Y"]
[3,"COM 30300 - Intercultural Communication","Y",{"$nulls":6},"Y"]
[3,"COM 32800 - Diversity at Work: A Rhetorical Approach","Y",{"$nulls":6},"Y"]
[3,"COM 36800 - Sociolinguistic Study of African American English","Y",{"$nulls":6},"Y"]
[3,"COM 37600 - Communication and Gender","Y",{"$nulls":6},"Y"]
[3,"COM 38100 - Gender and Feminist Studies in Communication","Y",{"$nulls":6},"Y"]
[{"$f":"HYPERLINK( CONCATENATE(\"https://selfservice.mypurdue.purdue.edu/prod/bzwsrch.p_catalog_detail?subject=\",LEFT(B110, SEARCH(\" \",B110,1)-1),\"&cnbr=\",MID(B110, 1+SEARCH(\" \",B110,SEARCH(\" \",B110,1)),5)), 3 )","v":3},"CS 10100 - Digital Literacy",null,null,"Y"]
[3,"DANC 25000 - Dance Appreciation",null,"Y","Y"]
[3,"EAPS 10000 - Planet Earth",{"$nulls":4},"Y"]
[3,"EAPS 10400 - Oceanography",{"$nulls":4},"Y"]
[3,"EAPS 10600 - Geosciences in the Cinema",{"$nulls":4},"Y"]
[3,"EAPS 12000 - Introduction to Geography",{"$nulls":4},"Y"]
[{"$f":"HYPERLINK( CONCATENATE(\"https://selfservice.mypurdue.purdue.edu/prod/bzwsrch.p_catalog_detail?subject=\",LEFT(B116, SEARCH(\" \",B116,1)-1),\"&cnbr=\",MID(B116, 1+SEARCH(\" \",B116,SEARCH(\" \",B116,1)),5)), 3 )","v":3},"EAPS 12500 - Environmental Science and Conservation",{"$nulls":4},"Y"]
[{"$f":"HYPERLINK( CONCATENATE(\"https://selfservice.mypurdue.purdue.edu/prod/bzwsrch.p_catalog_detail?subject=\",LEFT(B117, SEARCH(\" \",B117,1)-1),\"&cnbr=\",MID(B117, 1+SEARCH(\" \",B117,SEARCH(\" \",B117,1)),5)), 3 )","v":3},"EAPS 12900 - Earth System Dynamics",{"$nulls":4},"Y"]
[{"$f":"HYPERLINK( CONCATENATE(\"https://selfservice.mypurdue.purdue.edu/prod/bzwsrch.p_catalog_detail?subject=\",LEFT(B118, SEARCH(\" \",B118,1)-1),\"&cnbr=\",MID(B118, 1+SEARCH(\" \",B118,SEARCH(\" \",B118,1)),5)), 3 )","v":3},"EAPS 20000 - Water World: Processes and Challenges in Global Hydrology"]
[3,"ECON 21000 - Principles of Economics",{"$nulls":3},"Y"]
[3,"ECON 25100 - Microeconomics",{"$nulls":3},"Y"]
[3,"ECON 25200 - Macroeconomics",{"$nulls":3},"Y"]
[3,"ECON 37000 - International Trade",{"$nulls":3},"Y",null,null,"Y"]
[3,"ECON 46600 - International Economics",{"$nulls":3},"Y",null,null,"Y"]
[3,"EDCI 28500 - Multiculturalism and Education",{"$nulls":7},"Y"]
[3,"EDPS 23500 - Learning And Motivation ",{"$nulls":3},"Y"]
[3,"EDPS 26500 - The Inclusive Classroom",{"$nulls":3},"Y"]
[{"$f":"HYPERLINK( CONCATENATE(\"https://selfservice.mypurdue.purdue.edu/prod/bzwsrch.p_catalog_detail?subject=\",LEFT(B127, SEARCH(\" \",B127,1)-1),\"&cnbr=\",MID(B127, 1+SEARCH(\" \",B127,SEARCH(\" \",B127,1)),5)), 3 )","v":3},"EDST 20000 - History And Philosophy Of Education",null,"Y","Y"]
[{"$f":"HYPERLINK( CONCATENATE(\"https://selfservice.mypurdue.purdue.edu/prod/bzwsrch.p_catalog_detail?subject=\",LEFT(B128, SEARCH(\" \",B128,1)-1),\"&cnbr=\",MID(B128, 1+SEARCH(\" \",B128,SEARCH(\" \",B128,1)),5)), 3 )","v":3},"ENGL 11000 - American Language and Culture for International Students I",null,"Y","Y"]
[3,"ENGL 20200 - Engaging English","Y",null,"Y"]
[{"$f":"HYPERLINK( CONCATENATE(\"https://selfservice.mypurdue.purdue.edu/prod/bzwsrch.p_catalog_detail?subject=\",LEFT(B130, SEARCH(\" \",B130,1)-1),\"&cnbr=\",MID(B130, 1+SEARCH(\" \",B130,SEARCH(\" \",B130,1)),5)), 3 )","v":3},"ENGL 21700 - Figures of Myth and Legend I: Monsters",null,null,"Y"]
[{"$f":"HYPERLINK( CONCATENATE(\"https://selfservice.mypurdue.purdue.edu/prod/bzwsrch.p_catalog_detail?subject=\",LEFT(B131, SEARCH(\" \",B131,1)-1),\"&cnbr=\",MID(B131, 1+SEARCH(\" \",B131,SEARCH(\" \",B131,1)),5)), 3 )","v":3},"ENGL 21800 - Figures of Myth and Legend II: Heros and Villains",null,null,"Y"]
[{"$f":"HYPERLINK( CONCATENATE(\"https://selfservice.mypurdue.purdue.edu/prod/bzwsrch.p_catalog_detail?subject=\",LEFT(B132, SEARCH(\" \",B132,1)-1),\"&cnbr=\",MID(B132, 1+SEARCH(\" \",B132,SEARCH(\" \",B132,1)),5)), 3 )","v":3},"ENGL 21900 - Figures of Myth and Legend III: Magic and Marvels",null,null,"Y"]
[3,"ENGL 22300 - Literature and Technology","Y",null,"Y",null,"Y"]
[3,"ENGL 22500 - Literature, Inequality, and Injustice","Y",null,"Y"]
[3,"ENGL 22600 - Narrative Medicine","Y",{"$nulls":3},"Y"]
[3,"ENGL 22700 -Elements Of Linguistics","Y","Y"]
[3,"ENGL 23000 - Great Narrative Works","Y","Y","Y"]
[3,"ENGL 23100 - Introduction To Literature","Y","Y"]
[3,"ENGL 23200 - Thematic Studies In Literature","Y","Y"]
[3,"ENGL 23400 - Ecological Literature","Y",{"$nulls":3},"Y"]
[3,"ENGL 23500 - Introduction To Drama","Y","Y"]
[3,"ENGL 23700 - Introduction To Poetry","Y","Y","Y"]
[3,"ENGL 23800 - Introduction To Fiction","Y","Y","Y"]
[3,"ENGL 23900 - Introduction To Biography","Y","Y"]
[3,"ENGL 24100 - Survey Of The British Literature: From The Rise Of Romanticism To The Modern Period ","Y","Y","Y"]
[3,"ENGL 25000 - Great American Books","Y","Y","Y"]
[3,"ENGL 25700 - Literature of Black America","Y","Y",{"$nulls":5},"Y"]
[3,"ENGL 26200 - Greek And Roman Classics In Translation","Y","Y"]
[3,"ENGL 26400 - The Bible As Literature","Y","Y","Y"]
[3,"ENGL 26600 - World Literature: From the Beginnings to 1700 A.D.","Y","Y",{"$nulls":4},"Y"]
[3,"ENGL 26700 - World Literature: From 1700 A.D. to the Present","Y","Y","Y",{"$nulls":3},"Y"]
[3,"ENGL 27600 - Shakespeare On Film","Y","Y","Y"]
[3,"ENGL 27900 - The American Short Story In Print And Film","Y","Y"]
[3,"ENGL 28600 - The Movies ","Y",null,"Y"]
[3,"ENGL 32200 - Word, Image, Media","Y",null,"Y"]
[3,"ENGL 33100 - Medieval English Literature","Y","Y"]
[3,"ENGL 33300 - Renaissance English Literature","Y","Y"]
[3,"ENGL 33500 - Restoration And Eighteenth-Century English Literature","Y","Y"]
[3,"ENGL 33700 - Nineteenth-Century English Literature","Y","Y"]
[3,"ENGL 35000 - Survey Of American Literature From Its Beginnings To 1865","Y","Y","Y"]
[3,"ENGL 35100 - Survey Of American Literature From 1865 To The Post-World War II Period","Y","Y","Y"]
[3,"ENGL 35400 - Asian American Literature","Y",{"$nulls":6},"Y"]
[3,"ENGL 35600 - American Humor","Y","Y"]
[3,"ENGL 35800 - Black Drama","Y","Y",{"$nulls":5},"Y"]
[3,"ENGL 36000 - Gender and Literature","Y","Y","Y",{"$nulls":4},"Y"]
[3,"ENGL 36500 - Literature and Imperialism","Y",null,"Y"]
[3,"ENGL 36700 - Mystery and Detective Fiction","Y",null,"Y"]
[3,"ENGL 37200 - American Folklore","Y","Y"]
[3,"ENGL 37300 - Science Fiction And Fantasy","Y","Y","Y"]
[3,"ENGL 37500 - British Drama To 1800, Exclusive Of Shakespeare","Y","Y"]
[3,"ENGL 37700 - Major Modern Poetry","Y","Y"]
[3,"ENGL 37900 - The Short Story","Y","Y"]
[3,"ENGL 38100 - The British Novel","Y","Y","Y"]
[3,"ENGL 38200 - The American Novel","Y","Y","Y"]
[3,"ENGL 38300 - Modern Drama: Ibsen To The Absurdists","Y","Y"]
[3,"ENGL 38600 - History Of The Film To 1938","Y","Y"]
[3,"ENGL 38700 - History Of The Film From 1938 To The Present","Y","Y"]
[3,"ENGL 38900 - Literature for Children","Y",null,"Y"]
[3,"ENGL 39600 - Studies In Literature And Language","Y","Y"]
[3,"ENGL 41100 - Studies In Major Authors","Y","Y"]
[3,"ENGL 41200 - Studies In Genre","Y","Y"]
[3,"ENGL 41300 - Studies In Literature And History","Y","Y"]
[3,"ENGL 41400 - Studies In Literature And Culture","Y","Y"]
[3,"ENGL 44100 - Chaucer's Canterbury Tales","Y","Y"]
[3,"ENGL 44200 - Shakespeare","Y","Y"]
[3,"ENGL 44400 - Milton","Y","Y"]
[3,"ENGL 46200 - The Bible As Literature: The Old Testament","Y","Y"]
[3,"ENGL 46300 - The Bible As Literature: The New Testament","Y","Y"]
[3,"ENGL 46800 - Problems In The History Of Criticism","Y","Y"]
[{"$f":"HYPERLINK( CONCATENATE(\"https://selfservice.mypurdue.purdue.edu/prod/bzwsrch.p_catalog_detail?subject=\",LEFT(B190, SEARCH(\" \",B190,1)-1),\"&cnbr=\",MID(B190, 1+SEARCH(\" \",B190,SEARCH(\" \",B190,1)),5)), 3 )","v":3},"ENGL 46900 - Issues In Contemporary Criticism And Theory","Y","Y"]
[3,"ENGL 49200 - Literature In The Secondary Schools","Y","Y"]
[{"$f":"HYPERLINK( CONCATENATE(\"https://selfservice.mypurdue.purdue.edu/prod/bzwsrch.p_catalog_detail?subject=\",LEFT(B192, SEARCH(\" \",B192,1)-1),\"&cnbr=\",MID(B192, 1+SEARCH(\" \",B192,SEARCH(\" \",B192,1)),5)), 3 )","v":3},"ENGR 31000 - Engineering in the Global Context",{"$nulls":4},"Y"]
[3,"ENTM 10500 - Insects: Friends and Foe",{"$nulls":4},"Y"]
[3,"ENTM 12800 - Investigating Forensic Science",{"$nulls":4},"Y"]
[3,"ENTM 20100 - Scientific and Technical Communication","Y"]
[3,"ENTR 47000 - Women and Leadership",{"$nulls":7},"Y"]
[3,"FNR 22310 - Introduction to Environmental Policy",{"$nulls":4},"Y"]
[3,"FNR 23000 - The World's Forests and Society",{"$nulls":4},"Y",null,"Y"]
[3,"FNR 24000 - Wildlife in America ",{"$nulls":4},"Y"]
[{"$f":"HYPERLINK( CONCATENATE(\"https://selfservice.mypurdue.purdue.edu/prod/bzwsrch.p_catalog_detail?subject=\",LEFT(B200, SEARCH(\" \",B200,1)-1),\"&cnbr=\",MID(B200, 1+SEARCH(\" \",B200,SEARCH(\" \",B200,1)),5)), 2 )","v":2},"FNR 30200 - Global Sustainability Issues",{"$nulls":6},"Y"]
[{"$f":"HYPERLINK( CONCATENATE(\"https://selfservice.mypurdue.purdue.edu/prod/bzwsrch.p_catalog_detail?subject=\",LEFT(B201, SEARCH(\" \",B201,1)-1),\"&cnbr=\",MID(B201, 1+SEARCH(\" \",B201,SEARCH(\" \",B201,1)),5)), 3 )","v":3},"FNR 37500- Human Dimensions of Natural Resource Management",{"$nulls":3},"Y"]
[3,"FNR 46000 - International Natural Resources Summer Program",{"$nulls":6},"Y"]
[3,"FNR 48800 - Global Environmental Issues",{"$nulls":6},"Y"]
[3,"FR 10100 - French Level I",null,"Y","Y",{"$nulls":3},"Y"]
[3,"FR 10200 - French Level II",null,"Y","Y",{"$nulls":3},"Y"]
[3,"FR 20100 - French Level III",null,"Y","Y",{"$nulls":3},"Y"]
[3,"FR 20200 - French Level IV",null,"Y","Y",{"$nulls":3},"Y"]
[3,"FR 23000 - French Literature in Translation",null,"Y",{"$nulls":4},"Y"]
[3,"FR 30100 - French Level V",null,"Y","Y",{"$nulls":3},"Y"]
[3,"FR 30200 - French Level VI",null,"Y","Y",{"$nulls":3},"Y"]
[3,"FR 33000 - French Cinema",null,"Y","Y",{"$nulls":3},"Y"]
[3,"FR 40100 - French Level VII",null,"Y","Y",{"$nulls":3},"Y"]
[3,"FR 40200 - French Level VIII",null,"Y","Y",{"$nulls":3},"Y"]
[3,"GER 10100 - German Level I",null,"Y","Y",{"$nulls":3},"Y"]
[3,"GER 10200 - German Level II",null,"Y","Y",{"$nulls":3},"Y"]
[3,"GER 20100 - German Level III",null,"Y","Y",{"$nulls":3},"Y"]
[3,"GER 20200 - German Level IV",null,"Y","Y",{"$nulls":3},"Y"]
[3,"GER 23000 - German Literature in Translation",null,"Y","Y",{"$nulls":3},"Y"]
[3,"GER 28000 - German Special Topics",null,"Y",{"$nulls":4},"Y"]
[3,"GER 30100 - German Level V",null,"Y","Y",{"$nulls":3},"Y"]
[3,"GER 30200 - German Level VI",null,"Y","Y",{"$nulls":3},"Y"]
[3,"GER 33000 - German Cinema ",null,"Y","Y",{"$nulls":3},"Y"]
[3,"GER 40100 - German Level VII",null,"Y","Y",{"$nulls":3},"Y"]
[3,"GER 40200 - German Level VIII",null,"Y","Y",{"$nulls":3},"Y"]
[3,"GREK 10100 - Ancient Greek Level I",null,"Y","Y",{"$nulls":3},"Y"]
[3,"GREK 10200 - Ancient Greek Level II",null,"Y","Y",{"$nulls":3},"Y"]
[3,"GREK 20100 - Ancient Greek Level III",null,"Y","Y",{"$nulls":3},"Y"]
[3,"GREK 20200 - Ancient Greek Level IV",null,"Y","Y",{"$nulls":3},"Y"]
[3,"GSLA 30100 - Theories of Global Studies",null,null,"Y"]
[3,"HDFS 28000 - Diversity in Individual and Family Life",{"$nulls":7},"Y"]
[3,"HEBR 10100 - Modern Hebrew I",null,"Y","Y"]
[3,"HEBR 10200 - Modern Hebrew II",null,"Y","Y"]
[3,"HEBR 12100 - Biblical Hebrew Level I",null,"Y","Y"]
[3,"HEBR 12200 - Biblical Hebrew Level II",null,"Y","Y"]
[3,"HEBR 20100 - Modern Hebrew III",null,"Y","Y"]
[3,"HEBR 20200 - Modern Hebrew IV",null,"Y","Y"]
[3,"HEBR 22100 - Biblical Hebrew Level III",null,"Y","Y"]
[3,"HEBR 22200 - Biblical Hebrew Level IV",null,"Y","Y"]
[3,"HEBR 38500 - The Holocaust in Modern Hebrew Literature",null,"Y",{"$nulls":4},"Y"]
[3,"HIST 10300 - Intro to the Medieval World",null,"Y","Y"]
[3,"HIST 10400 - Intro to the Modern World",null,"Y","Y"]
[3,"HIST 10500 - Survey of Global World ",null,"Y","Y"]
[3,"HIST 15100 - American History to 1877",null,"Y","Y"]
[3,"HIST 15200 - United States since 1877",null,"Y","Y"]
[3,"HIST 21000 - The Making of Modern Africa",null,"Y","Y"]
[3,"HIST 21100 - The Global Field: World Soccer and Global History",null,"Y","Y"]
[3,"HIST 23800 - History of Russia from Medieval times to 1861",null,"Y","Y"]
[3,"HIST 23900 - History of Russia from 1861 to the present",null,"Y","Y"]
[3,"HIST 24000 - East Asia and Its Historic Transition",null,"Y","Y",{"$nulls":3},"Y"]
[3,"HIST 24100 - East Asia and the Modern World",null,"Y","Y",{"$nulls":3},"Y"]
[3,"HIST 24300 - South Asian History and Civilizations",null,"Y","Y",{"$nulls":3},"Y"]
[3,"HIST 24600 - Modern Middle East and North Africa",null,"Y","Y",{"$nulls":3},"Y"]
[3,"HIST 25000 - U.S. Relations with the Middle East & No. Africa",null,"Y","Y"]
[{"$f":"HYPERLINK( CONCATENATE(\"https://selfservice.mypurdue.purdue.edu/prod/bzwsrch.p_catalog_detail?subject=\",LEFT(B254, SEARCH(\" \",B254,1)-1),\"&cnbr=\",MID(B254, 1+SEARCH(\" \",B254,SEARCH(\" \",B254,1)),5)), 3 )","v":3},"HIST 29000 - Russia: Yesterday, Today, and Tomorrow",null,"Y",{"$nulls":4},"Y"]
[3,"HIST 30000 - Eve of Destruction: Global Crisis and World Organization in the 20th Century",null,"Y","Y",{"$nulls":3},"Y"]
[3,"HIST 30200 - History of Horticulture",null,"Y",{"$nulls":4},"Y"]
[3,"HIST 30305 - Food in Modern America",null,"Y","Y",null,"Y"]
[3,"HIST 30400 - America in the 1960s",null,"Y","Y"]
[3,"HIST 30505 - The U.S. in the World 1898-present",null,"Y","Y"]
[3,"HIST 31005 - The Civil War and Reconstruction, 1850-1877",null,"Y","Y"]
[3,"HIST 31405 - Science, Technology, Engineering and Mathematics (STEM) and Gender",null,"Y","Y",null,"Y"]
[3,"HIST 31505 - American Beauty",null,"Y","Y"]
[3,"HIST 32300 - German History",null,"Y","Y",{"$nulls":3},"Y"]
[3,"HIST 32400 - Modern France",null,"Y","Y",{"$nulls":3},"Y"]
[3,"HIST 32900 - History of Women in Modern Europe",null,"Y","Y"]
[3,"HIST 33805 - History of Human Rights",null,"Y","Y"]
[3,"HIST 34000 - Modern China",null,"Y","Y",{"$nulls":3},"Y"]
[3,"HIST 34100 - History of Africa South of the Sahara",null,"Y","Y",{"$nulls":3},"Y"]
[3,"HIST 34200 - Africa and the West",null,"Y",{"$nulls":4},"Y"]
[3,"HIST 34300 - Traditional Japan",null,"Y","Y",{"$nulls":3},"Y"]
[3,"HIST 34400 - History of Modern Japan",null,"Y","Y",{"$nulls":3},"Y"]
[3,"HIST 34901 - The First World War",null,"Y","Y"]
[3,"HIST 35100 - The Second World War",null,"Y","Y"]
[3,"HIST 35400 - Women in America to 1870",null,"Y","Y",{"$nulls":4},"Y"]
[3,"HIST 35900 - Gender in East Asian History",null,"Y","Y"]
[3,"HIST 36305 - The History of Medicine and Public Health",null,"Y","Y",null,"Y"]
[3,"HIST 36500 - Women in America",null,"Y",{"$nulls":5},"Y"]
[3,"HIST 36600 - Hispanic Heritage of the United States",null,"Y",{"$nulls":5},"Y"]
[3,"HIST 37100 - Society, Culture, and Rock and Roll",null,"Y","Y"]
[3,"HIST 37500 - Womein in America Since 1870",null,"Y","Y",{"$nulls":4},"Y"]
[3,"HIST 37700 - History and Culture of Native America",null,"Y","Y",{"$nulls":4},"Y"]
[3,"HIST 38001 - History of U.S. Agriculture",null,"Y","Y",null,"Y"]
[3,"HIST 38200 - American Constitutional History",null,"Y","Y"]
[3,"HIST 38300 - Recent American Constitutional History",null,"Y","Y"]
[3,"HIST 38400 - History of Aviation",null,"Y","Y",null,"Y"]
[{"$f":"HYPERLINK( CONCATENATE(\"https://selfservice.mypurdue.purdue.edu/prod/bzwsrch.p_catalog_detail?subject=\",LEFT(B286, SEARCH(\" \",B286,1)-1),\"&cnbr=\",MID(B286, 1+SEARCH(\" \",B286,SEARCH(\" \",B286,1)),5)), 3 )","v":3},"HIST 38505 - Media, Politics and Popular Culture",null,null,"Y"]
[3,"HIST 38700 - History of Space Age",null,"Y","Y",null,"Y"]
[3,"HIST 39400 - Environmental History of the United States",null,"Y","Y"]
[3,"HIST 39600 - The Afro-American to 1865",null,"Y","Y",{"$nulls":4},"Y"]
[3,"HIST 39800 - The Afro-American since 1865",null,"Y","Y",{"$nulls":4},"Y"]
[3,"HIST 40800 - Dictatorship and Democracy: Europoe 1919-1945",null,"Y",{"$nulls":4},"Y"]
[{"$f":"HYPERLINK( CONCATENATE(\"https://selfservice.mypurdue.purdue.edu/prod/bzwsrch.p_catalog_detail?subject=\",LEFT(B292, SEARCH(\" \",B292,1)-1),\"&cnbr=\",MID(B292, 1+SEARCH(\" \",B292,SEARCH(\" \",B292,1)),5)), 3 )","v":3},"HIST 41005 - History of the American Presidency",null,null,"Y"]
[3,"HIST 43900 - Communist China",null,"Y",{"$nulls":4},"Y"]
[3,"HIST 44100 - Africa in the Twentieth Century",null,"Y",{"$nulls":4},"Y"]
[{"$f":"HYPERLINK( CONCATENATE(\"https://selfservice.mypurdue.purdue.edu/prod/bzwsrch.p_catalog_detail?subject=\",LEFT(B295, SEARCH(\" \",B295,1)-1),\"&cnbr=\",MID(B295, 1+SEARCH(\" \",B295,SEARCH(\" \",B295,1)),5)), 3 )","v":3},"HIST 47005 - Women and Health in America",null,null,"Y"]
[3,"HIST 47200 - History of Mexico",null,"Y",{"$nulls":4},"Y"]
[3,"HIST 59500 - The Holocaust and Genocide",null,"Y",{"$nulls":4},"Y"]
[3,"HK 22600 - Contemporary Women's Health",{"$nulls":7},"Y"]
[3,"HONR 19900 - Malaria: First World Science v Third World Disease",{"$nulls":6},"Y"]
[3,"HONR 19900 - The Role of Animals in Societies of the World",{"$nulls":6},"Y"]
[3,"HONR 19900 - Science and Pseudoscience",null,"Y"]
[3,"HONR 29900 - Afghanistan Development Challenges",{"$nulls":6},"Y"]
[3,"HONR 29900 - Insects in Literature and Art",null,"Y"]
[{"$f":"HYPERLINK( CONCATENATE(\"https://selfservice.mypurdue.purdue.edu/prod/bzwsrch.p_catalog_detail?subject=\",LEFT(B304, SEARCH(\" \",B304,1)-1),\"&cnbr=\",MID(B304, 1+SEARCH(\" \",B304,SEARCH(\" \",B304,1)),5)), 1 )","v":1},"HORT 12100 - Medicine in the Garden",{"$nulls":4},"Y"]
[3,"HORT 30600 - History of Horticulture",null,"Y",null,null,"Y",null,"Y"]
[3,"HORT 40300 - Tropical Horticulture",{"$nulls":6},"Y"]
[3,"HORT 45000 - The English Landscape: Integrating HIST, HORT and LA",null,"Y",{"$nulls":4},"Y"]
[3,"HSCI 20100 - Principles of Public Health Science",{"$nulls":4},"Y"]
[3,"HSCI 20200 - Essentials of Environmental, Occupational, & Radiological Health Sciences.",{"$nulls":4},"Y"]
[3,"HTM 39800 - Cuisine and Culture Abroad",{"$nulls":6},"Y"]
[3,"IDIS 28000 - Women's Studies:  An Introduction",null,"Y",{"$nulls":5},"Y"]
[3,"IDIS 33000 - Introduction to Jewish Studies",null,"Y",{"$nulls":5},"Y"]
[{"$f":"HYPERLINK( CONCATENATE(\"https://selfservice.mypurdue.purdue.edu/prod/bzwsrch.p_catalog_detail?subject=\",LEFT(B313, SEARCH(\" \",B313,1)-1),\"&cnbr=\",MID(B313, 1+SEARCH(\" \",B313,SEARCH(\" \",B313,1)),5)), 3 )","v":3},"IDIS 38000 - Gender and Multiculturalism",null,"Y",{"$nulls":5},"Y"]
[{"$f":"HYPERLINK( CONCATENATE(\"https://selfservice.mypurdue.purdue.edu/prod/bzwsrch.p_catalog_detail?subject=\",LEFT(B314, SEARCH(\" \",B314,1)-1),\"&cnbr=\",MID(B314, 1+SEARCH(\" \",B314,SEARCH(\" \",B314,1)),5)), 2 )","v":2},"IT 22600 - Biotechnical Lab I",{"$nulls":4},"Y"]
[3,"ITAL 10100 - Italian Level I",null,"Y","Y",{"$nulls":3},"Y"]
[3,"ITAL 10200 - Italian Level II",null,"Y","Y",{"$nulls":3},"Y"]
[3,"ITAL 10500 - Accelerated Basic Italian",null,"Y","Y",{"$nulls":3},"Y"]
[3,"ITAL 20100 - Italian Level III",null,"Y","Y",{"$nulls":3},"Y"]
[3,"ITAL 20200 - Italian Level IV",null,"Y","Y",{"$nulls":3},"Y"]
[3,"ITAL 20500 - Accelerated Intermediate Italian",null,"Y","Y",{"$nulls":3},"Y"]
[3,"ITAL 23100 - Dante's Divine Comedy",null,"Y",{"$nulls":4},"Y"]
[3,"ITAL 28000 - Italian Culture & Civilization",null,"Y","Y",{"$nulls":3},"Y"]
[3,"ITAL 30100 - Italian Level V",null,"Y","Y",{"$nulls":3},"Y"]
[3,"ITAL 30200 - Italian Level VI",null,"Y","Y",{"$nulls":3},"Y"]
[3,"ITAL 33000 - Italian Cinema",null,"Y","Y",{"$nulls":3},"Y"]
[3,"ITAL 33300 - The Spirit of Italian Comedy",null,"Y","Y",{"$nulls":3},"Y"]
[3,"ITAL 33500 - Italian-American Cinema",null,"Y",{"$nulls":4},"Y"]
[3,"ITAL 39300 - Special Topics in Italian Literature or Cinema",null,"Y",{"$nulls":4},"Y"]
[3,"ITAL 49300 - Advanced Topics in Italian Literature or Cinema",null,"Y",{"$nulls":4},"Y"]
[{"$f":"HYPERLINK( CONCATENATE(\"https://selfservice.mypurdue.purdue.edu/prod/bzwsrch.p_catalog_detail?subject=\",LEFT(B330, SEARCH(\" \",B330,1)-1),\"&cnbr=\",MID(B330, 1+SEARCH(\" \",B330,SEARCH(\" \",B330,1)),5)), 4 )","v":4},"JPNS 10100 - Japanese Level I",null,"Y","Y",{"$nulls":3},"Y"]
[{"$f":"HYPERLINK( CONCATENATE(\"https://selfservice.mypurdue.purdue.edu/prod/bzwsrch.p_catalog_detail?subject=\",LEFT(B331, SEARCH(\" \",B331,1)-1),\"&cnbr=\",MID(B331, 1+SEARCH(\" \",B331,SEARCH(\" \",B331,1)),5)), 4 )","v":4},"JPNS 10200 - Japanese Level II",null,"Y","Y",{"$nulls":3},"Y"]
[{"$f":"HYPERLINK( CONCATENATE(\"https://selfservice.mypurdue.purdue.edu/prod/bzwsrch.p_catalog_detail?subject=\",LEFT(B332, SEARCH(\" \",B332,1)-1),\"&cnbr=\",MID(B332, 1+SEARCH(\" \",B332,SEARCH(\" \",B332,1)),5)), 4 )","v":4},"JPNS 20100 - Japanese Level III",null,"Y","Y",{"$nulls":3},"Y"]
[{"$f":"HYPERLINK( CONCATENATE(\"https://selfservice.mypurdue.purdue.edu/prod/bzwsrch.p_catalog_detail?subject=\",LEFT(B333, SEARCH(\" \",B333,1)-1),\"&cnbr=\",MID(B333, 1+SEARCH(\" \",B333,SEARCH(\" \",B333,1)),5)), 4 )","v":4},"JPNS 20200 - Japanese Level IV",null,"Y","Y",{"$nulls":3},"Y"]
[3,"JPNS 23000 - Japanese Literature in Translation",null,"Y",{"$nulls":4},"Y"]
[3,"JPNS 28000 - Introduction to Modern Japanese Civilization",null,"Y",{"$nulls":4},"Y"]
[3,"JPNS 30100 - Japanese Level V",null,"Y","Y",{"$nulls":3},"Y"]
[3,"JPNS 30200 - Japanese Level VI",null,"Y","Y",{"$nulls":3},"Y"]
[3,"JPNS 33000 - Japanese Cinema",null,"Y",{"$nulls":4},"Y"]
[3,"JPNS 40100 - Japanese Level VII",null,"Y","Y",{"$nulls":3},"Y"]
[{"$f":"HYPERLINK( CONCATENATE(\"https://selfservice.mypurdue.purdue.edu/prod/bzwsrch.p_catalog_detail?subject=\",LEFT(B340, SEARCH(\" \",B340,1)-1),\"&cnbr=\",MID(B340, 1+SEARCH(\" \",B340,SEARCH(\" \",B340,1)),5)), 2 )","v":2},"JPNS 40200 - Japanese Level VIII",null,"Y","Y",{"$nulls":3},"Y"]
[3,"JWST 33000 - Introduction to Jewish Studies",null,"Y","Y",{"$nulls":4},"Y"]
[{"$f":"HYPERLINK( CONCATENATE(\"https://selfservice.mypurdue.purdue.edu/prod/bzwsrch.p_catalog_detail?subject=\",LEFT(B342, SEARCH(\" \",B342,1)-1),\"&cnbr=\",MID(B342, 1+SEARCH(\" \",B342,SEARCH(\" \",B342,1)),5)), 1 )","v":1},"LA 16100 - Land and Society",{"$nulls":4},"Y"]
[3,"LA 16600 - History and Theory of Landscape Architecture",{"$nulls":6},"Y"]
[3,"LA 45000 - The English Landscape: Integrating HIST, HORT and LA",null,"Y",{"$nulls":4},"Y"]
[3,"LATN 10100 - Latin Level I",null,"Y","Y"]
[3,"LATN 10200 - Latin Level II",null,null,"Y"]
[3,"LATN 20100 - Latin Level III",null,null,"Y"]
[3,"LATN 20200 - Latin Level IV",null,null,"Y"]
[3,"LATN 34300 - Roman Oratory",null,null,"Y"]
[3,"LATN 34400 - Roman Epic",null,null,"Y"]
[3,"LATN 34500 - Roman Elegy",null,null,"Y"]
[3,"LATN 34600 - Roman Rhetoric",null,null,"Y"]
[3,"LATN 34700 - Roman Comedy",null,null,"Y"]
[3,"LATN 44200 - Roman Lyric Poetry",null,null,"Y"]
[3,"LATN 44300 - Roman Satire",null,null,"Y"]
[3,"LATN 44400 - Roman Philosophers",null,null,"Y"]
[3,"LATN 44500 - Roman Encyclopedists",null,null,"Y"]
[3,"LATN 44600 - Roman Historians",null,null,"Y"]
[3,"LC 23900 - Women Writers In Translation",null,"Y","Y",{"$nulls":3},"Y"]
[3,"LC 33300 - The Middle Ages on Film",null,"Y","Y",{"$nulls":3},"Y"]
[{"$f":"HYPERLINK( CONCATENATE(\"https://selfservice.mypurdue.purdue.edu/prod/bzwsrch.p_catalog_detail?subject=\",LEFT(B361, SEARCH(\" \",B361,1)-1),\"&cnbr=\",MID(B361, 1+SEARCH(\" \",B361,SEARCH(\" \",B361,1)),5)), 1 )","v":1},"ME 29000 - Global Engineering Professional Seminar",{"$nulls":4},"Y"]
[{"$f":"HYPERLINK( CONCATENATE(\"https://selfservice.mypurdue.purdue.edu/prod/bzwsrch.p_catalog_detail?subject=\",LEFT(B362, SEARCH(\" \",B362,1)-1),\"&cnbr=\",MID(B362, 1+SEARCH(\" \",B362,SEARCH(\" \",B362,1)),5)), 3 )","v":3},"MUS 25000 - Music Appreciation",null,"Y","Y"]
[3,"MUS 26100 - Fundamentals of Music",null,"Y","Y"]
[3,"MUS 36100 - Music Theory I",null,"Y","Y"]
[3,"MUS 37800 - Jazz History",null,"Y","Y"]
[{"$f":"HYPERLINK( CONCATENATE(\"https://selfservice.mypurdue.purdue.edu/prod/bzwsrch.p_catalog_detail?subject=\",LEFT(B366, SEARCH(\" \",B366,1)-1),\"&cnbr=\",MID(B366, 1+SEARCH(\" \",B366,SEARCH(\" \",B366,1)),5)), 3 )","v":3},"NRES 12500 - Environmental Science and Conservation",{"$nulls":4},"Y"]
[3,"NUTR 39800 - Culture & Food of France",{"$nulls":4},"Y"]
[3,"OLS 49900 - Women and Work",{"$nulls":7},"Y"]
[3,"PHIL 11000 - Introduction to Philosophy",null,"Y","Y",{"$nulls":3},"Y"]
[3,"PHIL 11100 - Ethics",null,"Y","Y"]
[3,"PHIL 11400 - Global Moral Issues",null,"Y","Y"]
[3,"PHIL 20600 - Philosophy of Religion",null,"Y","Y",{"$nulls":4},"Y"]
[{"$f":"HYPERLINK( CONCATENATE(\"https://selfservice.mypurdue.purdue.edu/prod/bzwsrch.p_catalog_detail?subject=\",LEFT(B373, SEARCH(\" \",B373,1)-1),\"&cnbr=\",MID(B373, 1+SEARCH(\" \",B373,SEARCH(\" \",B373,1)),5)), 3 )","v":3},"PHIL 20700 - Ethics for Technology, Engineering, and Design",{"$nulls":4},"Y"]
[3,"PHIL 21900 - Introduction to Existentialism",null,"Y","Y"]
[3,"PHIL 22100 - Introduction to Philosophy of Science",null,"Y",null,null,"Y"]
[3,"PHIL 22500 - Philosophy and Gender",null,"Y","Y",{"$nulls":4},"Y"]
[3,"PHIL 23000 - Religions of the East",null,"Y","Y",{"$nulls":3},"Y","Y"]
[3,"PHIL 23100 - Religions of the West",null,"Y","Y",{"$nulls":3},"Y","Y"]
[3,"PHIL 24000 - Social and Political Philosophy",null,"Y","Y"]
[3,"PHIL 24200 - Philosophy, Culture and the African American Experience",null,"Y","Y",{"$nulls":4},"Y"]
[3,"PHIL 27000 - Biomedical Ethics",null,"Y",null,null,"Y"]
[3,"PHIL 27500 - Philosophy of Art",null,"Y","Y"]
[3,"PHIL 28000 - Ethics and Animals",null,"Y","Y"]
[3,"PHIL 29000 - Environmental Ethics ",null,"Y","Y"]
[3,"PHIL 30100 - History of Ancient Philosophy",null,"Y","Y"]
[3,"PHIL 30200 - History of Medieval Philosophy",null,"Y","Y"]
[3,"PHIL 30300 - History of Modern Philosophy",null,"Y","Y"]
[3,"PHIL 30400 - 19th Centruy Philosophy",null,"Y","Y"]
[3,"POL 13000 - Introduction to International Relations",{"$nulls":3},"Y",null,null,"Y"]
[3,"POL 14100 - Governments of the World",{"$nulls":3},"Y",null,null,"Y"]
[3,"POL 22200 - Women, Politics, and Public Policy",{"$nulls":3},"Y",{"$nulls":3},"Y"]
[3,"POL 22300 - Introduction to Environmental Policy",{"$nulls":3},"Y","Y"]
[3,"POL 23100 - Introductions to United States Foreign Policy",{"$nulls":3},"Y",null,null,"Y"]
[3,"POL 23200 - Contemporary Crises in International Relations",{"$nulls":3},"Y",null,null,"Y"]
[3,"POL 23500 - International Relations Among Rich and Poor Nations",{"$nulls":3},"Y",null,null,"Y"]
[3,"POL 23700 - Modern Weapons and International Relations",{"$nulls":3},"Y","Y",null,"Y"]
[3,"POL 32600 - Black Political Participation in America",{"$nulls":3},"Y",{"$nulls":3},"Y"]
[3,"POL 32700 - Global Green Politics",{"$nulls":3},"Y",null,null,"Y"]
[3,"POL 34400 - Introduction to Politics of the Third World",{"$nulls":3},"Y",null,null,"Y"]
[3,"POL 34500 - West European Democracies in the Post-Industrial Era",{"$nulls":3},"Y",null,null,"Y"]
[3,"POL 34800 - East Asian Politics",{"$nulls":3},"Y",null,null,"Y"]
[3,"POL 36000 - Women and the Law",{"$nulls":3},"Y",{"$nulls":3},"Y"]
[{"$f":"HYPERLINK( CONCATENATE(\"https://selfservice.mypurdue.purdue.edu/prod/bzwsrch.p_catalog_detail?subject=\",LEFT(B403, SEARCH(\" \",B403,1)-1),\"&cnbr=\",MID(B403, 1+SEARCH(\" \",B403,SEARCH(\" \",B403,1)),5)), 3 )","v":3},"POL 37200 - Indiana Government and Politics",{"$nulls":3},"Y"]
[3,"POL 43300 - International Organizations",{"$nulls":3},"Y",null,null,"Y"]
[3,"POL 43400 - United States Foreign Policy, Central America and the Caribbean",{"$nulls":3},"Y",null,null,"Y"]
[3,"POL 43500 - International Law",{"$nulls":3},"Y",null,null,"Y"]
[3,"POL 44200 - Government and Politics in Russia",{"$nulls":3},"Y",null,null,"Y"]
[{"$f":"HYPERLINK( CONCATENATE(\"https://selfservice.mypurdue.purdue.edu/prod/bzwsrch.p_catalog_detail?subject=\",LEFT(B408, SEARCH(\" \",B408,1)-1),\"&cnbr=\",MID(B408, 1+SEARCH(\" \",B408,SEARCH(\" \",B408,1)),5)), 3 )","v":3},"PSY 12000 - Elementary Psychology",{"$nulls":3},"Y"]
[3,"PSY 23900 - The Psychology of Women",{"$nulls":3},"Y",{"$nulls":3},"Y"]
[3,"PSY 33500 - Stereotyping and Prejudice",{"$nulls":3},"Y",{"$nulls":3},"Y"]
[{"$f":"HYPERLINK( CONCATENATE(\"https://selfservice.mypurdue.purdue.edu/prod/bzwsrch.p_catalog_detail?subject=\",LEFT(B411, SEARCH(\" \",B411,1)-1),\"&cnbr=\",MID(B411, 1+SEARCH(\" \",B411,SEARCH(\" \",B411,1)),5)), 3 )","v":3},"PTGS 10100 - Portuguese Level I",null,"Y","Y",{"$nulls":3},"Y"]
[3,"PTGS 10200 - Portuguese Level II",null,"Y","Y",{"$nulls":3},"Y"]
[3,"PTGS 10500 - Accelerated Portuguese",null,"Y","Y",{"$nulls":3},"Y"]
[3,"PTGS 20100 - Portuguese Level III",null,"Y","Y",{"$nulls":3},"Y"]
[3,"PTGS 20200- Portuguese Level IV",null,"Y","Y",{"$nulls":3},"Y"]
[3,"PTGS 30100 - Portuguese Level V",null,"Y","Y",{"$nulls":3},"Y"]
[3,"PTGS 30200 - Portuguese Level VI",null,"Y","Y",{"$nulls":3},"Y"]
[3,"PTGS 33000 - Brazilian, Portuguese, and African Cinema",null,"Y",{"$nulls":4},"Y"]
[3,"REL 20000 - Introduction to the Study of Religion",null,"Y","Y"]
[3,"REL 23000 - Religions of the East",null,"Y","Y",{"$nulls":3},"Y","Y"]
[3,"REL 23100 - Religions of the West",null,"Y","Y",{"$nulls":3},"Y","Y"]
[{"$f":"HYPERLINK( CONCATENATE(\"https://selfservice.mypurdue.purdue.edu/prod/bzwsrch.p_catalog_detail?subject=\",LEFT(B422, SEARCH(\" \",B422,1)-1),\"&cnbr=\",MID(B422, 1+SEARCH(\" \",B422,SEARCH(\" \",B422,1)),5)), 4 )","v":4},"RUSS 10100 - Russian Level I",null,"Y","Y",{"$nulls":3},"Y"]
[{"$f":"HYPERLINK( CONCATENATE(\"https://selfservice.mypurdue.purdue.edu/prod/bzwsrch.p_catalog_detail?subject=\",LEFT(B423, SEARCH(\" \",B423,1)-1),\"&cnbr=\",MID(B423, 1+SEARCH(\" \",B423,SEARCH(\" \",B423,1)),5)), 4 )","v":4},"RUSS 10200 - Russian Level II",null,"Y","Y",{"$nulls":3},"Y"]
[{"$f":"HYPERLINK( CONCATENATE(\"https://selfservice.mypurdue.purdue.edu/prod/bzwsrch.p_catalog_detail?subject=\",LEFT(B424, SEARCH(\" \",B424,1)-1),\"&cnbr=\",MID(B424, 1+SEARCH(\" \",B424,SEARCH(\" \",B424,1)),5)), 4 )","v":4},"RUSS 20100 - Russian Level III",null,"Y","Y",{"$nulls":3},"Y"]
[{"$f":"HYPERLINK( CONCATENATE(\"https://selfservice.mypurdue.purdue.edu/prod/bzwsrch.p_catalog_detail?subject=\",LEFT(B425, SEARCH(\" \",B425,1)-1),\"&cnbr=\",MID(B425, 1+SEARCH(\" \",B425,SEARCH(\" \",B425,1)),5)), 4 )","v":4},"RUSS 20200 - Russian Level IV",null,"Y","Y",{"$nulls":3},"Y"]
[3,"RUSS 30100 - Russian Level V",null,"Y","Y",{"$nulls":3},"Y"]
[3,"RUSS 30200 - Russian Level VI",null,"Y","Y",{"$nulls":3},"Y"]
[3,"RUSS 33000 - Russian and East European Cinema",null,"Y","Y",{"$nulls":3},"Y"]
[3,"RUSS 40100 - Russian Level VII",null,"Y","Y",{"$nulls":3},"Y"]
[3,"RUSS 40200 - Russian Level VIII",null,"Y","Y",{"$nulls":3},"Y"]
[3,"SLHS 11500 - Introduction to Communicative Disorders",{"$nulls":4},"Y"]
[3,"SLHS 21500 - Exploring Audiology & Hearing Science",{"$nulls":4},"Y"]
[3,"SLHS 30900 - Language Development",{"$nulls":4},"Y"]
[{"$f":"HYPERLINK( CONCATENATE(\"https://selfservice.mypurdue.purdue.edu/prod/bzwsrch.p_catalog_detail?subject=\",LEFT(B434, SEARCH(\" \",B434,1)-1),\"&cnbr=\",MID(B434, 1+SEARCH(\" \",B434,SEARCH(\" \",B434,1)),5)), 3 )","v":3},"SOC 10000 - Intro to Sociology",{"$nulls":3},"Y"]
[3,"SOC 22000 - Social Problems",{"$nulls":3},"Y",{"$nulls":3},"Y"]
[3,"SOC 31000 - Racial and Ethnic Diversity",{"$nulls":3},"Y",{"$nulls":3},"Y"]
[3,"SOC 35600 - Hate and Violence",{"$nulls":3},"Y",{"$nulls":3},"Y"]
[3,"SOC 36700 - Religion in America",{"$nulls":3},"Y",{"$nulls":3},"Y"]
[3,"SOC 45000 - Gender Roles in Modern Society",{"$nulls":3},"Y",{"$nulls":3},"Y"]
[3,"SPAN 10100 - Spanish Level I",null,"Y","Y",{"$nulls":3},"Y"]
[3,"SPAN 10200 - Spanish Level II",null,"Y","Y",{"$nulls":3},"Y"]
[3,"SPAN 20100 - Spanish Level III",null,"Y","Y",{"$nulls":3},"Y"]
[3,"SPAN 20200 - Spanish Level IV",null,"Y","Y",{"$nulls":3},"Y"]
[3,"SPAN 23100 - Cervantes' Don Quixote",null,"Y",{"$nulls":4},"Y"]
[3,"SPAN 23500 - Spanish American Literature In Translation",null,null,"Y",{"$nulls":3},"Y"]
[3,"SPAN 30100 - Spanish Level V",null,null,"Y",{"$nulls":3},"Y"]
[3,"SPAN 30200 - Spanish Level VI",null,null,"Y",{"$nulls":3},"Y"]
[3,"SPAN 30500 - Spanish for Heritage Speakers",null,null,"Y",{"$nulls":3},"Y"]
[3,"SPAN 30801 - Advanced Spanish for Heritage Speakers",null,null,"Y",{"$nulls":3},"Y"]
[3,"SPAN 33000 - Spanish and Latin American Cinema",null,"Y","Y",{"$nulls":3},"Y"]
[3,"SPAN 40100 - Spanish Level VII",null,null,"Y",{"$nulls":3},"Y"]
[3,"SPAN 40200 - Spanish Level VIII ",null,null,"Y",{"$nulls":3},"Y"]
[3,"STAT 11300 - Statistics and Society",{"$nulls":4},"Y"]
[{"$f":"HYPERLINK( CONCATENATE(\"https://selfservice.mypurdue.purdue.edu/prod/bzwsrch.p_catalog_detail?subject=\",LEFT(B454, SEARCH(\" \",B454,1)-1),\"&cnbr=\",MID(B454, 1+SEARCH(\" \",B454,SEARCH(\" \",B454,1)),5)), 3 )","v":3},"SYS 30000 - It's a Complext World: Addressing Global Challenges",{"$nulls":4},"Y"]
[{"$f":"HYPERLINK( CONCATENATE(\"https://selfservice.mypurdue.purdue.edu/prod/bzwsrch.p_catalog_detail?subject=\",LEFT(B455, SEARCH(\" \",B455,1)-1),\"&cnbr=\",MID(B455, 1+SEARCH(\" \",B455,SEARCH(\" \",B455,1)),5)), 3 )","v":3},"SYS 35000 - Systems Theories and Approaches",{"$nulls":4},"Y"]
[3,"THTR 20100 - Theater Appreciation",null,"Y","Y"]
[{"$f":"HYPERLINK( CONCATENATE(\"https://selfservice.mypurdue.purdue.edu/prod/bzwsrch.p_catalog_detail?subject=\",LEFT(B457, SEARCH(\" \",B457,1)-1),\"&cnbr=\",MID(B457, 1+SEARCH(\" \",B457,SEARCH(\" \",B457,1)),5)), 3 )","v":3},"WGSS 28000 - Women's Studies: An Introduction",null,"Y","Y","Y",{"$nulls":3},"Y"]
[{"$f":"HYPERLINK( CONCATENATE(\"https://selfservice.mypurdue.purdue.edu/prod/bzwsrch.p_catalog_detail?subject=\",LEFT(B458, SEARCH(\" \",B458,1)-1),\"&cnbr=\",MID(B458, 1+SEARCH(\" \",B458,SEARCH(\" \",B458,1)),5)), 3 )","v":3},"WGSS 28200 - Introduction to LGBT Studies",{"$nulls":3},"Y"]
[3,"WGSS 38000 - Gender and Multiculturalism",null,"Y",{"$nulls":5},"Y"]
[3,"WGSS 38100 - Women of Color in the United States",null,"Y",{"$nulls":5},"Y"]
[3,"WGSS 38300 - Women and Work",null,"Y",{"$nulls":5},"Y"]
[3,"WGSS 48000 - Feminist Theory",null,"Y",{"$nulls":5},"Y"]
[3,"WGSS 48200 - Interdisciplinary Studies in Sexuality: Scholarship on Lesbian and Gay Issues",null,"Y",{"$nulls":5},"Y"]
[3,"YDAE 38500 - Urban Service Learning",{"$nulls":7},"Y"]
[3,"YDAE 44000 - Methods of Teaching Agricultural Education","Y"]